{"text_format":"1","workbook":"xlsx","n_sheets":11,"sheets":["Instructions","Helpful Tips","Risk Assessment Scoring Scales","Risk Assessment Matrix","Significance & Likelihood","HeatMap","Risk Ranking","Control Activities Matrix","Monitoring Actions","Sheet1","Sheet2"],"not_rendered":{"charts":1,"images":7,"macros":1,"external_links":0,"defined_names":7,"comments":0,"pivot_tables":0},"unopened":[],"bounds":{"document_bytes":16777216,"sheet_cells":100000,"rows_first":2000,"rows_last":500,"rows_between":2000,"halvings":0,"cell_chars":16384,"cell_head_chars":4096},"cells_cut":0,"cells_raw":0,"read":"whole","date_system":"1900"}

{"sheet":"Instructions","index":0,"n_rows":16,"n_cols":1,"rows_kept":16,"cut":false,"hidden":false,"merged":[]}
[" Risk Assessement Instructions"]
[]
["The Risk Assessment Matrix Tab is used to document the  risk assessment. It identifies every  risk or exposure, scores the likelihood and significance of each  risk/exposure, enables identification of existing control activities and their effectiveness, records the assessed effectiveness of each control activity, identifies residual  risk, and allows recording of  risk response action plans."]
[]
["The Heat Map Tab automatically creates a \"heat map\" based on the information in the Risk Assessment Matrix Tab."]
[]
["The  Risk Ranking Tab is created automatically based on the information in the  Risk Assessment Matrix Tab and lists all identified  schemes/ risk scores/and response plans."]
[]
["The Control Activities Matrix Tab is generated based on information in the Risk Assessment Matrix Tab and facilitates documentation of control activities and individuals responsible for each control activity."]
[]
["The Allegations-Disposition Tab provides a record of allegations received, actions taken to investigate each allegation, and the final disposition of each allegation."]
[]
["The Monitoring Actions Tab provides a record of the organization's monitoring plans, persons responsible for monitoring actions, and the results of each monitoring action."]
[]
["*Note:"]
["*Examples have been provided in this workbook to illustrate how to complete the Risk Assessment Matrix (see tabs ending in (ex.). These examples are based off of APPENDIX I:  RISK ASSESSMENT EXAMPLE.\n\n*Sample scoring scales are included in the Risk Assessment Scoring Scales Tab. These scoring scales provide guidance on how to score   risks identified in the Risk Assessment Matrix.\n\n*To populate the heat map, this file must be saved using the file extension .xlsm.\n\n*To use the heat map, you must have macros enabled. If you need assistance on enabling macros, see the Helpful Tips tab.\n\n*The heat map must be refreshed once the Risk Assessment Matrix has been completed (see refresh button on the Heat Map Tab).\n\n*If any additions/changes are made to the risk assessment matrix, the heat map will need to be refreshed. Please click the refresh button on the Heat Map Tab to re-populate the data."]

{"sheet":"Helpful Tips","index":1,"n_rows":68,"n_cols":3,"rows_kept":68,"cut":false,"hidden":false,"merged":[[67,2,67,3],[0,0,0,2],[56,0,56,17]]}
["ENABLING MACROS"]
["Step 1"]
["Go to File, then click on Options."]
[]
[]
[]
[]
[]
[]
[]
[]
[]
[]
[]
[]
[]
[]
[]
[]
["Step 2"]
["Under the General option, click on Customize Ribbon."]
[]
[]
[]
[]
[]
[]
[]
[]
[]
[]
[]
[]
[]
[]
["Step 3"]
["Make sure there is a checkmark in the Developer box and then click OK."]
[]
[]
[]
[]
[]
[]
[]
[]
[]
[]
[]
[]
[]
[]
[]
[]
[]
["Your macros have now been enabled."]
[]
["*NOTE: Each time the file is opened you will have to enable the macros by clicking the button \"Enable Content\". To bypass this message each time the file is opened, you can click on Macro Security listed under the Developer tab."]
[]
[]
[]
[]
[]
[]
[]
[]
[]
[]
[null,null,"OR"]

{"sheet":"Risk Assessment Scoring Scales","index":2,"n_rows":44,"n_cols":9,"rows_kept":44,"cut":false,"hidden":false,"merged":[[42,1,42,2],[43,1,43,2],[39,1,39,2],[40,1,40,2],[41,1,41,2],[38,1,38,2],[37,0,37,2],[26,2,29,4],[30,2,33,4],[22,2,25,4],[18,0,21,0],[18,1,21,1],[18,2,21,4],[13,0,17,0],[13,1,17,1],[13,2,17,4],[1,0,1,4],[26,0,29,0],[26,1,29,1],[30,0,33,0],[30,1,33,1],[22,0,25,0],[22,1,25,1],[2,0,3,0],[2,1,2,2],[2,3,2,4],[12,2,12,4],[11,0,11,4]]}
[]
["Likelihood"]
["Rating","Based on Annual Frequency",null,"Based on Annual Probability of Occurrence"]
[null,"Descriptor","Definition","Descriptor","Definition"]
[5,"Very frequent","More than twenty times per year","Almost certain",">90% chance of occurrence"]
[4,"Frequent","Six to twenty times per year","Likely","65% to 90% chance of occurrence"]
[3,"Reasonably frequent","Two to five times per year","Reasonably possible","35% to 65% chance of occurrence"]
[2,"Occasional","Once per year","Unlikely","10% to 35% chance of occurrence"]
[1,"Rare","Less than once per year","Remote","< 10% chance of occurrence"]
[]
[]
["Significance"]
["Rating","Descriptor","Definition"]
[5,"Catastrophic","Long-term and serious effect on ability to continue operations, staff, financial support (loss of federal, state, or local funding), impact access to market or cost to access market, health/safety resulting in severe injury and/or death; material breach of confidence and reputation; will result in Modification of Audit Opinion, potentially multiple material weaknesses of internal control."]
[]
[]
[]
[]
[4,"Major"," Significant effect on long-term programs, Significant financial loss, negative publicity, or cause severe injury.  Result in material misstatements to financial statements, potential significant deficincies in internal control or material weakness.  Result in increased oversight from funding entities or liabilities for unallowed cost/disallowed cost. "]
[null,null,null,null,null,null,null,null,"."]
[]
[]
[3,"Moderate","Could delay operations, effect short term programs, require moderate management effort, may draw publicity, minor to moderate safety or health hazards present. Result in audit findings (significant deficiencies), misstatements to financial statements, findings for compliance."]
[]
[]
[]
[2,"Minor","Minimal impact on operations, reputation, or financial condition; minimal safety or health hazards present. Could result in misstatements (below materiality), result in potential findings and recommendations (lower impact typically communicated through management letter of comment). "]
[]
[]
[]
[1,"Incidental"," Insignificant impact on operations, reputation, or financial condition; no safety or health hazards present."]
[]
[]
[]
[]
[]
[]
["Control Effectiveness"]
["Control Risk Rating","Description"]
[5,"Very effective (reduces 81–100% of the risk)"]
[4,"Effective (reduces 61–80% of the risk)"]
[3,"Moderately effective (reduces 41–60% of the risk)"]
[2,"Marginally effective (reduces 21–40% of the risk)"]
[1,"Not effective (reduces 0–20% of the risk)"]

{"sheet":"Risk Assessment Matrix","index":3,"n_rows":521,"n_cols":12,"rows_kept":521,"cut":false,"hidden":false,"merged":[[0,0,0,11]]}
["Fraud Risk Assessment as of [DATE]"]
[]
["ID Number/What is the Risk","Identify the Risk Category and briefly describe the identified risk","Operations [O], Reporting [R], or Compliance [C]","Likelihood [1-5]","Significance [1-5]","Risk Rating","People and/or Department","Existing Controls/How risk currently managed?","Preventive [P], Detective [D], or Combined [C]","Controls Effectiveness Assessment [1-5]","Residual Risks\n(High, Medium, Low)"," Risk Response\n(List an action plan on how each residual risk will be mitigated)"]
[123,"Completeness of Leases - GASB 87","R",4,4,{"$f":"D4*E4","v":16},"Accounting/Finance Team (---)","Team Developed to Review contracts in contract maangedment - Scan and Review GL for potential leases - Review of Board Minutes for approval thresholds","D",4,"Medium","Since Standard is new - additiaonl training to Contract management team will be provided in year 1 to ensure awareness of what accounting and finance will  need to implement standard."]
[null,null,null,null,null,0]
[null,null,null,null,null,0]
[null,null,null,null,null,0]
[null,null,null,null,null,0]
[null,null,null,null,null,0]
[null,null,null,null,null,0]
[null,null,null,null,null,0]
[null,null,null,null,null,0]
[null,null,null,null,null,0]
[null,null,null,null,null,0]
[null,null,null,null,null,0]
[null,null,null,null,null,0]
[null,null,null,null,null,0]
[null,null,null,null,null,0]
[null,null,null,null,null,0]
[null,null,null,null,null,0]
[null,null,null,null,null,0]
[null,null,null,null,null,0]
[null,null,null,null,null,0]
[null,null,null,null,null,0]
[null,null,null,null,null,0]
[null,null,null,null,null,0]
[null,null,null,null,null,0]
[null,null,null,null,null,0]
[null,null,null,null,null,0]
[null,null,null,null,null,0]
[null,null,null,null,null,0]
[null,null,null,null,null,0]
[null,null,null,null,null,0]
[null,null,null,null,null,0]
[null,null,null,null,null,0]
[null,null,null,null,null,0]
[null,null,null,null,null,0]
[null,null,null,null,null,0]
[null,null,null,null,null,0]
[null,null,null,null,null,0]
[null,null,null,null,null,0]
[null,null,null,null,null,0]
[null,null,null,null,null,0]
[null,null,null,null,null,0]
[null,null,null,null,null,0]
[null,null,null,null,null,0]
[null,null,null,null,null,0]
[null,null,null,null,null,0]
[null,null,null,null,null,0]
[null,null,null,null,null,0]
[null,null,null,null,null,0]
[null,null,null,null,null,0]
[null,null,null,null,null,0]
[null,null,null,null,null,0]
[null,null,null,null,null,0]
[null,null,null,null,null,0]
[null,null,null,null,null,0]
[null,null,null,null,null,0]
[null,null,null,null,null,0]
[null,null,null,null,null,0]
[null,null,null,null,null,0]
[null,null,null,null,null,0]
[null,null,null,null,null,0]
[null,null,null,null,null,0]
[null,null,null,null,null,0]
[null,null,null,null,null,0]
[null,null,null,null,null,0]
[null,null,null,null,null,{"$f":"D68*E68","v":0}]
[null,null,null,null,null,0]
[null,null,null,null,null,0]
[null,null,null,null,null,0]
[null,null,null,null,null,0]
[null,null,null,null,null,0]
[null,null,null,null,null,0]
[null,null,null,null,null,0]
[null,null,null,null,null,0]
[null,null,null,null,null,0]
[null,null,null,null,null,0]
[null,null,null,null,null,0]
[null,null,null,null,null,0]
[null,null,null,null,null,0]
[null,null,null,null,null,0]
[null,null,null,null,null,0]
[null,null,null,null,null,0]
[null,null,null,null,null,0]
[null,null,null,null,null,0]
[null,null,null,null,null,0]
[null,null,null,null,null,0]
[null,null,null,null,null,0]
[null,null,null,null,null,0]
[null,null,null,null,null,0]
[null,null,null,null,null,0]
[null,null,null,null,null,0]
[null,null,null,null,null,0]
[null,null,null,null,null,0]
[null,null,null,null,null,0]
[null,null,null,null,null,0]
[null,null,null,null,null,0]
[null,null,null,null,null,0]
[null,null,null,null,null,0]
[null,null,null,null,null,0]
[null,null,null,null,null,0]
[null,null,null,null,null,0]
[null,null,null,null,null,0]
[null,null,null,null,null,0]
[null,null,null,null,null,0]
[null,null,null,null,null,0]
[null,null,null,null,null,0]
[null,null,null,null,null,0]
[null,null,null,null,null,0]
[null,null,null,null,null,0]
[null,null,null,null,null,0]
[null,null,null,null,null,0]
[null,null,null,null,null,0]
[null,null,null,null,null,0]
[null,null,null,null,null,0]
[null,null,null,null,null,0]
[null,null,null,null,null,0]
[null,null,null,null,null,0]
[null,null,null,null,null,0]
[null,null,null,null,null,0]
[null,null,null,null,null,0]
[null,null,null,null,null,0]
[null,null,null,null,null,0]
[null,null,null,null,null,0]
[null,null,null,null,null,0]
[null,null,null,null,null,0]
[null,null,null,null,null,0]
[null,null,null,null,null,0]
[null,null,null,null,null,0]
[null,null,null,null,null,0]
[null,null,null,null,null,{"$f":"D132*E132","v":0}]
[null,null,null,null,null,0]
[null,null,null,null,null,0]
[null,null,null,null,null,0]
[null,null,null,null,null,0]
[null,null,null,null,null,0]
[null,null,null,null,null,0]
[null,null,null,null,null,0]
[null,null,null,null,null,0]
[null,null,null,null,null,0]
[null,null,null,null,null,0]
[null,null,null,null,null,0]
[null,null,null,null,null,0]
[null,null,null,null,null,0]
[null,null,null,null,null,0]
[null,null,null,null,null,0]
[null,null,null,null,null,0]
[null,null,null,null,null,0]
[null,null,null,null,null,0]
[null,null,null,null,null,0]
[null,null,null,null,null,0]
[null,null,null,null,null,0]
[null,null,null,null,null,0]
[null,null,null,null,null,0]
[null,null,null,null,null,0]
[null,null,null,null,null,0]
[null,null,null,null,null,0]
[null,null,null,null,null,0]
[null,null,null,null,null,0]
[null,null,null,null,null,0]
[null,null,null,null,null,0]
[null,null,null,null,null,0]
[null,null,null,null,null,0]
[null,null,null,null,null,0]
[null,null,null,null,null,0]
[null,null,null,null,null,0]
[null,null,null,null,null,0]
[null,null,null,null,null,0]
[null,null,null,null,null,0]
[null,null,null,null,null,0]
[null,null,null,null,null,0]
[null,null,null,null,null,0]
[null,null,null,null,null,0]
[null,null,null,null,null,0]
[null,null,null,null,null,0]
[null,null,null,null,null,0]
[null,null,null,null,null,0]
[null,null,null,null,null,0]
[null,null,null,null,null,0]
[null,null,null,null,null,0]
[null,null,null,null,null,0]
[null,null,null,null,null,0]
[null,null,null,null,null,0]
[null,null,null,null,null,0]
[null,null,null,null,null,0]
[null,null,null,null,null,0]
[null,null,null,null,null,0]
[null,null,null,null,null,0]
[null,null,null,null,null,0]
[null,null,null,null,null,0]
[null,null,null,null,null,0]
[null,null,null,null,null,0]
[null,null,null,null,null,0]
[null,null,null,null,null,0]
[null,null,null,null,null,{"$f":"D196*E196","v":0}]
[null,null,null,null,null,0]
[null,null,null,null,null,0]
[null,null,null,null,null,0]
[null,null,null,null,null,0]
[null,null,null,null,null,0]
[null,null,null,null,null,0]
[null,null,null,null,null,0]
[null,null,null,null,null,0]
[null,null,null,null,null,0]
[null,null,null,null,null,0]
[null,null,null,null,null,0]
[null,null,null,null,null,0]
[null,null,null,null,null,0]
[null,null,null,null,null,0]
[null,null,null,null,null,0]
[null,null,null,null,null,0]
[null,null,null,null,null,0]
[null,null,null,null,null,0]
[null,null,null,null,null,0]
[null,null,null,null,null,0]
[null,null,null,null,null,0]
[null,null,null,null,null,0]
[null,null,null,null,null,0]
[null,null,null,null,null,0]
[null,null,null,null,null,0]
[null,null,null,null,null,0]
[null,null,null,null,null,0]
[null,null,null,null,null,0]
[null,null,null,null,null,0]
[null,null,null,null,null,0]
[null,null,null,null,null,0]
[null,null,null,null,null,0]
[null,null,null,null,null,0]
[null,null,null,null,null,0]
[null,null,null,null,null,0]
[null,null,null,null,null,0]
[null,null,null,null,null,0]
[null,null,null,null,null,0]
[null,null,null,null,null,0]
[null,null,null,null,null,0]
[null,null,null,null,null,0]
[null,null,null,null,null,0]
[null,null,null,null,null,0]
[null,null,null,null,null,0]
[null,null,null,null,null,0]
[null,null,null,null,null,0]
[null,null,null,null,null,0]
[null,null,null,null,null,0]
[null,null,null,null,null,0]
[null,null,null,null,null,0]
[null,null,null,null,null,0]
[null,null,null,null,null,0]
[null,null,null,null,null,0]
[null,null,null,null,null,0]
[null,null,null,null,null,0]
[null,null,null,null,null,0]
[null,null,null,null,null,0]
[null,null,null,null,null,0]
[null,null,null,null,null,0]
[null,null,null,null,null,0]
[null,null,null,null,null,0]
[null,null,null,null,null,0]
[null,null,null,null,null,0]
[null,null,null,null,null,{"$f":"D260*E260","v":0}]
[null,null,null,null,null,0]
[null,null,null,null,null,0]
[null,null,null,null,null,0]
[null,null,null,null,null,0]
[null,null,null,null,null,0]
[null,null,null,null,null,0]
[null,null,null,null,null,0]
[null,null,null,null,null,0]
[null,null,null,null,null,0]
[null,null,null,null,null,0]
[null,null,null,null,null,0]
[null,null,null,null,null,0]
[null,null,null,null,null,0]
[null,null,null,null,null,0]
[null,null,null,null,null,0]
[null,null,null,null,null,0]
[null,null,null,null,null,0]
[null,null,null,null,null,0]
[null,null,null,null,null,0]
[null,null,null,null,null,0]
[null,null,null,null,null,0]
[null,null,null,null,null,0]
[null,null,null,null,null,0]
[null,null,null,null,null,0]
[null,null,null,null,null,0]
[null,null,null,null,null,0]
[null,null,null,null,null,0]
[null,null,null,null,null,0]
[null,null,null,null,null,0]
[null,null,null,null,null,0]
[null,null,null,null,null,0]
[null,null,null,null,null,0]
[null,null,null,null,null,0]
[null,null,null,null,null,0]
[null,null,null,null,null,0]
[null,null,null,null,null,0]
[null,null,null,null,null,0]
[null,null,null,null,null,0]
[null,null,null,null,null,0]
[null,null,null,null,null,0]
[null,null,null,null,null,0]
[null,null,null,null,null,0]
[null,null,null,null,null,0]
[null,null,null,null,null,0]
[null,null,null,null,null,0]
[null,null,null,null,null,0]
[null,null,null,null,null,0]
[null,null,null,null,null,0]
[null,null,null,null,null,0]
[null,null,null,null,null,0]
[null,null,null,null,null,0]
[null,null,null,null,null,0]
[null,null,null,null,null,0]
[null,null,null,null,null,0]
[null,null,null,null,null,0]
[null,null,null,null,null,0]
[null,null,null,null,null,0]
[null,null,null,null,null,0]
[null,null,null,null,null,0]
[null,null,null,null,null,0]
[null,null,null,null,null,0]
[null,null,null,null,null,0]
[null,null,null,null,null,0]
[null,null,null,null,null,{"$f":"D324*E324","v":0}]
[null,null,null,null,null,0]
[null,null,null,null,null,0]
[null,null,null,null,null,0]
[null,null,null,null,null,0]
[null,null,null,null,null,0]
[null,null,null,null,null,0]
[null,null,null,null,null,0]
[null,null,null,null,null,0]
[null,null,null,null,null,0]
[null,null,null,null,null,0]
[null,null,null,null,null,0]
[null,null,null,null,null,0]
[null,null,null,null,null,0]
[null,null,null,null,null,0]
[null,null,null,null,null,0]
[null,null,null,null,null,0]
[null,null,null,null,null,0]
[null,null,null,null,null,0]
[null,null,null,null,null,0]
[null,null,null,null,null,0]
[null,null,null,null,null,0]
[null,null,null,null,null,0]
[null,null,null,null,null,0]
[null,null,null,null,null,0]
[null,null,null,null,null,0]
[null,null,null,null,null,0]
[null,null,null,null,null,0]
[null,null,null,null,null,0]
[null,null,null,null,null,0]
[null,null,null,null,null,0]
[null,null,null,null,null,0]
[null,null,null,null,null,0]
[null,null,null,null,null,0]
[null,null,null,null,null,0]
[null,null,null,null,null,0]
[null,null,null,null,null,0]
[null,null,null,null,null,0]
[null,null,null,null,null,0]
[null,null,null,null,null,0]
[null,null,null,null,null,0]
[null,null,null,null,null,0]
[null,null,null,null,null,0]
[null,null,null,null,null,0]
[null,null,null,null,null,0]
[null,null,null,null,null,0]
[null,null,null,null,null,0]
[null,null,null,null,null,0]
[null,null,null,null,null,0]
[null,null,null,null,null,0]
[null,null,null,null,null,0]
[null,null,null,null,null,0]
[null,null,null,null,null,0]
[null,null,null,null,null,0]
[null,null,null,null,null,0]
[null,null,null,null,null,0]
[null,null,null,null,null,0]
[null,null,null,null,null,0]
[null,null,null,null,null,0]
[null,null,null,null,null,0]
[null,null,null,null,null,0]
[null,null,null,null,null,0]
[null,null,null,null,null,0]
[null,null,null,null,null,0]
[null,null,null,null,null,{"$f":"D388*E388","v":0}]
[null,null,null,null,null,0]
[null,null,null,null,null,0]
[null,null,null,null,null,0]
[null,null,null,null,null,0]
[null,null,null,null,null,0]
[null,null,null,null,null,0]
[null,null,null,null,null,0]
[null,null,null,null,null,0]
[null,null,null,null,null,0]
[null,null,null,null,null,0]
[null,null,null,null,null,0]
[null,null,null,null,null,0]
[null,null,null,null,null,0]
[null,null,null,null,null,0]
[null,null,null,null,null,0]
[null,null,null,null,null,0]
[null,null,null,null,null,0]
[null,null,null,null,null,0]
[null,null,null,null,null,0]
[null,null,null,null,null,0]
[null,null,null,null,null,0]
[null,null,null,null,null,0]
[null,null,null,null,null,0]
[null,null,null,null,null,0]
[null,null,null,null,null,0]
[null,null,null,null,null,0]
[null,null,null,null,null,0]
[null,null,null,null,null,0]
[null,null,null,null,null,0]
[null,null,null,null,null,0]
[null,null,null,null,null,0]
[null,null,null,null,null,0]
[null,null,null,null,null,0]
[null,null,null,null,null,0]
[null,null,null,null,null,0]
[null,null,null,null,null,0]
[null,null,null,null,null,0]
[null,null,null,null,null,0]
[null,null,null,null,null,0]
[null,null,null,null,null,0]
[null,null,null,null,null,0]
[null,null,null,null,null,0]
[null,null,null,null,null,0]
[null,null,null,null,null,0]
[null,null,null,null,null,0]
[null,null,null,null,null,0]
[null,null,null,null,null,0]
[null,null,null,null,null,0]
[null,null,null,null,null,0]
[null,null,null,null,null,0]
[null,null,null,null,null,0]
[null,null,null,null,null,0]
[null,null,null,null,null,0]
[null,null,null,null,null,0]
[null,null,null,null,null,0]
[null,null,null,null,null,0]
[null,null,null,null,null,0]
[null,null,null,null,null,0]
[null,null,null,null,null,0]
[null,null,null,null,null,0]
[null,null,null,null,null,0]
[null,null,null,null,null,0]
[null,null,null,null,null,0]
[null,null,null,null,null,{"$f":"D452*E452","v":0}]
[null,null,null,null,null,0]
[null,null,null,null,null,0]
[null,null,null,null,null,0]
[null,null,null,null,null,0]
[null,null,null,null,null,0]
[null,null,null,null,null,0]
[null,null,null,null,null,0]
[null,null,null,null,null,0]
[null,null,null,null,null,0]
[null,null,null,null,null,0]
[null,null,null,null,null,0]
[null,null,null,null,null,0]
[null,null,null,null,null,0]
[null,null,null,null,null,0]
[null,null,null,null,null,0]
[null,null,null,null,null,0]
[null,null,null,null,null,0]
[null,null,null,null,null,0]
[null,null,null,null,null,0]
[null,null,null,null,null,0]
[null,null,null,null,null,0]
[null,null,null,null,null,0]
[null,null,null,null,null,0]
[null,null,null,null,null,0]
[null,null,null,null,null,0]
[null,null,null,null,null,0]
[null,null,null,null,null,0]
[null,null,null,null,null,0]
[null,null,null,null,null,0]
[null,null,null,null,null,0]
[null,null,null,null,null,0]
[null,null,null,null,null,0]
[null,null,null,null,null,0]
[null,null,null,null,null,0]
[null,null,null,null,null,0]
[null,null,null,null,null,0]
[null,null,null,null,null,0]
[null,null,null,null,null,0]
[null,null,null,null,null,0]
[null,null,null,null,null,0]
[null,null,null,null,null,0]
[null,null,null,null,null,0]
[null,null,null,null,null,0]
[null,null,null,null,null,0]
[null,null,null,null,null,0]
[null,null,null,null,null,0]
[null,null,null,null,null,0]
[null,null,null,null,null,0]
[null,null,null,null,null,0]
[null,null,null,null,null,0]
[null,null,null,null,null,0]
[null,null,null,null,null,0]
[null,null,null,null,null,0]
[null,null,null,null,null,0]
[null,null,null,null,null,0]
[null,null,null,null,null,0]
[null,null,null,null,null,0]
[null,null,null,null,null,0]
[null,null,null,null,null,0]
[null,null,null,null,null,0]
[null,null,null,null,null,0]
[null,null,null,null,null,0]
[null,null,null,null,null,0]
[null,null,null,null,null,{"$f":"D516*E516","v":0}]
[null,null,null,null,null,0]
[null,null,null,null,null,0]
[null,null,null,null,null,0]
[null,null,null,null,null,0]
[null,null,null,null,null,0]

{"sheet":"Significance & Likelihood","index":4,"n_rows":0,"n_cols":0,"rows_kept":0,"cut":false,"hidden":true,"merged":[]}

{"sheet":"HeatMap","index":5,"n_rows":398,"n_cols":5,"rows_kept":398,"cut":false,"hidden":false,"merged":[[32,4,32,15]]}
["ID Number","Likelihood [1-5]","Significance [1-5]"]
[{"$f":"'Risk Assessment Matrix'!A4","v":123},{"$f":"'Risk Assessment Matrix'!D4","v":4},{"$f":"'Risk Assessment Matrix'!E4","v":4}]
[{"$f":"'Risk Assessment Matrix'!A5","v":0},{"$f":"'Risk Assessment Matrix'!D5","v":0},{"$f":"'Risk Assessment Matrix'!E5","v":0}]
[{"$f":"'Risk Assessment Matrix'!A6","v":0},{"$f":"'Risk Assessment Matrix'!D6","v":0},{"$f":"'Risk Assessment Matrix'!E6","v":0}]
[{"$f":"'Risk Assessment Matrix'!A7","v":0},{"$f":"'Risk Assessment Matrix'!D7","v":0},{"$f":"'Risk Assessment Matrix'!E7","v":0}]
[{"$f":"'Risk Assessment Matrix'!A8","v":0},{"$f":"'Risk Assessment Matrix'!D8","v":0},{"$f":"'Risk Assessment Matrix'!E8","v":0}]
[{"$f":"'Risk Assessment Matrix'!A9","v":0},{"$f":"'Risk Assessment Matrix'!D9","v":0},{"$f":"'Risk Assessment Matrix'!E9","v":0}]
[{"$f":"'Risk Assessment Matrix'!A10","v":0},{"$f":"'Risk Assessment Matrix'!D10","v":0},{"$f":"'Risk Assessment Matrix'!E10","v":0}]
[{"$f":"'Risk Assessment Matrix'!A11","v":0},{"$f":"'Risk Assessment Matrix'!D11","v":0},{"$f":"'Risk Assessment Matrix'!E11","v":0}]
[{"$f":"'Risk Assessment Matrix'!A12","v":0},{"$f":"'Risk Assessment Matrix'!D12","v":0},{"$f":"'Risk Assessment Matrix'!E12","v":0}]
[{"$f":"'Risk Assessment Matrix'!A13","v":0},{"$f":"'Risk Assessment Matrix'!D13","v":0},{"$f":"'Risk Assessment Matrix'!E13","v":0}]
[{"$f":"'Risk Assessment Matrix'!A14","v":0},{"$f":"'Risk Assessment Matrix'!D14","v":0},{"$f":"'Risk Assessment Matrix'!E14","v":0}]
[{"$f":"'Risk Assessment Matrix'!A15","v":0},{"$f":"'Risk Assessment Matrix'!D15","v":0},{"$f":"'Risk Assessment Matrix'!E15","v":0}]
[{"$f":"'Risk Assessment Matrix'!A16","v":0},{"$f":"'Risk Assessment Matrix'!D16","v":0},{"$f":"'Risk Assessment Matrix'!E16","v":0}]
[{"$f":"'Risk Assessment Matrix'!A17","v":0},{"$f":"'Risk Assessment Matrix'!D17","v":0},{"$f":"'Risk Assessment Matrix'!E17","v":0}]
[{"$f":"'Risk Assessment Matrix'!A18","v":0},{"$f":"'Risk Assessment Matrix'!D18","v":0},{"$f":"'Risk Assessment Matrix'!E18","v":0}]
[{"$f":"'Risk Assessment Matrix'!A19","v":0},{"$f":"'Risk Assessment Matrix'!D19","v":0},{"$f":"'Risk Assessment Matrix'!E19","v":0}]
[{"$f":"'Risk Assessment Matrix'!A20","v":0},{"$f":"'Risk Assessment Matrix'!D20","v":0},{"$f":"'Risk Assessment Matrix'!E20","v":0}]
[{"$f":"'Risk Assessment Matrix'!A21","v":0},{"$f":"'Risk Assessment Matrix'!D21","v":0},{"$f":"'Risk Assessment Matrix'!E21","v":0}]
[{"$f":"'Risk Assessment Matrix'!A22","v":0},{"$f":"'Risk Assessment Matrix'!D22","v":0},{"$f":"'Risk Assessment Matrix'!E22","v":0}]
[{"$f":"'Risk Assessment Matrix'!A23","v":0},{"$f":"'Risk Assessment Matrix'!D23","v":0},{"$f":"'Risk Assessment Matrix'!E23","v":0}]
[{"$f":"'Risk Assessment Matrix'!A24","v":0},{"$f":"'Risk Assessment Matrix'!D24","v":0},{"$f":"'Risk Assessment Matrix'!E24","v":0}]
[{"$f":"'Risk Assessment Matrix'!A25","v":0},{"$f":"'Risk Assessment Matrix'!D25","v":0},{"$f":"'Risk Assessment Matrix'!E25","v":0}]
[{"$f":"'Risk Assessment Matrix'!A26","v":0},{"$f":"'Risk Assessment Matrix'!D26","v":0},{"$f":"'Risk Assessment Matrix'!E26","v":0}]
[{"$f":"'Risk Assessment Matrix'!A27","v":0},{"$f":"'Risk Assessment Matrix'!D27","v":0},{"$f":"'Risk Assessment Matrix'!E27","v":0}]
[{"$f":"'Risk Assessment Matrix'!A28","v":0},{"$f":"'Risk Assessment Matrix'!D28","v":0},{"$f":"'Risk Assessment Matrix'!E28","v":0}]
[{"$f":"'Risk Assessment Matrix'!A29","v":0},{"$f":"'Risk Assessment Matrix'!D29","v":0},{"$f":"'Risk Assessment Matrix'!E29","v":0}]
[{"$f":"'Risk Assessment Matrix'!A30","v":0},{"$f":"'Risk Assessment Matrix'!D30","v":0},{"$f":"'Risk Assessment Matrix'!E30","v":0}]
[{"$f":"'Risk Assessment Matrix'!A31","v":0},{"$f":"'Risk Assessment Matrix'!D31","v":0},{"$f":"'Risk Assessment Matrix'!E31","v":0}]
[{"$f":"'Risk Assessment Matrix'!A32","v":0},{"$f":"'Risk Assessment Matrix'!D32","v":0},{"$f":"'Risk Assessment Matrix'!E32","v":0}]
[{"$f":"'Risk Assessment Matrix'!A33","v":0},{"$f":"'Risk Assessment Matrix'!D33","v":0},{"$f":"'Risk Assessment Matrix'!E33","v":0}]
[{"$f":"'Risk Assessment Matrix'!A34","v":0},{"$f":"'Risk Assessment Matrix'!D34","v":0},{"$f":"'Risk Assessment Matrix'!E34","v":0}]
[{"$f":"'Risk Assessment Matrix'!A35","v":0},{"$f":"'Risk Assessment Matrix'!D35","v":0},{"$f":"'Risk Assessment Matrix'!E35","v":0},null,"LIKELIHOOD"]
[{"$f":"'Risk Assessment Matrix'!A36","v":0},{"$f":"'Risk Assessment Matrix'!D36","v":0},{"$f":"'Risk Assessment Matrix'!E36","v":0}]
[{"$f":"'Risk Assessment Matrix'!A37","v":0},{"$f":"'Risk Assessment Matrix'!D37","v":0},{"$f":"'Risk Assessment Matrix'!E37","v":0}]
[{"$f":"'Risk Assessment Matrix'!A38","v":0},{"$f":"'Risk Assessment Matrix'!D38","v":0},{"$f":"'Risk Assessment Matrix'!E38","v":0}]
[{"$f":"'Risk Assessment Matrix'!A39","v":0},{"$f":"'Risk Assessment Matrix'!D39","v":0},{"$f":"'Risk Assessment Matrix'!E39","v":0}]
[{"$f":"'Risk Assessment Matrix'!A40","v":0},{"$f":"'Risk Assessment Matrix'!D40","v":0},{"$f":"'Risk Assessment Matrix'!E40","v":0}]
[{"$f":"'Risk Assessment Matrix'!A41","v":0},{"$f":"'Risk Assessment Matrix'!D41","v":0},{"$f":"'Risk Assessment Matrix'!E41","v":0}]
[{"$f":"'Risk Assessment Matrix'!A42","v":0},{"$f":"'Risk Assessment Matrix'!D42","v":0},{"$f":"'Risk Assessment Matrix'!E42","v":0}]
[{"$f":"'Risk Assessment Matrix'!A43","v":0},{"$f":"'Risk Assessment Matrix'!D43","v":0},{"$f":"'Risk Assessment Matrix'!E43","v":0}]
[{"$f":"'Risk Assessment Matrix'!A44","v":0},{"$f":"'Risk Assessment Matrix'!D44","v":0},{"$f":"'Risk Assessment Matrix'!E44","v":0}]
[{"$f":"'Risk Assessment Matrix'!A45","v":0},{"$f":"'Risk Assessment Matrix'!D45","v":0},{"$f":"'Risk Assessment Matrix'!E45","v":0}]
[{"$f":"'Risk Assessment Matrix'!A46","v":0},{"$f":"'Risk Assessment Matrix'!D46","v":0},{"$f":"'Risk Assessment Matrix'!E46","v":0}]
[{"$f":"'Risk Assessment Matrix'!A47","v":0},{"$f":"'Risk Assessment Matrix'!D47","v":0},{"$f":"'Risk Assessment Matrix'!E47","v":0}]
[{"$f":"'Risk Assessment Matrix'!A48","v":0},{"$f":"'Risk Assessment Matrix'!D48","v":0},{"$f":"'Risk Assessment Matrix'!E48","v":0}]
[{"$f":"'Risk Assessment Matrix'!A49","v":0},{"$f":"'Risk Assessment Matrix'!D49","v":0},{"$f":"'Risk Assessment Matrix'!E49","v":0}]
[{"$f":"'Risk Assessment Matrix'!A50","v":0},{"$f":"'Risk Assessment Matrix'!D50","v":0},{"$f":"'Risk Assessment Matrix'!E50","v":0}]
[{"$f":"'Risk Assessment Matrix'!A51","v":0},{"$f":"'Risk Assessment Matrix'!D51","v":0},{"$f":"'Risk Assessment Matrix'!E51","v":0}]
[{"$f":"'Risk Assessment Matrix'!A52","v":0},{"$f":"'Risk Assessment Matrix'!D52","v":0},{"$f":"'Risk Assessment Matrix'!E52","v":0}]
[{"$f":"'Risk Assessment Matrix'!A53","v":0},{"$f":"'Risk Assessment Matrix'!D53","v":0},{"$f":"'Risk Assessment Matrix'!E53","v":0}]
[{"$f":"'Risk Assessment Matrix'!A54","v":0},{"$f":"'Risk Assessment Matrix'!D54","v":0},{"$f":"'Risk Assessment Matrix'!E54","v":0}]
[{"$f":"'Risk Assessment Matrix'!A55","v":0},{"$f":"'Risk Assessment Matrix'!D55","v":0},{"$f":"'Risk Assessment Matrix'!E55","v":0}]
[{"$f":"'Risk Assessment Matrix'!A56","v":0},{"$f":"'Risk Assessment Matrix'!D56","v":0},{"$f":"'Risk Assessment Matrix'!E56","v":0}]
[{"$f":"'Risk Assessment Matrix'!A57","v":0},{"$f":"'Risk Assessment Matrix'!D57","v":0},{"$f":"'Risk Assessment Matrix'!E57","v":0}]
[{"$f":"'Risk Assessment Matrix'!A58","v":0},{"$f":"'Risk Assessment Matrix'!D58","v":0},{"$f":"'Risk Assessment Matrix'!E58","v":0}]
[{"$f":"'Risk Assessment Matrix'!A59","v":0},{"$f":"'Risk Assessment Matrix'!D59","v":0},{"$f":"'Risk Assessment Matrix'!E59","v":0}]
[{"$f":"'Risk Assessment Matrix'!A60","v":0},{"$f":"'Risk Assessment Matrix'!D60","v":0},{"$f":"'Risk Assessment Matrix'!E60","v":0}]
[{"$f":"'Risk Assessment Matrix'!A61","v":0},{"$f":"'Risk Assessment Matrix'!D61","v":0},{"$f":"'Risk Assessment Matrix'!E61","v":0}]
[{"$f":"'Risk Assessment Matrix'!A62","v":0},{"$f":"'Risk Assessment Matrix'!D62","v":0},{"$f":"'Risk Assessment Matrix'!E62","v":0}]
[{"$f":"'Risk Assessment Matrix'!A63","v":0},{"$f":"'Risk Assessment Matrix'!D63","v":0},{"$f":"'Risk Assessment Matrix'!E63","v":0}]
[{"$f":"'Risk Assessment Matrix'!A64","v":0},{"$f":"'Risk Assessment Matrix'!D64","v":0},{"$f":"'Risk Assessment Matrix'!E64","v":0}]
[{"$f":"'Risk Assessment Matrix'!A65","v":0},{"$f":"'Risk Assessment Matrix'!D65","v":0},{"$f":"'Risk Assessment Matrix'!E65","v":0}]
[{"$f":"'Risk Assessment Matrix'!A66","v":0},{"$f":"'Risk Assessment Matrix'!D66","v":0},{"$f":"'Risk Assessment Matrix'!E66","v":0}]
[{"$f":"'Risk Assessment Matrix'!A67","v":0},{"$f":"'Risk Assessment Matrix'!D67","v":0},{"$f":"'Risk Assessment Matrix'!E67","v":0}]
[{"$f":"'Risk Assessment Matrix'!A68","v":0},{"$f":"'Risk Assessment Matrix'!D68","v":0},{"$f":"'Risk Assessment Matrix'!E68","v":0}]
[{"$f":"'Risk Assessment Matrix'!A69","v":0},{"$f":"'Risk Assessment Matrix'!D69","v":0},{"$f":"'Risk Assessment Matrix'!E69","v":0}]
[{"$f":"'Risk Assessment Matrix'!A70","v":0},{"$f":"'Risk Assessment Matrix'!D70","v":0},{"$f":"'Risk Assessment Matrix'!E70","v":0}]
[{"$f":"'Risk Assessment Matrix'!A71","v":0},{"$f":"'Risk Assessment Matrix'!D71","v":0},{"$f":"'Risk Assessment Matrix'!E71","v":0}]
[{"$f":"'Risk Assessment Matrix'!A72","v":0},{"$f":"'Risk Assessment Matrix'!D72","v":0},{"$f":"'Risk Assessment Matrix'!E72","v":0}]
[{"$f":"'Risk Assessment Matrix'!A73","v":0},{"$f":"'Risk Assessment Matrix'!D73","v":0},{"$f":"'Risk Assessment Matrix'!E73","v":0}]
[{"$f":"'Risk Assessment Matrix'!A74","v":0},{"$f":"'Risk Assessment Matrix'!D74","v":0},{"$f":"'Risk Assessment Matrix'!E74","v":0}]
[{"$f":"'Risk Assessment Matrix'!A75","v":0},{"$f":"'Risk Assessment Matrix'!D75","v":0},{"$f":"'Risk Assessment Matrix'!E75","v":0}]
[{"$f":"'Risk Assessment Matrix'!A76","v":0},{"$f":"'Risk Assessment Matrix'!D76","v":0},{"$f":"'Risk Assessment Matrix'!E76","v":0}]
[{"$f":"'Risk Assessment Matrix'!A77","v":0},{"$f":"'Risk Assessment Matrix'!D77","v":0},{"$f":"'Risk Assessment Matrix'!E77","v":0}]
[{"$f":"'Risk Assessment Matrix'!A78","v":0},{"$f":"'Risk Assessment Matrix'!D78","v":0},{"$f":"'Risk Assessment Matrix'!E78","v":0}]
[{"$f":"'Risk Assessment Matrix'!A79","v":0},{"$f":"'Risk Assessment Matrix'!D79","v":0},{"$f":"'Risk Assessment Matrix'!E79","v":0}]
[{"$f":"'Risk Assessment Matrix'!A80","v":0},{"$f":"'Risk Assessment Matrix'!D80","v":0},{"$f":"'Risk Assessment Matrix'!E80","v":0}]
[{"$f":"'Risk Assessment Matrix'!A81","v":0},{"$f":"'Risk Assessment Matrix'!D81","v":0},{"$f":"'Risk Assessment Matrix'!E81","v":0}]
[{"$f":"'Risk Assessment Matrix'!A82","v":0},{"$f":"'Risk Assessment Matrix'!D82","v":0},{"$f":"'Risk Assessment Matrix'!E82","v":0}]
[{"$f":"'Risk Assessment Matrix'!A83","v":0},{"$f":"'Risk Assessment Matrix'!D83","v":0},{"$f":"'Risk Assessment Matrix'!E83","v":0}]
[{"$f":"'Risk Assessment Matrix'!A84","v":0},{"$f":"'Risk Assessment Matrix'!D84","v":0},{"$f":"'Risk Assessment Matrix'!E84","v":0}]
[{"$f":"'Risk Assessment Matrix'!A85","v":0},{"$f":"'Risk Assessment Matrix'!D85","v":0},{"$f":"'Risk Assessment Matrix'!E85","v":0}]
[{"$f":"'Risk Assessment Matrix'!A86","v":0},{"$f":"'Risk Assessment Matrix'!D86","v":0},{"$f":"'Risk Assessment Matrix'!E86","v":0}]
[{"$f":"'Risk Assessment Matrix'!A87","v":0},{"$f":"'Risk Assessment Matrix'!D87","v":0},{"$f":"'Risk Assessment Matrix'!E87","v":0}]
[{"$f":"'Risk Assessment Matrix'!A88","v":0},{"$f":"'Risk Assessment Matrix'!D88","v":0},{"$f":"'Risk Assessment Matrix'!E88","v":0}]
[{"$f":"'Risk Assessment Matrix'!A89","v":0},{"$f":"'Risk Assessment Matrix'!D89","v":0},{"$f":"'Risk Assessment Matrix'!E89","v":0}]
[{"$f":"'Risk Assessment Matrix'!A90","v":0},{"$f":"'Risk Assessment Matrix'!D90","v":0},{"$f":"'Risk Assessment Matrix'!E90","v":0}]
[{"$f":"'Risk Assessment Matrix'!A91","v":0},{"$f":"'Risk Assessment Matrix'!D91","v":0},{"$f":"'Risk Assessment Matrix'!E91","v":0}]
[{"$f":"'Risk Assessment Matrix'!A92","v":0},{"$f":"'Risk Assessment Matrix'!D92","v":0},{"$f":"'Risk Assessment Matrix'!E92","v":0}]
[{"$f":"'Risk Assessment Matrix'!A93","v":0},{"$f":"'Risk Assessment Matrix'!D93","v":0},{"$f":"'Risk Assessment Matrix'!E93","v":0}]
[{"$f":"'Risk Assessment Matrix'!A94","v":0},{"$f":"'Risk Assessment Matrix'!D94","v":0},{"$f":"'Risk Assessment Matrix'!E94","v":0}]
[{"$f":"'Risk Assessment Matrix'!A95","v":0},{"$f":"'Risk Assessment Matrix'!D95","v":0},{"$f":"'Risk Assessment Matrix'!E95","v":0}]
[{"$f":"'Risk Assessment Matrix'!A96","v":0},{"$f":"'Risk Assessment Matrix'!D96","v":0},{"$f":"'Risk Assessment Matrix'!E96","v":0}]
[{"$f":"'Risk Assessment Matrix'!A97","v":0},{"$f":"'Risk Assessment Matrix'!D97","v":0},{"$f":"'Risk Assessment Matrix'!E97","v":0}]
[{"$f":"'Risk Assessment Matrix'!A98","v":0},{"$f":"'Risk Assessment Matrix'!D98","v":0},{"$f":"'Risk Assessment Matrix'!E98","v":0}]
[{"$f":"'Risk Assessment Matrix'!A99","v":0},{"$f":"'Risk Assessment Matrix'!D99","v":0},{"$f":"'Risk Assessment Matrix'!E99","v":0}]
[{"$f":"'Risk Assessment Matrix'!A100","v":0},{"$f":"'Risk Assessment Matrix'!D100","v":0},{"$f":"'Risk Assessment Matrix'!E100","v":0}]
[{"$f":"'Risk Assessment Matrix'!A101","v":0},{"$f":"'Risk Assessment Matrix'!D101","v":0},{"$f":"'Risk Assessment Matrix'!E101","v":0}]
[{"$f":"'Risk Assessment Matrix'!A102","v":0},{"$f":"'Risk Assessment Matrix'!D102","v":0},{"$f":"'Risk Assessment Matrix'!E102","v":0}]
[{"$f":"'Risk Assessment Matrix'!A103","v":0},{"$f":"'Risk Assessment Matrix'!D103","v":0},{"$f":"'Risk Assessment Matrix'!E103","v":0}]
[{"$f":"'Risk Assessment Matrix'!A104","v":0},{"$f":"'Risk Assessment Matrix'!D104","v":0},{"$f":"'Risk Assessment Matrix'!E104","v":0}]
[{"$f":"'Risk Assessment Matrix'!A105","v":0},{"$f":"'Risk Assessment Matrix'!D105","v":0},{"$f":"'Risk Assessment Matrix'!E105","v":0}]
[{"$f":"'Risk Assessment Matrix'!A106","v":0},{"$f":"'Risk Assessment Matrix'!D106","v":0},{"$f":"'Risk Assessment Matrix'!E106","v":0}]
[{"$f":"'Risk Assessment Matrix'!A107","v":0},{"$f":"'Risk Assessment Matrix'!D107","v":0},{"$f":"'Risk Assessment Matrix'!E107","v":0}]
[{"$f":"'Risk Assessment Matrix'!A108","v":0},{"$f":"'Risk Assessment Matrix'!D108","v":0},{"$f":"'Risk Assessment Matrix'!E108","v":0}]
[{"$f":"'Risk Assessment Matrix'!A109","v":0},{"$f":"'Risk Assessment Matrix'!D109","v":0},{"$f":"'Risk Assessment Matrix'!E109","v":0}]
[{"$f":"'Risk Assessment Matrix'!A110","v":0},{"$f":"'Risk Assessment Matrix'!D110","v":0},{"$f":"'Risk Assessment Matrix'!E110","v":0}]
[{"$f":"'Risk Assessment Matrix'!A111","v":0},{"$f":"'Risk Assessment Matrix'!D111","v":0},{"$f":"'Risk Assessment Matrix'!E111","v":0}]
[{"$f":"'Risk Assessment Matrix'!A112","v":0},{"$f":"'Risk Assessment Matrix'!D112","v":0},{"$f":"'Risk Assessment Matrix'!E112","v":0}]
[{"$f":"'Risk Assessment Matrix'!A113","v":0},{"$f":"'Risk Assessment Matrix'!D113","v":0},{"$f":"'Risk Assessment Matrix'!E113","v":0}]
[{"$f":"'Risk Assessment Matrix'!A114","v":0},{"$f":"'Risk Assessment Matrix'!D114","v":0},{"$f":"'Risk Assessment Matrix'!E114","v":0}]
[{"$f":"'Risk Assessment Matrix'!A115","v":0},{"$f":"'Risk Assessment Matrix'!D115","v":0},{"$f":"'Risk Assessment Matrix'!E115","v":0}]
[{"$f":"'Risk Assessment Matrix'!A116","v":0},{"$f":"'Risk Assessment Matrix'!D116","v":0},{"$f":"'Risk Assessment Matrix'!E116","v":0}]
[{"$f":"'Risk Assessment Matrix'!A117","v":0},{"$f":"'Risk Assessment Matrix'!D117","v":0},{"$f":"'Risk Assessment Matrix'!E117","v":0}]
[{"$f":"'Risk Assessment Matrix'!A118","v":0},{"$f":"'Risk Assessment Matrix'!D118","v":0},{"$f":"'Risk Assessment Matrix'!E118","v":0}]
[{"$f":"'Risk Assessment Matrix'!A119","v":0},{"$f":"'Risk Assessment Matrix'!D119","v":0},{"$f":"'Risk Assessment Matrix'!E119","v":0}]
[{"$f":"'Risk Assessment Matrix'!A120","v":0},{"$f":"'Risk Assessment Matrix'!D120","v":0},{"$f":"'Risk Assessment Matrix'!E120","v":0}]
[{"$f":"'Risk Assessment Matrix'!A121","v":0},{"$f":"'Risk Assessment Matrix'!D121","v":0},{"$f":"'Risk Assessment Matrix'!E121","v":0}]
[{"$f":"'Risk Assessment Matrix'!A122","v":0},{"$f":"'Risk Assessment Matrix'!D122","v":0},{"$f":"'Risk Assessment Matrix'!E122","v":0}]
[{"$f":"'Risk Assessment Matrix'!A123","v":0},{"$f":"'Risk Assessment Matrix'!D123","v":0},{"$f":"'Risk Assessment Matrix'!E123","v":0}]
[{"$f":"'Risk Assessment Matrix'!A124","v":0},{"$f":"'Risk Assessment Matrix'!D124","v":0},{"$f":"'Risk Assessment Matrix'!E124","v":0}]
[{"$f":"'Risk Assessment Matrix'!A125","v":0},{"$f":"'Risk Assessment Matrix'!D125","v":0},{"$f":"'Risk Assessment Matrix'!E125","v":0}]
[{"$f":"'Risk Assessment Matrix'!A126","v":0},{"$f":"'Risk Assessment Matrix'!D126","v":0},{"$f":"'Risk Assessment Matrix'!E126","v":0}]
[{"$f":"'Risk Assessment Matrix'!A127","v":0},{"$f":"'Risk Assessment Matrix'!D127","v":0},{"$f":"'Risk Assessment Matrix'!E127","v":0}]
[{"$f":"'Risk Assessment Matrix'!A128","v":0},{"$f":"'Risk Assessment Matrix'!D128","v":0},{"$f":"'Risk Assessment Matrix'!E128","v":0}]
[{"$f":"'Risk Assessment Matrix'!A129","v":0},{"$f":"'Risk Assessment Matrix'!D129","v":0},{"$f":"'Risk Assessment Matrix'!E129","v":0}]
[{"$f":"'Risk Assessment Matrix'!A130","v":0},{"$f":"'Risk Assessment Matrix'!D130","v":0},{"$f":"'Risk Assessment Matrix'!E130","v":0}]
[{"$f":"'Risk Assessment Matrix'!A131","v":0},{"$f":"'Risk Assessment Matrix'!D131","v":0},{"$f":"'Risk Assessment Matrix'!E131","v":0}]
[{"$f":"'Risk Assessment Matrix'!A132","v":0},{"$f":"'Risk Assessment Matrix'!D132","v":0},{"$f":"'Risk Assessment Matrix'!E132","v":0}]
[{"$f":"'Risk Assessment Matrix'!A133","v":0},{"$f":"'Risk Assessment Matrix'!D133","v":0},{"$f":"'Risk Assessment Matrix'!E133","v":0}]
[{"$f":"'Risk Assessment Matrix'!A134","v":0},{"$f":"'Risk Assessment Matrix'!D134","v":0},{"$f":"'Risk Assessment Matrix'!E134","v":0}]
[{"$f":"'Risk Assessment Matrix'!A135","v":0},{"$f":"'Risk Assessment Matrix'!D135","v":0},{"$f":"'Risk Assessment Matrix'!E135","v":0}]
[{"$f":"'Risk Assessment Matrix'!A136","v":0},{"$f":"'Risk Assessment Matrix'!D136","v":0},{"$f":"'Risk Assessment Matrix'!E136","v":0}]
[{"$f":"'Risk Assessment Matrix'!A137","v":0},{"$f":"'Risk Assessment Matrix'!D137","v":0},{"$f":"'Risk Assessment Matrix'!E137","v":0}]
[{"$f":"'Risk Assessment Matrix'!A138","v":0},{"$f":"'Risk Assessment Matrix'!D138","v":0},{"$f":"'Risk Assessment Matrix'!E138","v":0}]
[{"$f":"'Risk Assessment Matrix'!A139","v":0},{"$f":"'Risk Assessment Matrix'!D139","v":0},{"$f":"'Risk Assessment Matrix'!E139","v":0}]
[{"$f":"'Risk Assessment Matrix'!A140","v":0},{"$f":"'Risk Assessment Matrix'!D140","v":0},{"$f":"'Risk Assessment Matrix'!E140","v":0}]
[{"$f":"'Risk Assessment Matrix'!A141","v":0},{"$f":"'Risk Assessment Matrix'!D141","v":0},{"$f":"'Risk Assessment Matrix'!E141","v":0}]
[{"$f":"'Risk Assessment Matrix'!A142","v":0},{"$f":"'Risk Assessment Matrix'!D142","v":0},{"$f":"'Risk Assessment Matrix'!E142","v":0}]
[{"$f":"'Risk Assessment Matrix'!A143","v":0},{"$f":"'Risk Assessment Matrix'!D143","v":0},{"$f":"'Risk Assessment Matrix'!E143","v":0}]
[{"$f":"'Risk Assessment Matrix'!A144","v":0},{"$f":"'Risk Assessment Matrix'!D144","v":0},{"$f":"'Risk Assessment Matrix'!E144","v":0}]
[{"$f":"'Risk Assessment Matrix'!A145","v":0},{"$f":"'Risk Assessment Matrix'!D145","v":0},{"$f":"'Risk Assessment Matrix'!E145","v":0}]
[{"$f":"'Risk Assessment Matrix'!A146","v":0},{"$f":"'Risk Assessment Matrix'!D146","v":0},{"$f":"'Risk Assessment Matrix'!E146","v":0}]
[{"$f":"'Risk Assessment Matrix'!A147","v":0},{"$f":"'Risk Assessment Matrix'!D147","v":0},{"$f":"'Risk Assessment Matrix'!E147","v":0}]
[{"$f":"'Risk Assessment Matrix'!A148","v":0},{"$f":"'Risk Assessment Matrix'!D148","v":0},{"$f":"'Risk Assessment Matrix'!E148","v":0}]
[{"$f":"'Risk Assessment Matrix'!A149","v":0},{"$f":"'Risk Assessment Matrix'!D149","v":0},{"$f":"'Risk Assessment Matrix'!E149","v":0}]
[{"$f":"'Risk Assessment Matrix'!A150","v":0},{"$f":"'Risk Assessment Matrix'!D150","v":0},{"$f":"'Risk Assessment Matrix'!E150","v":0}]
[{"$f":"'Risk Assessment Matrix'!A151","v":0},{"$f":"'Risk Assessment Matrix'!D151","v":0},{"$f":"'Risk Assessment Matrix'!E151","v":0}]
[{"$f":"'Risk Assessment Matrix'!A152","v":0},{"$f":"'Risk Assessment Matrix'!D152","v":0},{"$f":"'Risk Assessment Matrix'!E152","v":0}]
[{"$f":"'Risk Assessment Matrix'!A153","v":0},{"$f":"'Risk Assessment Matrix'!D153","v":0},{"$f":"'Risk Assessment Matrix'!E153","v":0}]
[{"$f":"'Risk Assessment Matrix'!A154","v":0},{"$f":"'Risk Assessment Matrix'!D154","v":0},{"$f":"'Risk Assessment Matrix'!E154","v":0}]
[{"$f":"'Risk Assessment Matrix'!A155","v":0},{"$f":"'Risk Assessment Matrix'!D155","v":0},{"$f":"'Risk Assessment Matrix'!E155","v":0}]
[{"$f":"'Risk Assessment Matrix'!A156","v":0},{"$f":"'Risk Assessment Matrix'!D156","v":0},{"$f":"'Risk Assessment Matrix'!E156","v":0}]
[{"$f":"'Risk Assessment Matrix'!A157","v":0},{"$f":"'Risk Assessment Matrix'!D157","v":0},{"$f":"'Risk Assessment Matrix'!E157","v":0}]
[{"$f":"'Risk Assessment Matrix'!A158","v":0},{"$f":"'Risk Assessment Matrix'!D158","v":0},{"$f":"'Risk Assessment Matrix'!E158","v":0}]
[{"$f":"'Risk Assessment Matrix'!A159","v":0},{"$f":"'Risk Assessment Matrix'!D159","v":0},{"$f":"'Risk Assessment Matrix'!E159","v":0}]
[{"$f":"'Risk Assessment Matrix'!A160","v":0},{"$f":"'Risk Assessment Matrix'!D160","v":0},{"$f":"'Risk Assessment Matrix'!E160","v":0}]
[{"$f":"'Risk Assessment Matrix'!A161","v":0},{"$f":"'Risk Assessment Matrix'!D161","v":0},{"$f":"'Risk Assessment Matrix'!E161","v":0}]
[{"$f":"'Risk Assessment Matrix'!A162","v":0},{"$f":"'Risk Assessment Matrix'!D162","v":0},{"$f":"'Risk Assessment Matrix'!E162","v":0}]
[{"$f":"'Risk Assessment Matrix'!A163","v":0},{"$f":"'Risk Assessment Matrix'!D163","v":0},{"$f":"'Risk Assessment Matrix'!E163","v":0}]
[{"$f":"'Risk Assessment Matrix'!A164","v":0},{"$f":"'Risk Assessment Matrix'!D164","v":0},{"$f":"'Risk Assessment Matrix'!E164","v":0}]
[{"$f":"'Risk Assessment Matrix'!A165","v":0},{"$f":"'Risk Assessment Matrix'!D165","v":0},{"$f":"'Risk Assessment Matrix'!E165","v":0}]
[{"$f":"'Risk Assessment Matrix'!A166","v":0},{"$f":"'Risk Assessment Matrix'!D166","v":0},{"$f":"'Risk Assessment Matrix'!E166","v":0}]
[{"$f":"'Risk Assessment Matrix'!A167","v":0},{"$f":"'Risk Assessment Matrix'!D167","v":0},{"$f":"'Risk Assessment Matrix'!E167","v":0}]
[{"$f":"'Risk Assessment Matrix'!A168","v":0},{"$f":"'Risk Assessment Matrix'!D168","v":0},{"$f":"'Risk Assessment Matrix'!E168","v":0}]
[{"$f":"'Risk Assessment Matrix'!A169","v":0},{"$f":"'Risk Assessment Matrix'!D169","v":0},{"$f":"'Risk Assessment Matrix'!E169","v":0}]
[{"$f":"'Risk Assessment Matrix'!A170","v":0},{"$f":"'Risk Assessment Matrix'!D170","v":0},{"$f":"'Risk Assessment Matrix'!E170","v":0}]
[{"$f":"'Risk Assessment Matrix'!A171","v":0},{"$f":"'Risk Assessment Matrix'!D171","v":0},{"$f":"'Risk Assessment Matrix'!E171","v":0}]
[{"$f":"'Risk Assessment Matrix'!A172","v":0},{"$f":"'Risk Assessment Matrix'!D172","v":0},{"$f":"'Risk Assessment Matrix'!E172","v":0}]
[{"$f":"'Risk Assessment Matrix'!A173","v":0},{"$f":"'Risk Assessment Matrix'!D173","v":0},{"$f":"'Risk Assessment Matrix'!E173","v":0}]
[{"$f":"'Risk Assessment Matrix'!A174","v":0},{"$f":"'Risk Assessment Matrix'!D174","v":0},{"$f":"'Risk Assessment Matrix'!E174","v":0}]
[{"$f":"'Risk Assessment Matrix'!A175","v":0},{"$f":"'Risk Assessment Matrix'!D175","v":0},{"$f":"'Risk Assessment Matrix'!E175","v":0}]
[{"$f":"'Risk Assessment Matrix'!A176","v":0},{"$f":"'Risk Assessment Matrix'!D176","v":0},{"$f":"'Risk Assessment Matrix'!E176","v":0}]
[{"$f":"'Risk Assessment Matrix'!A177","v":0},{"$f":"'Risk Assessment Matrix'!D177","v":0},{"$f":"'Risk Assessment Matrix'!E177","v":0}]
[{"$f":"'Risk Assessment Matrix'!A178","v":0},{"$f":"'Risk Assessment Matrix'!D178","v":0},{"$f":"'Risk Assessment Matrix'!E178","v":0}]
[{"$f":"'Risk Assessment Matrix'!A179","v":0},{"$f":"'Risk Assessment Matrix'!D179","v":0},{"$f":"'Risk Assessment Matrix'!E179","v":0}]
[{"$f":"'Risk Assessment Matrix'!A180","v":0},{"$f":"'Risk Assessment Matrix'!D180","v":0},{"$f":"'Risk Assessment Matrix'!E180","v":0}]
[{"$f":"'Risk Assessment Matrix'!A181","v":0},{"$f":"'Risk Assessment Matrix'!D181","v":0},{"$f":"'Risk Assessment Matrix'!E181","v":0}]
[{"$f":"'Risk Assessment Matrix'!A182","v":0},{"$f":"'Risk Assessment Matrix'!D182","v":0},{"$f":"'Risk Assessment Matrix'!E182","v":0}]
[{"$f":"'Risk Assessment Matrix'!A183","v":0},{"$f":"'Risk Assessment Matrix'!D183","v":0},{"$f":"'Risk Assessment Matrix'!E183","v":0}]
[{"$f":"'Risk Assessment Matrix'!A184","v":0},{"$f":"'Risk Assessment Matrix'!D184","v":0},{"$f":"'Risk Assessment Matrix'!E184","v":0}]
[{"$f":"'Risk Assessment Matrix'!A185","v":0},{"$f":"'Risk Assessment Matrix'!D185","v":0},{"$f":"'Risk Assessment Matrix'!E185","v":0}]
[{"$f":"'Risk Assessment Matrix'!A186","v":0},{"$f":"'Risk Assessment Matrix'!D186","v":0},{"$f":"'Risk Assessment Matrix'!E186","v":0}]
[{"$f":"'Risk Assessment Matrix'!A187","v":0},{"$f":"'Risk Assessment Matrix'!D187","v":0},{"$f":"'Risk Assessment Matrix'!E187","v":0}]
[{"$f":"'Risk Assessment Matrix'!A188","v":0},{"$f":"'Risk Assessment Matrix'!D188","v":0},{"$f":"'Risk Assessment Matrix'!E188","v":0}]
[{"$f":"'Risk Assessment Matrix'!A189","v":0},{"$f":"'Risk Assessment Matrix'!D189","v":0},{"$f":"'Risk Assessment Matrix'!E189","v":0}]
[{"$f":"'Risk Assessment Matrix'!A190","v":0},{"$f":"'Risk Assessment Matrix'!D190","v":0},{"$f":"'Risk Assessment Matrix'!E190","v":0}]
[{"$f":"'Risk Assessment Matrix'!A191","v":0},{"$f":"'Risk Assessment Matrix'!D191","v":0},{"$f":"'Risk Assessment Matrix'!E191","v":0}]
[{"$f":"'Risk Assessment Matrix'!A192","v":0},{"$f":"'Risk Assessment Matrix'!D192","v":0},{"$f":"'Risk Assessment Matrix'!E192","v":0}]
[{"$f":"'Risk Assessment Matrix'!A193","v":0},{"$f":"'Risk Assessment Matrix'!D193","v":0},{"$f":"'Risk Assessment Matrix'!E193","v":0}]
[{"$f":"'Risk Assessment Matrix'!A194","v":0},{"$f":"'Risk Assessment Matrix'!D194","v":0},{"$f":"'Risk Assessment Matrix'!E194","v":0}]
[{"$f":"'Risk Assessment Matrix'!A195","v":0},{"$f":"'Risk Assessment Matrix'!D195","v":0},{"$f":"'Risk Assessment Matrix'!E195","v":0}]
[{"$f":"'Risk Assessment Matrix'!A196","v":0},{"$f":"'Risk Assessment Matrix'!D196","v":0},{"$f":"'Risk Assessment Matrix'!E196","v":0}]
[{"$f":"'Risk Assessment Matrix'!A197","v":0},{"$f":"'Risk Assessment Matrix'!D197","v":0},{"$f":"'Risk Assessment Matrix'!E197","v":0}]
[{"$f":"'Risk Assessment Matrix'!A198","v":0},{"$f":"'Risk Assessment Matrix'!D198","v":0},{"$f":"'Risk Assessment Matrix'!E198","v":0}]
[{"$f":"'Risk Assessment Matrix'!A199","v":0},{"$f":"'Risk Assessment Matrix'!D199","v":0},{"$f":"'Risk Assessment Matrix'!E199","v":0}]
[{"$f":"'Risk Assessment Matrix'!A200","v":0},{"$f":"'Risk Assessment Matrix'!D200","v":0},{"$f":"'Risk Assessment Matrix'!E200","v":0}]
[{"$f":"'Risk Assessment Matrix'!A201","v":0},{"$f":"'Risk Assessment Matrix'!D201","v":0},{"$f":"'Risk Assessment Matrix'!E201","v":0}]
[{"$f":"'Risk Assessment Matrix'!A202","v":0},{"$f":"'Risk Assessment Matrix'!D202","v":0},{"$f":"'Risk Assessment Matrix'!E202","v":0}]
[{"$f":"'Risk Assessment Matrix'!A203","v":0},{"$f":"'Risk Assessment Matrix'!D203","v":0},{"$f":"'Risk Assessment Matrix'!E203","v":0}]
[{"$f":"'Risk Assessment Matrix'!A204","v":0},{"$f":"'Risk Assessment Matrix'!D204","v":0},{"$f":"'Risk Assessment Matrix'!E204","v":0}]
[{"$f":"'Risk Assessment Matrix'!A205","v":0},{"$f":"'Risk Assessment Matrix'!D205","v":0},{"$f":"'Risk Assessment Matrix'!E205","v":0}]
[{"$f":"'Risk Assessment Matrix'!A206","v":0},{"$f":"'Risk Assessment Matrix'!D206","v":0},{"$f":"'Risk Assessment Matrix'!E206","v":0}]
[{"$f":"'Risk Assessment Matrix'!A207","v":0},{"$f":"'Risk Assessment Matrix'!D207","v":0},{"$f":"'Risk Assessment Matrix'!E207","v":0}]
[{"$f":"'Risk Assessment Matrix'!A208","v":0},{"$f":"'Risk Assessment Matrix'!D208","v":0},{"$f":"'Risk Assessment Matrix'!E208","v":0}]
[{"$f":"'Risk Assessment Matrix'!A209","v":0},{"$f":"'Risk Assessment Matrix'!D209","v":0},{"$f":"'Risk Assessment Matrix'!E209","v":0}]
[{"$f":"'Risk Assessment Matrix'!A210","v":0},{"$f":"'Risk Assessment Matrix'!D210","v":0},{"$f":"'Risk Assessment Matrix'!E210","v":0}]
[{"$f":"'Risk Assessment Matrix'!A211","v":0},{"$f":"'Risk Assessment Matrix'!D211","v":0},{"$f":"'Risk Assessment Matrix'!E211","v":0}]
[{"$f":"'Risk Assessment Matrix'!A212","v":0},{"$f":"'Risk Assessment Matrix'!D212","v":0},{"$f":"'Risk Assessment Matrix'!E212","v":0}]
[{"$f":"'Risk Assessment Matrix'!A213","v":0},{"$f":"'Risk Assessment Matrix'!D213","v":0},{"$f":"'Risk Assessment Matrix'!E213","v":0}]
[{"$f":"'Risk Assessment Matrix'!A214","v":0},{"$f":"'Risk Assessment Matrix'!D214","v":0},{"$f":"'Risk Assessment Matrix'!E214","v":0}]
[{"$f":"'Risk Assessment Matrix'!A215","v":0},{"$f":"'Risk Assessment Matrix'!D215","v":0},{"$f":"'Risk Assessment Matrix'!E215","v":0}]
[{"$f":"'Risk Assessment Matrix'!A216","v":0},{"$f":"'Risk Assessment Matrix'!D216","v":0},{"$f":"'Risk Assessment Matrix'!E216","v":0}]
[{"$f":"'Risk Assessment Matrix'!A217","v":0},{"$f":"'Risk Assessment Matrix'!D217","v":0},{"$f":"'Risk Assessment Matrix'!E217","v":0}]
[{"$f":"'Risk Assessment Matrix'!A218","v":0},{"$f":"'Risk Assessment Matrix'!D218","v":0},{"$f":"'Risk Assessment Matrix'!E218","v":0}]
[{"$f":"'Risk Assessment Matrix'!A219","v":0},{"$f":"'Risk Assessment Matrix'!D219","v":0},{"$f":"'Risk Assessment Matrix'!E219","v":0}]
[{"$f":"'Risk Assessment Matrix'!A220","v":0},{"$f":"'Risk Assessment Matrix'!D220","v":0},{"$f":"'Risk Assessment Matrix'!E220","v":0}]
[{"$f":"'Risk Assessment Matrix'!A221","v":0},{"$f":"'Risk Assessment Matrix'!D221","v":0},{"$f":"'Risk Assessment Matrix'!E221","v":0}]
[{"$f":"'Risk Assessment Matrix'!A222","v":0},{"$f":"'Risk Assessment Matrix'!D222","v":0},{"$f":"'Risk Assessment Matrix'!E222","v":0}]
[{"$f":"'Risk Assessment Matrix'!A223","v":0},{"$f":"'Risk Assessment Matrix'!D223","v":0},{"$f":"'Risk Assessment Matrix'!E223","v":0}]
[{"$f":"'Risk Assessment Matrix'!A224","v":0},{"$f":"'Risk Assessment Matrix'!D224","v":0},{"$f":"'Risk Assessment Matrix'!E224","v":0}]
[{"$f":"'Risk Assessment Matrix'!A225","v":0},{"$f":"'Risk Assessment Matrix'!D225","v":0},{"$f":"'Risk Assessment Matrix'!E225","v":0}]
[{"$f":"'Risk Assessment Matrix'!A226","v":0},{"$f":"'Risk Assessment Matrix'!D226","v":0},{"$f":"'Risk Assessment Matrix'!E226","v":0}]
[{"$f":"'Risk Assessment Matrix'!A227","v":0},{"$f":"'Risk Assessment Matrix'!D227","v":0},{"$f":"'Risk Assessment Matrix'!E227","v":0}]
[{"$f":"'Risk Assessment Matrix'!A228","v":0},{"$f":"'Risk Assessment Matrix'!D228","v":0},{"$f":"'Risk Assessment Matrix'!E228","v":0}]
[{"$f":"'Risk Assessment Matrix'!A229","v":0},{"$f":"'Risk Assessment Matrix'!D229","v":0},{"$f":"'Risk Assessment Matrix'!E229","v":0}]
[{"$f":"'Risk Assessment Matrix'!A230","v":0},{"$f":"'Risk Assessment Matrix'!D230","v":0},{"$f":"'Risk Assessment Matrix'!E230","v":0}]
[{"$f":"'Risk Assessment Matrix'!A231","v":0},{"$f":"'Risk Assessment Matrix'!D231","v":0},{"$f":"'Risk Assessment Matrix'!E231","v":0}]
[{"$f":"'Risk Assessment Matrix'!A232","v":0},{"$f":"'Risk Assessment Matrix'!D232","v":0},{"$f":"'Risk Assessment Matrix'!E232","v":0}]
[{"$f":"'Risk Assessment Matrix'!A233","v":0},{"$f":"'Risk Assessment Matrix'!D233","v":0},{"$f":"'Risk Assessment Matrix'!E233","v":0}]
[{"$f":"'Risk Assessment Matrix'!A234","v":0},{"$f":"'Risk Assessment Matrix'!D234","v":0},{"$f":"'Risk Assessment Matrix'!E234","v":0}]
[{"$f":"'Risk Assessment Matrix'!A235","v":0},{"$f":"'Risk Assessment Matrix'!D235","v":0},{"$f":"'Risk Assessment Matrix'!E235","v":0}]
[{"$f":"'Risk Assessment Matrix'!A236","v":0},{"$f":"'Risk Assessment Matrix'!D236","v":0},{"$f":"'Risk Assessment Matrix'!E236","v":0}]
[{"$f":"'Risk Assessment Matrix'!A237","v":0},{"$f":"'Risk Assessment Matrix'!D237","v":0},{"$f":"'Risk Assessment Matrix'!E237","v":0}]
[{"$f":"'Risk Assessment Matrix'!A238","v":0},{"$f":"'Risk Assessment Matrix'!D238","v":0},{"$f":"'Risk Assessment Matrix'!E238","v":0}]
[{"$f":"'Risk Assessment Matrix'!A239","v":0},{"$f":"'Risk Assessment Matrix'!D239","v":0},{"$f":"'Risk Assessment Matrix'!E239","v":0}]
[{"$f":"'Risk Assessment Matrix'!A240","v":0},{"$f":"'Risk Assessment Matrix'!D240","v":0},{"$f":"'Risk Assessment Matrix'!E240","v":0}]
[{"$f":"'Risk Assessment Matrix'!A241","v":0},{"$f":"'Risk Assessment Matrix'!D241","v":0},{"$f":"'Risk Assessment Matrix'!E241","v":0}]
[{"$f":"'Risk Assessment Matrix'!A242","v":0},{"$f":"'Risk Assessment Matrix'!D242","v":0},{"$f":"'Risk Assessment Matrix'!E242","v":0}]
[{"$f":"'Risk Assessment Matrix'!A243","v":0},{"$f":"'Risk Assessment Matrix'!D243","v":0},{"$f":"'Risk Assessment Matrix'!E243","v":0}]
[{"$f":"'Risk Assessment Matrix'!A244","v":0},{"$f":"'Risk Assessment Matrix'!D244","v":0},{"$f":"'Risk Assessment Matrix'!E244","v":0}]
[{"$f":"'Risk Assessment Matrix'!A245","v":0},{"$f":"'Risk Assessment Matrix'!D245","v":0},{"$f":"'Risk Assessment Matrix'!E245","v":0}]
[{"$f":"'Risk Assessment Matrix'!A246","v":0},{"$f":"'Risk Assessment Matrix'!D246","v":0},{"$f":"'Risk Assessment Matrix'!E246","v":0}]
[{"$f":"'Risk Assessment Matrix'!A247","v":0},{"$f":"'Risk Assessment Matrix'!D247","v":0},{"$f":"'Risk Assessment Matrix'!E247","v":0}]
[{"$f":"'Risk Assessment Matrix'!A248","v":0},{"$f":"'Risk Assessment Matrix'!D248","v":0},{"$f":"'Risk Assessment Matrix'!E248","v":0}]
[{"$f":"'Risk Assessment Matrix'!A249","v":0},{"$f":"'Risk Assessment Matrix'!D249","v":0},{"$f":"'Risk Assessment Matrix'!E249","v":0}]
[{"$f":"'Risk Assessment Matrix'!A250","v":0},{"$f":"'Risk Assessment Matrix'!D250","v":0},{"$f":"'Risk Assessment Matrix'!E250","v":0}]
[{"$f":"'Risk Assessment Matrix'!A251","v":0},{"$f":"'Risk Assessment Matrix'!D251","v":0},{"$f":"'Risk Assessment Matrix'!E251","v":0}]
[{"$f":"'Risk Assessment Matrix'!A252","v":0},{"$f":"'Risk Assessment Matrix'!D252","v":0},{"$f":"'Risk Assessment Matrix'!E252","v":0}]
[{"$f":"'Risk Assessment Matrix'!A253","v":0},{"$f":"'Risk Assessment Matrix'!D253","v":0},{"$f":"'Risk Assessment Matrix'!E253","v":0}]
[{"$f":"'Risk Assessment Matrix'!A254","v":0},{"$f":"'Risk Assessment Matrix'!D254","v":0},{"$f":"'Risk Assessment Matrix'!E254","v":0}]
[{"$f":"'Risk Assessment Matrix'!A255","v":0},{"$f":"'Risk Assessment Matrix'!D255","v":0},{"$f":"'Risk Assessment Matrix'!E255","v":0}]
[{"$f":"'Risk Assessment Matrix'!A256","v":0},{"$f":"'Risk Assessment Matrix'!D256","v":0},{"$f":"'Risk Assessment Matrix'!E256","v":0}]
[{"$f":"'Risk Assessment Matrix'!A257","v":0},{"$f":"'Risk Assessment Matrix'!D257","v":0},{"$f":"'Risk Assessment Matrix'!E257","v":0}]
[{"$f":"'Risk Assessment Matrix'!A258","v":0},{"$f":"'Risk Assessment Matrix'!D258","v":0},{"$f":"'Risk Assessment Matrix'!E258","v":0}]
[{"$f":"'Risk Assessment Matrix'!A259","v":0},{"$f":"'Risk Assessment Matrix'!D259","v":0},{"$f":"'Risk Assessment Matrix'!E259","v":0}]
[{"$f":"'Risk Assessment Matrix'!A260","v":0},{"$f":"'Risk Assessment Matrix'!D260","v":0},{"$f":"'Risk Assessment Matrix'!E260","v":0}]
[{"$f":"'Risk Assessment Matrix'!A261","v":0},{"$f":"'Risk Assessment Matrix'!D261","v":0},{"$f":"'Risk Assessment Matrix'!E261","v":0}]
[{"$f":"'Risk Assessment Matrix'!A262","v":0},{"$f":"'Risk Assessment Matrix'!D262","v":0},{"$f":"'Risk Assessment Matrix'!E262","v":0}]
[{"$f":"'Risk Assessment Matrix'!A263","v":0},{"$f":"'Risk Assessment Matrix'!D263","v":0},{"$f":"'Risk Assessment Matrix'!E263","v":0}]
[{"$f":"'Risk Assessment Matrix'!A264","v":0},{"$f":"'Risk Assessment Matrix'!D264","v":0},{"$f":"'Risk Assessment Matrix'!E264","v":0}]
[{"$f":"'Risk Assessment Matrix'!A265","v":0},{"$f":"'Risk Assessment Matrix'!D265","v":0},{"$f":"'Risk Assessment Matrix'!E265","v":0}]
[{"$f":"'Risk Assessment Matrix'!A266","v":0},{"$f":"'Risk Assessment Matrix'!D266","v":0},{"$f":"'Risk Assessment Matrix'!E266","v":0}]
[{"$f":"'Risk Assessment Matrix'!A267","v":0},{"$f":"'Risk Assessment Matrix'!D267","v":0},{"$f":"'Risk Assessment Matrix'!E267","v":0}]
[{"$f":"'Risk Assessment Matrix'!A268","v":0},{"$f":"'Risk Assessment Matrix'!D268","v":0},{"$f":"'Risk Assessment Matrix'!E268","v":0}]
[{"$f":"'Risk Assessment Matrix'!A269","v":0},{"$f":"'Risk Assessment Matrix'!D269","v":0},{"$f":"'Risk Assessment Matrix'!E269","v":0}]
[{"$f":"'Risk Assessment Matrix'!A270","v":0},{"$f":"'Risk Assessment Matrix'!D270","v":0},{"$f":"'Risk Assessment Matrix'!E270","v":0}]
[{"$f":"'Risk Assessment Matrix'!A271","v":0},{"$f":"'Risk Assessment Matrix'!D271","v":0},{"$f":"'Risk Assessment Matrix'!E271","v":0}]
[{"$f":"'Risk Assessment Matrix'!A272","v":0},{"$f":"'Risk Assessment Matrix'!D272","v":0},{"$f":"'Risk Assessment Matrix'!E272","v":0}]
[{"$f":"'Risk Assessment Matrix'!A273","v":0},{"$f":"'Risk Assessment Matrix'!D273","v":0},{"$f":"'Risk Assessment Matrix'!E273","v":0}]
[{"$f":"'Risk Assessment Matrix'!A274","v":0},{"$f":"'Risk Assessment Matrix'!D274","v":0},{"$f":"'Risk Assessment Matrix'!E274","v":0}]
[{"$f":"'Risk Assessment Matrix'!A275","v":0},{"$f":"'Risk Assessment Matrix'!D275","v":0},{"$f":"'Risk Assessment Matrix'!E275","v":0}]
[{"$f":"'Risk Assessment Matrix'!A276","v":0},{"$f":"'Risk Assessment Matrix'!D276","v":0},{"$f":"'Risk Assessment Matrix'!E276","v":0}]
[{"$f":"'Risk Assessment Matrix'!A277","v":0},{"$f":"'Risk Assessment Matrix'!D277","v":0},{"$f":"'Risk Assessment Matrix'!E277","v":0}]
[{"$f":"'Risk Assessment Matrix'!A278","v":0},{"$f":"'Risk Assessment Matrix'!D278","v":0},{"$f":"'Risk Assessment Matrix'!E278","v":0}]
[{"$f":"'Risk Assessment Matrix'!A279","v":0},{"$f":"'Risk Assessment Matrix'!D279","v":0},{"$f":"'Risk Assessment Matrix'!E279","v":0}]
[{"$f":"'Risk Assessment Matrix'!A280","v":0},{"$f":"'Risk Assessment Matrix'!D280","v":0},{"$f":"'Risk Assessment Matrix'!E280","v":0}]
[{"$f":"'Risk Assessment Matrix'!A281","v":0},{"$f":"'Risk Assessment Matrix'!D281","v":0},{"$f":"'Risk Assessment Matrix'!E281","v":0}]
[{"$f":"'Risk Assessment Matrix'!A282","v":0},{"$f":"'Risk Assessment Matrix'!D282","v":0},{"$f":"'Risk Assessment Matrix'!E282","v":0}]
[{"$f":"'Risk Assessment Matrix'!A283","v":0},{"$f":"'Risk Assessment Matrix'!D283","v":0},{"$f":"'Risk Assessment Matrix'!E283","v":0}]
[{"$f":"'Risk Assessment Matrix'!A284","v":0},{"$f":"'Risk Assessment Matrix'!D284","v":0},{"$f":"'Risk Assessment Matrix'!E284","v":0}]
[{"$f":"'Risk Assessment Matrix'!A285","v":0},{"$f":"'Risk Assessment Matrix'!D285","v":0},{"$f":"'Risk Assessment Matrix'!E285","v":0}]
[{"$f":"'Risk Assessment Matrix'!A286","v":0},{"$f":"'Risk Assessment Matrix'!D286","v":0},{"$f":"'Risk Assessment Matrix'!E286","v":0}]
[{"$f":"'Risk Assessment Matrix'!A287","v":0},{"$f":"'Risk Assessment Matrix'!D287","v":0},{"$f":"'Risk Assessment Matrix'!E287","v":0}]
[{"$f":"'Risk Assessment Matrix'!A288","v":0},{"$f":"'Risk Assessment Matrix'!D288","v":0},{"$f":"'Risk Assessment Matrix'!E288","v":0}]
[{"$f":"'Risk Assessment Matrix'!A289","v":0},{"$f":"'Risk Assessment Matrix'!D289","v":0},{"$f":"'Risk Assessment Matrix'!E289","v":0}]
[{"$f":"'Risk Assessment Matrix'!A290","v":0},{"$f":"'Risk Assessment Matrix'!D290","v":0},{"$f":"'Risk Assessment Matrix'!E290","v":0}]
[{"$f":"'Risk Assessment Matrix'!A291","v":0},{"$f":"'Risk Assessment Matrix'!D291","v":0},{"$f":"'Risk Assessment Matrix'!E291","v":0}]
[{"$f":"'Risk Assessment Matrix'!A292","v":0},{"$f":"'Risk Assessment Matrix'!D292","v":0},{"$f":"'Risk Assessment Matrix'!E292","v":0}]
[{"$f":"'Risk Assessment Matrix'!A293","v":0},{"$f":"'Risk Assessment Matrix'!D293","v":0},{"$f":"'Risk Assessment Matrix'!E293","v":0}]
[{"$f":"'Risk Assessment Matrix'!A294","v":0},{"$f":"'Risk Assessment Matrix'!D294","v":0},{"$f":"'Risk Assessment Matrix'!E294","v":0}]
[{"$f":"'Risk Assessment Matrix'!A295","v":0},{"$f":"'Risk Assessment Matrix'!D295","v":0},{"$f":"'Risk Assessment Matrix'!E295","v":0}]
[{"$f":"'Risk Assessment Matrix'!A296","v":0},{"$f":"'Risk Assessment Matrix'!D296","v":0},{"$f":"'Risk Assessment Matrix'!E296","v":0}]
[{"$f":"'Risk Assessment Matrix'!A297","v":0},{"$f":"'Risk Assessment Matrix'!D297","v":0},{"$f":"'Risk Assessment Matrix'!E297","v":0}]
[{"$f":"'Risk Assessment Matrix'!A298","v":0},{"$f":"'Risk Assessment Matrix'!D298","v":0},{"$f":"'Risk Assessment Matrix'!E298","v":0}]
[{"$f":"'Risk Assessment Matrix'!A299","v":0},{"$f":"'Risk Assessment Matrix'!D299","v":0},{"$f":"'Risk Assessment Matrix'!E299","v":0}]
[{"$f":"'Risk Assessment Matrix'!A300","v":0},{"$f":"'Risk Assessment Matrix'!D300","v":0},{"$f":"'Risk Assessment Matrix'!E300","v":0}]
[{"$f":"'Risk Assessment Matrix'!A301","v":0},{"$f":"'Risk Assessment Matrix'!D301","v":0},{"$f":"'Risk Assessment Matrix'!E301","v":0}]
[{"$f":"'Risk Assessment Matrix'!A302","v":0},{"$f":"'Risk Assessment Matrix'!D302","v":0},{"$f":"'Risk Assessment Matrix'!E302","v":0}]
[{"$f":"'Risk Assessment Matrix'!A303","v":0},{"$f":"'Risk Assessment Matrix'!D303","v":0},{"$f":"'Risk Assessment Matrix'!E303","v":0}]
[{"$f":"'Risk Assessment Matrix'!A304","v":0},{"$f":"'Risk Assessment Matrix'!D304","v":0},{"$f":"'Risk Assessment Matrix'!E304","v":0}]
[{"$f":"'Risk Assessment Matrix'!A305","v":0},{"$f":"'Risk Assessment Matrix'!D305","v":0},{"$f":"'Risk Assessment Matrix'!E305","v":0}]
[{"$f":"'Risk Assessment Matrix'!A306","v":0},{"$f":"'Risk Assessment Matrix'!D306","v":0},{"$f":"'Risk Assessment Matrix'!E306","v":0}]
[{"$f":"'Risk Assessment Matrix'!A307","v":0},{"$f":"'Risk Assessment Matrix'!D307","v":0},{"$f":"'Risk Assessment Matrix'!E307","v":0}]
[{"$f":"'Risk Assessment Matrix'!A308","v":0},{"$f":"'Risk Assessment Matrix'!D308","v":0},{"$f":"'Risk Assessment Matrix'!E308","v":0}]
[{"$f":"'Risk Assessment Matrix'!A309","v":0},{"$f":"'Risk Assessment Matrix'!D309","v":0},{"$f":"'Risk Assessment Matrix'!E309","v":0}]
[{"$f":"'Risk Assessment Matrix'!A310","v":0},{"$f":"'Risk Assessment Matrix'!D310","v":0},{"$f":"'Risk Assessment Matrix'!E310","v":0}]
[{"$f":"'Risk Assessment Matrix'!A311","v":0},{"$f":"'Risk Assessment Matrix'!D311","v":0},{"$f":"'Risk Assessment Matrix'!E311","v":0}]
[{"$f":"'Risk Assessment Matrix'!A312","v":0},{"$f":"'Risk Assessment Matrix'!D312","v":0},{"$f":"'Risk Assessment Matrix'!E312","v":0}]
[{"$f":"'Risk Assessment Matrix'!A313","v":0},{"$f":"'Risk Assessment Matrix'!D313","v":0},{"$f":"'Risk Assessment Matrix'!E313","v":0}]
[{"$f":"'Risk Assessment Matrix'!A314","v":0},{"$f":"'Risk Assessment Matrix'!D314","v":0},{"$f":"'Risk Assessment Matrix'!E314","v":0}]
[{"$f":"'Risk Assessment Matrix'!A315","v":0},{"$f":"'Risk Assessment Matrix'!D315","v":0},{"$f":"'Risk Assessment Matrix'!E315","v":0}]
[{"$f":"'Risk Assessment Matrix'!A316","v":0},{"$f":"'Risk Assessment Matrix'!D316","v":0},{"$f":"'Risk Assessment Matrix'!E316","v":0}]
[{"$f":"'Risk Assessment Matrix'!A317","v":0},{"$f":"'Risk Assessment Matrix'!D317","v":0},{"$f":"'Risk Assessment Matrix'!E317","v":0}]
[{"$f":"'Risk Assessment Matrix'!A318","v":0},{"$f":"'Risk Assessment Matrix'!D318","v":0},{"$f":"'Risk Assessment Matrix'!E318","v":0}]
[{"$f":"'Risk Assessment Matrix'!A319","v":0},{"$f":"'Risk Assessment Matrix'!D319","v":0},{"$f":"'Risk Assessment Matrix'!E319","v":0}]
[{"$f":"'Risk Assessment Matrix'!A320","v":0},{"$f":"'Risk Assessment Matrix'!D320","v":0},{"$f":"'Risk Assessment Matrix'!E320","v":0}]
[{"$f":"'Risk Assessment Matrix'!A321","v":0},{"$f":"'Risk Assessment Matrix'!D321","v":0},{"$f":"'Risk Assessment Matrix'!E321","v":0}]
[{"$f":"'Risk Assessment Matrix'!A322","v":0},{"$f":"'Risk Assessment Matrix'!D322","v":0},{"$f":"'Risk Assessment Matrix'!E322","v":0}]
[{"$f":"'Risk Assessment Matrix'!A323","v":0},{"$f":"'Risk Assessment Matrix'!D323","v":0},{"$f":"'Risk Assessment Matrix'!E323","v":0}]
[{"$f":"'Risk Assessment Matrix'!A324","v":0},{"$f":"'Risk Assessment Matrix'!D324","v":0},{"$f":"'Risk Assessment Matrix'!E324","v":0}]
[{"$f":"'Risk Assessment Matrix'!A325","v":0},{"$f":"'Risk Assessment Matrix'!D325","v":0},{"$f":"'Risk Assessment Matrix'!E325","v":0}]
[{"$f":"'Risk Assessment Matrix'!A326","v":0},{"$f":"'Risk Assessment Matrix'!D326","v":0},{"$f":"'Risk Assessment Matrix'!E326","v":0}]
[{"$f":"'Risk Assessment Matrix'!A327","v":0},{"$f":"'Risk Assessment Matrix'!D327","v":0},{"$f":"'Risk Assessment Matrix'!E327","v":0}]
[{"$f":"'Risk Assessment Matrix'!A328","v":0},{"$f":"'Risk Assessment Matrix'!D328","v":0},{"$f":"'Risk Assessment Matrix'!E328","v":0}]
[{"$f":"'Risk Assessment Matrix'!A329","v":0},{"$f":"'Risk Assessment Matrix'!D329","v":0},{"$f":"'Risk Assessment Matrix'!E329","v":0}]
[{"$f":"'Risk Assessment Matrix'!A330","v":0},{"$f":"'Risk Assessment Matrix'!D330","v":0},{"$f":"'Risk Assessment Matrix'!E330","v":0}]
[{"$f":"'Risk Assessment Matrix'!A331","v":0},{"$f":"'Risk Assessment Matrix'!D331","v":0},{"$f":"'Risk Assessment Matrix'!E331","v":0}]
[{"$f":"'Risk Assessment Matrix'!A332","v":0},{"$f":"'Risk Assessment Matrix'!D332","v":0},{"$f":"'Risk Assessment Matrix'!E332","v":0}]
[{"$f":"'Risk Assessment Matrix'!A333","v":0},{"$f":"'Risk Assessment Matrix'!D333","v":0},{"$f":"'Risk Assessment Matrix'!E333","v":0}]
[{"$f":"'Risk Assessment Matrix'!A334","v":0},{"$f":"'Risk Assessment Matrix'!D334","v":0},{"$f":"'Risk Assessment Matrix'!E334","v":0}]
[{"$f":"'Risk Assessment Matrix'!A335","v":0},{"$f":"'Risk Assessment Matrix'!D335","v":0},{"$f":"'Risk Assessment Matrix'!E335","v":0}]
[{"$f":"'Risk Assessment Matrix'!A336","v":0},{"$f":"'Risk Assessment Matrix'!D336","v":0},{"$f":"'Risk Assessment Matrix'!E336","v":0}]
[{"$f":"'Risk Assessment Matrix'!A337","v":0},{"$f":"'Risk Assessment Matrix'!D337","v":0},{"$f":"'Risk Assessment Matrix'!E337","v":0}]
[{"$f":"'Risk Assessment Matrix'!A338","v":0},{"$f":"'Risk Assessment Matrix'!D338","v":0},{"$f":"'Risk Assessment Matrix'!E338","v":0}]
[{"$f":"'Risk Assessment Matrix'!A339","v":0},{"$f":"'Risk Assessment Matrix'!D339","v":0},{"$f":"'Risk Assessment Matrix'!E339","v":0}]
[{"$f":"'Risk Assessment Matrix'!A340","v":0},{"$f":"'Risk Assessment Matrix'!D340","v":0},{"$f":"'Risk Assessment Matrix'!E340","v":0}]
[{"$f":"'Risk Assessment Matrix'!A341","v":0},{"$f":"'Risk Assessment Matrix'!D341","v":0},{"$f":"'Risk Assessment Matrix'!E341","v":0}]
[{"$f":"'Risk Assessment Matrix'!A342","v":0},{"$f":"'Risk Assessment Matrix'!D342","v":0},{"$f":"'Risk Assessment Matrix'!E342","v":0}]
[{"$f":"'Risk Assessment Matrix'!A343","v":0},{"$f":"'Risk Assessment Matrix'!D343","v":0},{"$f":"'Risk Assessment Matrix'!E343","v":0}]
[{"$f":"'Risk Assessment Matrix'!A344","v":0},{"$f":"'Risk Assessment Matrix'!D344","v":0},{"$f":"'Risk Assessment Matrix'!E344","v":0}]
[{"$f":"'Risk Assessment Matrix'!A345","v":0},{"$f":"'Risk Assessment Matrix'!D345","v":0},{"$f":"'Risk Assessment Matrix'!E345","v":0}]
[{"$f":"'Risk Assessment Matrix'!A346","v":0},{"$f":"'Risk Assessment Matrix'!D346","v":0},{"$f":"'Risk Assessment Matrix'!E346","v":0}]
[{"$f":"'Risk Assessment Matrix'!A347","v":0},{"$f":"'Risk Assessment Matrix'!D347","v":0},{"$f":"'Risk Assessment Matrix'!E347","v":0}]
[{"$f":"'Risk Assessment Matrix'!A348","v":0},{"$f":"'Risk Assessment Matrix'!D348","v":0},{"$f":"'Risk Assessment Matrix'!E348","v":0}]
[{"$f":"'Risk Assessment Matrix'!A349","v":0},{"$f":"'Risk Assessment Matrix'!D349","v":0},{"$f":"'Risk Assessment Matrix'!E349","v":0}]
[{"$f":"'Risk Assessment Matrix'!A350","v":0},{"$f":"'Risk Assessment Matrix'!D350","v":0},{"$f":"'Risk Assessment Matrix'!E350","v":0}]
[{"$f":"'Risk Assessment Matrix'!A351","v":0},{"$f":"'Risk Assessment Matrix'!D351","v":0},{"$f":"'Risk Assessment Matrix'!E351","v":0}]
[{"$f":"'Risk Assessment Matrix'!A352","v":0},{"$f":"'Risk Assessment Matrix'!D352","v":0},{"$f":"'Risk Assessment Matrix'!E352","v":0}]
[{"$f":"'Risk Assessment Matrix'!A353","v":0},{"$f":"'Risk Assessment Matrix'!D353","v":0},{"$f":"'Risk Assessment Matrix'!E353","v":0}]
[{"$f":"'Risk Assessment Matrix'!A354","v":0},{"$f":"'Risk Assessment Matrix'!D354","v":0},{"$f":"'Risk Assessment Matrix'!E354","v":0}]
[{"$f":"'Risk Assessment Matrix'!A355","v":0},{"$f":"'Risk Assessment Matrix'!D355","v":0},{"$f":"'Risk Assessment Matrix'!E355","v":0}]
[{"$f":"'Risk Assessment Matrix'!A356","v":0},{"$f":"'Risk Assessment Matrix'!D356","v":0},{"$f":"'Risk Assessment Matrix'!E356","v":0}]
[{"$f":"'Risk Assessment Matrix'!A357","v":0},{"$f":"'Risk Assessment Matrix'!D357","v":0},{"$f":"'Risk Assessment Matrix'!E357","v":0}]
[{"$f":"'Risk Assessment Matrix'!A358","v":0},{"$f":"'Risk Assessment Matrix'!D358","v":0},{"$f":"'Risk Assessment Matrix'!E358","v":0}]
[{"$f":"'Risk Assessment Matrix'!A359","v":0},{"$f":"'Risk Assessment Matrix'!D359","v":0},{"$f":"'Risk Assessment Matrix'!E359","v":0}]
[{"$f":"'Risk Assessment Matrix'!A360","v":0},{"$f":"'Risk Assessment Matrix'!D360","v":0},{"$f":"'Risk Assessment Matrix'!E360","v":0}]
[{"$f":"'Risk Assessment Matrix'!A361","v":0},{"$f":"'Risk Assessment Matrix'!D361","v":0},{"$f":"'Risk Assessment Matrix'!E361","v":0}]
[{"$f":"'Risk Assessment Matrix'!A362","v":0},{"$f":"'Risk Assessment Matrix'!D362","v":0},{"$f":"'Risk Assessment Matrix'!E362","v":0}]
[{"$f":"'Risk Assessment Matrix'!A363","v":0},{"$f":"'Risk Assessment Matrix'!D363","v":0},{"$f":"'Risk Assessment Matrix'!E363","v":0}]
[{"$f":"'Risk Assessment Matrix'!A364","v":0},{"$f":"'Risk Assessment Matrix'!D364","v":0},{"$f":"'Risk Assessment Matrix'!E364","v":0}]
[{"$f":"'Risk Assessment Matrix'!A365","v":0},{"$f":"'Risk Assessment Matrix'!D365","v":0},{"$f":"'Risk Assessment Matrix'!E365","v":0}]
[{"$f":"'Risk Assessment Matrix'!A366","v":0},{"$f":"'Risk Assessment Matrix'!D366","v":0},{"$f":"'Risk Assessment Matrix'!E366","v":0}]
[{"$f":"'Risk Assessment Matrix'!A367","v":0},{"$f":"'Risk Assessment Matrix'!D367","v":0},{"$f":"'Risk Assessment Matrix'!E367","v":0}]
[{"$f":"'Risk Assessment Matrix'!A368","v":0},{"$f":"'Risk Assessment Matrix'!D368","v":0},{"$f":"'Risk Assessment Matrix'!E368","v":0}]
[{"$f":"'Risk Assessment Matrix'!A369","v":0},{"$f":"'Risk Assessment Matrix'!D369","v":0},{"$f":"'Risk Assessment Matrix'!E369","v":0}]
[{"$f":"'Risk Assessment Matrix'!A370","v":0},{"$f":"'Risk Assessment Matrix'!D370","v":0},{"$f":"'Risk Assessment Matrix'!E370","v":0}]
[{"$f":"'Risk Assessment Matrix'!A371","v":0},{"$f":"'Risk Assessment Matrix'!D371","v":0},{"$f":"'Risk Assessment Matrix'!E371","v":0}]
[{"$f":"'Risk Assessment Matrix'!A372","v":0},{"$f":"'Risk Assessment Matrix'!D372","v":0},{"$f":"'Risk Assessment Matrix'!E372","v":0}]
[{"$f":"'Risk Assessment Matrix'!A373","v":0},{"$f":"'Risk Assessment Matrix'!D373","v":0},{"$f":"'Risk Assessment Matrix'!E373","v":0}]
[{"$f":"'Risk Assessment Matrix'!A374","v":0},{"$f":"'Risk Assessment Matrix'!D374","v":0},{"$f":"'Risk Assessment Matrix'!E374","v":0}]
[{"$f":"'Risk Assessment Matrix'!A375","v":0},{"$f":"'Risk Assessment Matrix'!D375","v":0},{"$f":"'Risk Assessment Matrix'!E375","v":0}]
[{"$f":"'Risk Assessment Matrix'!A376","v":0},{"$f":"'Risk Assessment Matrix'!D376","v":0},{"$f":"'Risk Assessment Matrix'!E376","v":0}]
[{"$f":"'Risk Assessment Matrix'!A377","v":0},{"$f":"'Risk Assessment Matrix'!D377","v":0},{"$f":"'Risk Assessment Matrix'!E377","v":0}]
[{"$f":"'Risk Assessment Matrix'!A378","v":0},{"$f":"'Risk Assessment Matrix'!D378","v":0},{"$f":"'Risk Assessment Matrix'!E378","v":0}]
[{"$f":"'Risk Assessment Matrix'!A379","v":0},{"$f":"'Risk Assessment Matrix'!D379","v":0},{"$f":"'Risk Assessment Matrix'!E379","v":0}]
[{"$f":"'Risk Assessment Matrix'!A380","v":0},{"$f":"'Risk Assessment Matrix'!D380","v":0},{"$f":"'Risk Assessment Matrix'!E380","v":0}]
[{"$f":"'Risk Assessment Matrix'!A381","v":0},{"$f":"'Risk Assessment Matrix'!D381","v":0},{"$f":"'Risk Assessment Matrix'!E381","v":0}]
[{"$f":"'Risk Assessment Matrix'!A382","v":0},{"$f":"'Risk Assessment Matrix'!D382","v":0},{"$f":"'Risk Assessment Matrix'!E382","v":0}]
[{"$f":"'Risk Assessment Matrix'!A383","v":0},{"$f":"'Risk Assessment Matrix'!D383","v":0},{"$f":"'Risk Assessment Matrix'!E383","v":0}]
[{"$f":"'Risk Assessment Matrix'!A384","v":0},{"$f":"'Risk Assessment Matrix'!D384","v":0},{"$f":"'Risk Assessment Matrix'!E384","v":0}]
[{"$f":"'Risk Assessment Matrix'!A385","v":0},{"$f":"'Risk Assessment Matrix'!D385","v":0},{"$f":"'Risk Assessment Matrix'!E385","v":0}]
[{"$f":"'Risk Assessment Matrix'!A386","v":0},{"$f":"'Risk Assessment Matrix'!D386","v":0},{"$f":"'Risk Assessment Matrix'!E386","v":0}]
[{"$f":"'Risk Assessment Matrix'!A387","v":0},{"$f":"'Risk Assessment Matrix'!D387","v":0},{"$f":"'Risk Assessment Matrix'!E387","v":0}]
[{"$f":"'Risk Assessment Matrix'!A388","v":0},{"$f":"'Risk Assessment Matrix'!D388","v":0},{"$f":"'Risk Assessment Matrix'!E388","v":0}]
[{"$f":"'Risk Assessment Matrix'!A389","v":0},{"$f":"'Risk Assessment Matrix'!D389","v":0},{"$f":"'Risk Assessment Matrix'!E389","v":0}]
[{"$f":"'Risk Assessment Matrix'!A390","v":0},{"$f":"'Risk Assessment Matrix'!D390","v":0},{"$f":"'Risk Assessment Matrix'!E390","v":0}]
[{"$f":"'Risk Assessment Matrix'!A391","v":0},{"$f":"'Risk Assessment Matrix'!D391","v":0},{"$f":"'Risk Assessment Matrix'!E391","v":0}]
[{"$f":"'Risk Assessment Matrix'!A392","v":0},{"$f":"'Risk Assessment Matrix'!D392","v":0},{"$f":"'Risk Assessment Matrix'!E392","v":0}]
[{"$f":"'Risk Assessment Matrix'!A393","v":0},{"$f":"'Risk Assessment Matrix'!D393","v":0},{"$f":"'Risk Assessment Matrix'!E393","v":0}]
[{"$f":"'Risk Assessment Matrix'!A394","v":0},{"$f":"'Risk Assessment Matrix'!D394","v":0},{"$f":"'Risk Assessment Matrix'!E394","v":0}]
[{"$f":"'Risk Assessment Matrix'!A395","v":0},{"$f":"'Risk Assessment Matrix'!D395","v":0},{"$f":"'Risk Assessment Matrix'!E395","v":0}]
[{"$f":"'Risk Assessment Matrix'!A396","v":0},{"$f":"'Risk Assessment Matrix'!D396","v":0},{"$f":"'Risk Assessment Matrix'!E396","v":0}]
[{"$f":"'Risk Assessment Matrix'!A397","v":0},{"$f":"'Risk Assessment Matrix'!D397","v":0},{"$f":"'Risk Assessment Matrix'!E397","v":0}]
[{"$f":"'Risk Assessment Matrix'!A398","v":0},{"$f":"'Risk Assessment Matrix'!D398","v":0},{"$f":"'Risk Assessment Matrix'!E398","v":0}]
[{"$f":"'Risk Assessment Matrix'!A399","v":0},{"$f":"'Risk Assessment Matrix'!D399","v":0},{"$f":"'Risk Assessment Matrix'!E399","v":0}]
[{"$f":"'Risk Assessment Matrix'!A400","v":0},{"$f":"'Risk Assessment Matrix'!D400","v":0},{"$f":"'Risk Assessment Matrix'!E400","v":0}]

{"sheet":"Risk Ranking","index":6,"n_rows":400,"n_cols":6,"rows_kept":400,"cut":false,"hidden":false,"merged":[[0,0,0,5]]}
[" Risk Ranking"]
[]
["ID Number","Identified  Risks and Schemes","Likelihood [1-5]","Significance [1-5]"," Risk Score","Response Plan"]
[{"$f":"'Risk Assessment Matrix'!A4","v":123},{"$f":"'Risk Assessment Matrix'!B4","v":"Completeness of Leases - GASB 87"},{"$f":"'Risk Assessment Matrix'!D4","v":4},{"$f":"'Risk Assessment Matrix'!E4","v":4},{"$f":"C4*D4","v":16},"Since Standard is new - additiaonl training to Contract management team will be provided in year 1 to ensure awareness of what accounting and finance will  need to implement standard."]
[{"$f":"'Risk Assessment Matrix'!A5","v":0},{"$f":"'Risk Assessment Matrix'!B5","v":0},{"$f":"'Risk Assessment Matrix'!D5","v":0},{"$f":"'Risk Assessment Matrix'!E5","v":0},0]
[{"$f":"'Risk Assessment Matrix'!A6","v":0},{"$f":"'Risk Assessment Matrix'!B6","v":0},{"$f":"'Risk Assessment Matrix'!D6","v":0},{"$f":"'Risk Assessment Matrix'!E6","v":0},0]
[{"$f":"'Risk Assessment Matrix'!A11","v":0},{"$f":"'Risk Assessment Matrix'!B11","v":0},{"$f":"'Risk Assessment Matrix'!D11","v":0},{"$f":"'Risk Assessment Matrix'!E11","v":0},0]
[{"$f":"'Risk Assessment Matrix'!A10","v":0},{"$f":"'Risk Assessment Matrix'!B10","v":0},{"$f":"'Risk Assessment Matrix'!D10","v":0},{"$f":"'Risk Assessment Matrix'!E10","v":0},0]
[{"$f":"'Risk Assessment Matrix'!A13","v":0},{"$f":"'Risk Assessment Matrix'!B13","v":0},{"$f":"'Risk Assessment Matrix'!D13","v":0},{"$f":"'Risk Assessment Matrix'!E13","v":0},0]
[{"$f":"'Risk Assessment Matrix'!A7","v":0},{"$f":"'Risk Assessment Matrix'!B7","v":0},{"$f":"'Risk Assessment Matrix'!D7","v":0},{"$f":"'Risk Assessment Matrix'!E7","v":0},0]
[{"$f":"'Risk Assessment Matrix'!A8","v":0},{"$f":"'Risk Assessment Matrix'!B8","v":0},{"$f":"'Risk Assessment Matrix'!D8","v":0},{"$f":"'Risk Assessment Matrix'!E8","v":0},0]
[{"$f":"'Risk Assessment Matrix'!A9","v":0},{"$f":"'Risk Assessment Matrix'!B9","v":0},{"$f":"'Risk Assessment Matrix'!D9","v":0},{"$f":"'Risk Assessment Matrix'!E9","v":0},0]
[{"$f":"'Risk Assessment Matrix'!A12","v":0},{"$f":"'Risk Assessment Matrix'!B12","v":0},{"$f":"'Risk Assessment Matrix'!D12","v":0},{"$f":"'Risk Assessment Matrix'!E12","v":0},0]
[{"$f":"'Risk Assessment Matrix'!A14","v":0},{"$f":"'Risk Assessment Matrix'!B14","v":0},{"$f":"'Risk Assessment Matrix'!D14","v":0},{"$f":"'Risk Assessment Matrix'!E14","v":0},0]
[{"$f":"'Risk Assessment Matrix'!A15","v":0},{"$f":"'Risk Assessment Matrix'!B15","v":0},{"$f":"'Risk Assessment Matrix'!D15","v":0},{"$f":"'Risk Assessment Matrix'!E15","v":0},0]
[{"$f":"'Risk Assessment Matrix'!A16","v":0},{"$f":"'Risk Assessment Matrix'!B16","v":0},{"$f":"'Risk Assessment Matrix'!D16","v":0},{"$f":"'Risk Assessment Matrix'!E16","v":0},0]
[{"$f":"'Risk Assessment Matrix'!A17","v":0},{"$f":"'Risk Assessment Matrix'!B17","v":0},{"$f":"'Risk Assessment Matrix'!D17","v":0},{"$f":"'Risk Assessment Matrix'!E17","v":0},0]
[{"$f":"'Risk Assessment Matrix'!A18","v":0},{"$f":"'Risk Assessment Matrix'!B18","v":0},{"$f":"'Risk Assessment Matrix'!D18","v":0},{"$f":"'Risk Assessment Matrix'!E18","v":0},0]
[{"$f":"'Risk Assessment Matrix'!A19","v":0},{"$f":"'Risk Assessment Matrix'!B19","v":0},{"$f":"'Risk Assessment Matrix'!D19","v":0},{"$f":"'Risk Assessment Matrix'!E19","v":0},0]
[{"$f":"'Risk Assessment Matrix'!A20","v":0},{"$f":"'Risk Assessment Matrix'!B20","v":0},{"$f":"'Risk Assessment Matrix'!D20","v":0},{"$f":"'Risk Assessment Matrix'!E20","v":0},0]
[{"$f":"'Risk Assessment Matrix'!A21","v":0},{"$f":"'Risk Assessment Matrix'!B21","v":0},{"$f":"'Risk Assessment Matrix'!D21","v":0},{"$f":"'Risk Assessment Matrix'!E21","v":0},0]
[{"$f":"'Risk Assessment Matrix'!A22","v":0},{"$f":"'Risk Assessment Matrix'!B22","v":0},{"$f":"'Risk Assessment Matrix'!D22","v":0},{"$f":"'Risk Assessment Matrix'!E22","v":0},0]
[{"$f":"'Risk Assessment Matrix'!A23","v":0},{"$f":"'Risk Assessment Matrix'!B23","v":0},{"$f":"'Risk Assessment Matrix'!D23","v":0},{"$f":"'Risk Assessment Matrix'!E23","v":0},0]
[{"$f":"'Risk Assessment Matrix'!A24","v":0},{"$f":"'Risk Assessment Matrix'!B24","v":0},{"$f":"'Risk Assessment Matrix'!D24","v":0},{"$f":"'Risk Assessment Matrix'!E24","v":0},0]
[{"$f":"'Risk Assessment Matrix'!A25","v":0},{"$f":"'Risk Assessment Matrix'!B25","v":0},{"$f":"'Risk Assessment Matrix'!D25","v":0},{"$f":"'Risk Assessment Matrix'!E25","v":0},0]
[{"$f":"'Risk Assessment Matrix'!A26","v":0},{"$f":"'Risk Assessment Matrix'!B26","v":0},{"$f":"'Risk Assessment Matrix'!D26","v":0},{"$f":"'Risk Assessment Matrix'!E26","v":0},0]
[{"$f":"'Risk Assessment Matrix'!A27","v":0},{"$f":"'Risk Assessment Matrix'!B27","v":0},{"$f":"'Risk Assessment Matrix'!D27","v":0},{"$f":"'Risk Assessment Matrix'!E27","v":0},0]
[{"$f":"'Risk Assessment Matrix'!A28","v":0},{"$f":"'Risk Assessment Matrix'!B28","v":0},{"$f":"'Risk Assessment Matrix'!D28","v":0},{"$f":"'Risk Assessment Matrix'!E28","v":0},0]
[{"$f":"'Risk Assessment Matrix'!A29","v":0},{"$f":"'Risk Assessment Matrix'!B29","v":0},{"$f":"'Risk Assessment Matrix'!D29","v":0},{"$f":"'Risk Assessment Matrix'!E29","v":0},0]
[{"$f":"'Risk Assessment Matrix'!A30","v":0},{"$f":"'Risk Assessment Matrix'!B30","v":0},{"$f":"'Risk Assessment Matrix'!D30","v":0},{"$f":"'Risk Assessment Matrix'!E30","v":0},0]
[{"$f":"'Risk Assessment Matrix'!A31","v":0},{"$f":"'Risk Assessment Matrix'!B31","v":0},{"$f":"'Risk Assessment Matrix'!D31","v":0},{"$f":"'Risk Assessment Matrix'!E31","v":0},0]
[{"$f":"'Risk Assessment Matrix'!A32","v":0},{"$f":"'Risk Assessment Matrix'!B32","v":0},{"$f":"'Risk Assessment Matrix'!D32","v":0},{"$f":"'Risk Assessment Matrix'!E32","v":0},0]
[{"$f":"'Risk Assessment Matrix'!A33","v":0},{"$f":"'Risk Assessment Matrix'!B33","v":0},{"$f":"'Risk Assessment Matrix'!D33","v":0},{"$f":"'Risk Assessment Matrix'!E33","v":0},0]
[{"$f":"'Risk Assessment Matrix'!A34","v":0},{"$f":"'Risk Assessment Matrix'!B34","v":0},{"$f":"'Risk Assessment Matrix'!D34","v":0},{"$f":"'Risk Assessment Matrix'!E34","v":0},0]
[{"$f":"'Risk Assessment Matrix'!A35","v":0},{"$f":"'Risk Assessment Matrix'!B35","v":0},{"$f":"'Risk Assessment Matrix'!D35","v":0},{"$f":"'Risk Assessment Matrix'!E35","v":0},0]
[{"$f":"'Risk Assessment Matrix'!A36","v":0},{"$f":"'Risk Assessment Matrix'!B36","v":0},{"$f":"'Risk Assessment Matrix'!D36","v":0},{"$f":"'Risk Assessment Matrix'!E36","v":0},0]
[{"$f":"'Risk Assessment Matrix'!A37","v":0},{"$f":"'Risk Assessment Matrix'!B37","v":0},{"$f":"'Risk Assessment Matrix'!D37","v":0},{"$f":"'Risk Assessment Matrix'!E37","v":0},0]
[{"$f":"'Risk Assessment Matrix'!A38","v":0},{"$f":"'Risk Assessment Matrix'!B38","v":0},{"$f":"'Risk Assessment Matrix'!D38","v":0},{"$f":"'Risk Assessment Matrix'!E38","v":0},0]
[{"$f":"'Risk Assessment Matrix'!A39","v":0},{"$f":"'Risk Assessment Matrix'!B39","v":0},{"$f":"'Risk Assessment Matrix'!D39","v":0},{"$f":"'Risk Assessment Matrix'!E39","v":0},0]
[{"$f":"'Risk Assessment Matrix'!A40","v":0},{"$f":"'Risk Assessment Matrix'!B40","v":0},{"$f":"'Risk Assessment Matrix'!D40","v":0},{"$f":"'Risk Assessment Matrix'!E40","v":0},0]
[{"$f":"'Risk Assessment Matrix'!A41","v":0},{"$f":"'Risk Assessment Matrix'!B41","v":0},{"$f":"'Risk Assessment Matrix'!D41","v":0},{"$f":"'Risk Assessment Matrix'!E41","v":0},0]
[{"$f":"'Risk Assessment Matrix'!A42","v":0},{"$f":"'Risk Assessment Matrix'!B42","v":0},{"$f":"'Risk Assessment Matrix'!D42","v":0},{"$f":"'Risk Assessment Matrix'!E42","v":0},0]
[{"$f":"'Risk Assessment Matrix'!A43","v":0},{"$f":"'Risk Assessment Matrix'!B43","v":0},{"$f":"'Risk Assessment Matrix'!D43","v":0},{"$f":"'Risk Assessment Matrix'!E43","v":0},0]
[{"$f":"'Risk Assessment Matrix'!A44","v":0},{"$f":"'Risk Assessment Matrix'!B44","v":0},{"$f":"'Risk Assessment Matrix'!D44","v":0},{"$f":"'Risk Assessment Matrix'!E44","v":0},0]
[{"$f":"'Risk Assessment Matrix'!A45","v":0},{"$f":"'Risk Assessment Matrix'!B45","v":0},{"$f":"'Risk Assessment Matrix'!D45","v":0},{"$f":"'Risk Assessment Matrix'!E45","v":0},0]
[{"$f":"'Risk Assessment Matrix'!A46","v":0},{"$f":"'Risk Assessment Matrix'!B46","v":0},{"$f":"'Risk Assessment Matrix'!D46","v":0},{"$f":"'Risk Assessment Matrix'!E46","v":0},0]
[{"$f":"'Risk Assessment Matrix'!A47","v":0},{"$f":"'Risk Assessment Matrix'!B47","v":0},{"$f":"'Risk Assessment Matrix'!D47","v":0},{"$f":"'Risk Assessment Matrix'!E47","v":0},0]
[{"$f":"'Risk Assessment Matrix'!A48","v":0},{"$f":"'Risk Assessment Matrix'!B48","v":0},{"$f":"'Risk Assessment Matrix'!D48","v":0},{"$f":"'Risk Assessment Matrix'!E48","v":0},0]
[{"$f":"'Risk Assessment Matrix'!A49","v":0},{"$f":"'Risk Assessment Matrix'!B49","v":0},{"$f":"'Risk Assessment Matrix'!D49","v":0},{"$f":"'Risk Assessment Matrix'!E49","v":0},0]
[{"$f":"'Risk Assessment Matrix'!A50","v":0},{"$f":"'Risk Assessment Matrix'!B50","v":0},{"$f":"'Risk Assessment Matrix'!D50","v":0},{"$f":"'Risk Assessment Matrix'!E50","v":0},0]
[{"$f":"'Risk Assessment Matrix'!A51","v":0},{"$f":"'Risk Assessment Matrix'!B51","v":0},{"$f":"'Risk Assessment Matrix'!D51","v":0},{"$f":"'Risk Assessment Matrix'!E51","v":0},0]
[{"$f":"'Risk Assessment Matrix'!A52","v":0},{"$f":"'Risk Assessment Matrix'!B52","v":0},{"$f":"'Risk Assessment Matrix'!D52","v":0},{"$f":"'Risk Assessment Matrix'!E52","v":0},0]
[{"$f":"'Risk Assessment Matrix'!A53","v":0},{"$f":"'Risk Assessment Matrix'!B53","v":0},{"$f":"'Risk Assessment Matrix'!D53","v":0},{"$f":"'Risk Assessment Matrix'!E53","v":0},0]
[{"$f":"'Risk Assessment Matrix'!A54","v":0},{"$f":"'Risk Assessment Matrix'!B54","v":0},{"$f":"'Risk Assessment Matrix'!D54","v":0},{"$f":"'Risk Assessment Matrix'!E54","v":0},0]
[{"$f":"'Risk Assessment Matrix'!A55","v":0},{"$f":"'Risk Assessment Matrix'!B55","v":0},{"$f":"'Risk Assessment Matrix'!D55","v":0},{"$f":"'Risk Assessment Matrix'!E55","v":0},0]
[{"$f":"'Risk Assessment Matrix'!A56","v":0},{"$f":"'Risk Assessment Matrix'!B56","v":0},{"$f":"'Risk Assessment Matrix'!D56","v":0},{"$f":"'Risk Assessment Matrix'!E56","v":0},0]
[{"$f":"'Risk Assessment Matrix'!A57","v":0},{"$f":"'Risk Assessment Matrix'!B57","v":0},{"$f":"'Risk Assessment Matrix'!D57","v":0},{"$f":"'Risk Assessment Matrix'!E57","v":0},0]
[{"$f":"'Risk Assessment Matrix'!A58","v":0},{"$f":"'Risk Assessment Matrix'!B58","v":0},{"$f":"'Risk Assessment Matrix'!D58","v":0},{"$f":"'Risk Assessment Matrix'!E58","v":0},0]
[{"$f":"'Risk Assessment Matrix'!A59","v":0},{"$f":"'Risk Assessment Matrix'!B59","v":0},{"$f":"'Risk Assessment Matrix'!D59","v":0},{"$f":"'Risk Assessment Matrix'!E59","v":0},0]
[{"$f":"'Risk Assessment Matrix'!A60","v":0},{"$f":"'Risk Assessment Matrix'!B60","v":0},{"$f":"'Risk Assessment Matrix'!D60","v":0},{"$f":"'Risk Assessment Matrix'!E60","v":0},0]
[{"$f":"'Risk Assessment Matrix'!A61","v":0},{"$f":"'Risk Assessment Matrix'!B61","v":0},{"$f":"'Risk Assessment Matrix'!D61","v":0},{"$f":"'Risk Assessment Matrix'!E61","v":0},0]
[{"$f":"'Risk Assessment Matrix'!A62","v":0},{"$f":"'Risk Assessment Matrix'!B62","v":0},{"$f":"'Risk Assessment Matrix'!D62","v":0},{"$f":"'Risk Assessment Matrix'!E62","v":0},0]
[{"$f":"'Risk Assessment Matrix'!A63","v":0},{"$f":"'Risk Assessment Matrix'!B63","v":0},{"$f":"'Risk Assessment Matrix'!D63","v":0},{"$f":"'Risk Assessment Matrix'!E63","v":0},0]
[{"$f":"'Risk Assessment Matrix'!A64","v":0},{"$f":"'Risk Assessment Matrix'!B64","v":0},{"$f":"'Risk Assessment Matrix'!D64","v":0},{"$f":"'Risk Assessment Matrix'!E64","v":0},0]
[{"$f":"'Risk Assessment Matrix'!A65","v":0},{"$f":"'Risk Assessment Matrix'!B65","v":0},{"$f":"'Risk Assessment Matrix'!D65","v":0},{"$f":"'Risk Assessment Matrix'!E65","v":0},0]
[{"$f":"'Risk Assessment Matrix'!A66","v":0},{"$f":"'Risk Assessment Matrix'!B66","v":0},{"$f":"'Risk Assessment Matrix'!D66","v":0},{"$f":"'Risk Assessment Matrix'!E66","v":0},0]
[{"$f":"'Risk Assessment Matrix'!A67","v":0},{"$f":"'Risk Assessment Matrix'!B67","v":0},{"$f":"'Risk Assessment Matrix'!D67","v":0},{"$f":"'Risk Assessment Matrix'!E67","v":0},0]
[{"$f":"'Risk Assessment Matrix'!A68","v":0},{"$f":"'Risk Assessment Matrix'!B68","v":0},{"$f":"'Risk Assessment Matrix'!D68","v":0},{"$f":"'Risk Assessment Matrix'!E68","v":0},{"$f":"C68*D68","v":0}]
[{"$f":"'Risk Assessment Matrix'!A69","v":0},{"$f":"'Risk Assessment Matrix'!B69","v":0},{"$f":"'Risk Assessment Matrix'!D69","v":0},{"$f":"'Risk Assessment Matrix'!E69","v":0},0]
[{"$f":"'Risk Assessment Matrix'!A70","v":0},{"$f":"'Risk Assessment Matrix'!B70","v":0},{"$f":"'Risk Assessment Matrix'!D70","v":0},{"$f":"'Risk Assessment Matrix'!E70","v":0},0]
[{"$f":"'Risk Assessment Matrix'!A71","v":0},{"$f":"'Risk Assessment Matrix'!B71","v":0},{"$f":"'Risk Assessment Matrix'!D71","v":0},{"$f":"'Risk Assessment Matrix'!E71","v":0},0]
[{"$f":"'Risk Assessment Matrix'!A72","v":0},{"$f":"'Risk Assessment Matrix'!B72","v":0},{"$f":"'Risk Assessment Matrix'!D72","v":0},{"$f":"'Risk Assessment Matrix'!E72","v":0},0]
[{"$f":"'Risk Assessment Matrix'!A73","v":0},{"$f":"'Risk Assessment Matrix'!B73","v":0},{"$f":"'Risk Assessment Matrix'!D73","v":0},{"$f":"'Risk Assessment Matrix'!E73","v":0},0]
[{"$f":"'Risk Assessment Matrix'!A74","v":0},{"$f":"'Risk Assessment Matrix'!B74","v":0},{"$f":"'Risk Assessment Matrix'!D74","v":0},{"$f":"'Risk Assessment Matrix'!E74","v":0},0]
[{"$f":"'Risk Assessment Matrix'!A75","v":0},{"$f":"'Risk Assessment Matrix'!B75","v":0},{"$f":"'Risk Assessment Matrix'!D75","v":0},{"$f":"'Risk Assessment Matrix'!E75","v":0},0]
[{"$f":"'Risk Assessment Matrix'!A76","v":0},{"$f":"'Risk Assessment Matrix'!B76","v":0},{"$f":"'Risk Assessment Matrix'!D76","v":0},{"$f":"'Risk Assessment Matrix'!E76","v":0},0]
[{"$f":"'Risk Assessment Matrix'!A77","v":0},{"$f":"'Risk Assessment Matrix'!B77","v":0},{"$f":"'Risk Assessment Matrix'!D77","v":0},{"$f":"'Risk Assessment Matrix'!E77","v":0},0]
[{"$f":"'Risk Assessment Matrix'!A78","v":0},{"$f":"'Risk Assessment Matrix'!B78","v":0},{"$f":"'Risk Assessment Matrix'!D78","v":0},{"$f":"'Risk Assessment Matrix'!E78","v":0},0]
[{"$f":"'Risk Assessment Matrix'!A79","v":0},{"$f":"'Risk Assessment Matrix'!B79","v":0},{"$f":"'Risk Assessment Matrix'!D79","v":0},{"$f":"'Risk Assessment Matrix'!E79","v":0},0]
[{"$f":"'Risk Assessment Matrix'!A80","v":0},{"$f":"'Risk Assessment Matrix'!B80","v":0},{"$f":"'Risk Assessment Matrix'!D80","v":0},{"$f":"'Risk Assessment Matrix'!E80","v":0},0]
[{"$f":"'Risk Assessment Matrix'!A81","v":0},{"$f":"'Risk Assessment Matrix'!B81","v":0},{"$f":"'Risk Assessment Matrix'!D81","v":0},{"$f":"'Risk Assessment Matrix'!E81","v":0},0]
[{"$f":"'Risk Assessment Matrix'!A82","v":0},{"$f":"'Risk Assessment Matrix'!B82","v":0},{"$f":"'Risk Assessment Matrix'!D82","v":0},{"$f":"'Risk Assessment Matrix'!E82","v":0},0]
[{"$f":"'Risk Assessment Matrix'!A83","v":0},{"$f":"'Risk Assessment Matrix'!B83","v":0},{"$f":"'Risk Assessment Matrix'!D83","v":0},{"$f":"'Risk Assessment Matrix'!E83","v":0},0]
[{"$f":"'Risk Assessment Matrix'!A84","v":0},{"$f":"'Risk Assessment Matrix'!B84","v":0},{"$f":"'Risk Assessment Matrix'!D84","v":0},{"$f":"'Risk Assessment Matrix'!E84","v":0},0]
[{"$f":"'Risk Assessment Matrix'!A85","v":0},{"$f":"'Risk Assessment Matrix'!B85","v":0},{"$f":"'Risk Assessment Matrix'!D85","v":0},{"$f":"'Risk Assessment Matrix'!E85","v":0},0]
[{"$f":"'Risk Assessment Matrix'!A86","v":0},{"$f":"'Risk Assessment Matrix'!B86","v":0},{"$f":"'Risk Assessment Matrix'!D86","v":0},{"$f":"'Risk Assessment Matrix'!E86","v":0},0]
[{"$f":"'Risk Assessment Matrix'!A87","v":0},{"$f":"'Risk Assessment Matrix'!B87","v":0},{"$f":"'Risk Assessment Matrix'!D87","v":0},{"$f":"'Risk Assessment Matrix'!E87","v":0},0]
[{"$f":"'Risk Assessment Matrix'!A88","v":0},{"$f":"'Risk Assessment Matrix'!B88","v":0},{"$f":"'Risk Assessment Matrix'!D88","v":0},{"$f":"'Risk Assessment Matrix'!E88","v":0},0]
[{"$f":"'Risk Assessment Matrix'!A89","v":0},{"$f":"'Risk Assessment Matrix'!B89","v":0},{"$f":"'Risk Assessment Matrix'!D89","v":0},{"$f":"'Risk Assessment Matrix'!E89","v":0},0]
[{"$f":"'Risk Assessment Matrix'!A90","v":0},{"$f":"'Risk Assessment Matrix'!B90","v":0},{"$f":"'Risk Assessment Matrix'!D90","v":0},{"$f":"'Risk Assessment Matrix'!E90","v":0},0]
[{"$f":"'Risk Assessment Matrix'!A91","v":0},{"$f":"'Risk Assessment Matrix'!B91","v":0},{"$f":"'Risk Assessment Matrix'!D91","v":0},{"$f":"'Risk Assessment Matrix'!E91","v":0},0]
[{"$f":"'Risk Assessment Matrix'!A92","v":0},{"$f":"'Risk Assessment Matrix'!B92","v":0},{"$f":"'Risk Assessment Matrix'!D92","v":0},{"$f":"'Risk Assessment Matrix'!E92","v":0},0]
[{"$f":"'Risk Assessment Matrix'!A93","v":0},{"$f":"'Risk Assessment Matrix'!B93","v":0},{"$f":"'Risk Assessment Matrix'!D93","v":0},{"$f":"'Risk Assessment Matrix'!E93","v":0},0]
[{"$f":"'Risk Assessment Matrix'!A94","v":0},{"$f":"'Risk Assessment Matrix'!B94","v":0},{"$f":"'Risk Assessment Matrix'!D94","v":0},{"$f":"'Risk Assessment Matrix'!E94","v":0},0]
[{"$f":"'Risk Assessment Matrix'!A95","v":0},{"$f":"'Risk Assessment Matrix'!B95","v":0},{"$f":"'Risk Assessment Matrix'!D95","v":0},{"$f":"'Risk Assessment Matrix'!E95","v":0},0]
[{"$f":"'Risk Assessment Matrix'!A96","v":0},{"$f":"'Risk Assessment Matrix'!B96","v":0},{"$f":"'Risk Assessment Matrix'!D96","v":0},{"$f":"'Risk Assessment Matrix'!E96","v":0},0]
[{"$f":"'Risk Assessment Matrix'!A97","v":0},{"$f":"'Risk Assessment Matrix'!B97","v":0},{"$f":"'Risk Assessment Matrix'!D97","v":0},{"$f":"'Risk Assessment Matrix'!E97","v":0},0]
[{"$f":"'Risk Assessment Matrix'!A98","v":0},{"$f":"'Risk Assessment Matrix'!B98","v":0},{"$f":"'Risk Assessment Matrix'!D98","v":0},{"$f":"'Risk Assessment Matrix'!E98","v":0},0]
[{"$f":"'Risk Assessment Matrix'!A99","v":0},{"$f":"'Risk Assessment Matrix'!B99","v":0},{"$f":"'Risk Assessment Matrix'!D99","v":0},{"$f":"'Risk Assessment Matrix'!E99","v":0},0]
[{"$f":"'Risk Assessment Matrix'!A100","v":0},{"$f":"'Risk Assessment Matrix'!B100","v":0},{"$f":"'Risk Assessment Matrix'!D100","v":0},{"$f":"'Risk Assessment Matrix'!E100","v":0},0]
[{"$f":"'Risk Assessment Matrix'!A101","v":0},{"$f":"'Risk Assessment Matrix'!B101","v":0},{"$f":"'Risk Assessment Matrix'!D101","v":0},{"$f":"'Risk Assessment Matrix'!E101","v":0},0]
[{"$f":"'Risk Assessment Matrix'!A102","v":0},{"$f":"'Risk Assessment Matrix'!B102","v":0},{"$f":"'Risk Assessment Matrix'!D102","v":0},{"$f":"'Risk Assessment Matrix'!E102","v":0},0]
[{"$f":"'Risk Assessment Matrix'!A103","v":0},{"$f":"'Risk Assessment Matrix'!B103","v":0},{"$f":"'Risk Assessment Matrix'!D103","v":0},{"$f":"'Risk Assessment Matrix'!E103","v":0},0]
[{"$f":"'Risk Assessment Matrix'!A104","v":0},{"$f":"'Risk Assessment Matrix'!B104","v":0},{"$f":"'Risk Assessment Matrix'!D104","v":0},{"$f":"'Risk Assessment Matrix'!E104","v":0},0]
[{"$f":"'Risk Assessment Matrix'!A105","v":0},{"$f":"'Risk Assessment Matrix'!B105","v":0},{"$f":"'Risk Assessment Matrix'!D105","v":0},{"$f":"'Risk Assessment Matrix'!E105","v":0},0]
[{"$f":"'Risk Assessment Matrix'!A106","v":0},{"$f":"'Risk Assessment Matrix'!B106","v":0},{"$f":"'Risk Assessment Matrix'!D106","v":0},{"$f":"'Risk Assessment Matrix'!E106","v":0},0]
[{"$f":"'Risk Assessment Matrix'!A107","v":0},{"$f":"'Risk Assessment Matrix'!B107","v":0},{"$f":"'Risk Assessment Matrix'!D107","v":0},{"$f":"'Risk Assessment Matrix'!E107","v":0},0]
[{"$f":"'Risk Assessment Matrix'!A108","v":0},{"$f":"'Risk Assessment Matrix'!B108","v":0},{"$f":"'Risk Assessment Matrix'!D108","v":0},{"$f":"'Risk Assessment Matrix'!E108","v":0},0]
[{"$f":"'Risk Assessment Matrix'!A109","v":0},{"$f":"'Risk Assessment Matrix'!B109","v":0},{"$f":"'Risk Assessment Matrix'!D109","v":0},{"$f":"'Risk Assessment Matrix'!E109","v":0},0]
[{"$f":"'Risk Assessment Matrix'!A110","v":0},{"$f":"'Risk Assessment Matrix'!B110","v":0},{"$f":"'Risk Assessment Matrix'!D110","v":0},{"$f":"'Risk Assessment Matrix'!E110","v":0},0]
[{"$f":"'Risk Assessment Matrix'!A111","v":0},{"$f":"'Risk Assessment Matrix'!B111","v":0},{"$f":"'Risk Assessment Matrix'!D111","v":0},{"$f":"'Risk Assessment Matrix'!E111","v":0},0]
[{"$f":"'Risk Assessment Matrix'!A112","v":0},{"$f":"'Risk Assessment Matrix'!B112","v":0},{"$f":"'Risk Assessment Matrix'!D112","v":0},{"$f":"'Risk Assessment Matrix'!E112","v":0},0]
[{"$f":"'Risk Assessment Matrix'!A113","v":0},{"$f":"'Risk Assessment Matrix'!B113","v":0},{"$f":"'Risk Assessment Matrix'!D113","v":0},{"$f":"'Risk Assessment Matrix'!E113","v":0},0]
[{"$f":"'Risk Assessment Matrix'!A114","v":0},{"$f":"'Risk Assessment Matrix'!B114","v":0},{"$f":"'Risk Assessment Matrix'!D114","v":0},{"$f":"'Risk Assessment Matrix'!E114","v":0},0]
[{"$f":"'Risk Assessment Matrix'!A115","v":0},{"$f":"'Risk Assessment Matrix'!B115","v":0},{"$f":"'Risk Assessment Matrix'!D115","v":0},{"$f":"'Risk Assessment Matrix'!E115","v":0},0]
[{"$f":"'Risk Assessment Matrix'!A116","v":0},{"$f":"'Risk Assessment Matrix'!B116","v":0},{"$f":"'Risk Assessment Matrix'!D116","v":0},{"$f":"'Risk Assessment Matrix'!E116","v":0},0]
[{"$f":"'Risk Assessment Matrix'!A117","v":0},{"$f":"'Risk Assessment Matrix'!B117","v":0},{"$f":"'Risk Assessment Matrix'!D117","v":0},{"$f":"'Risk Assessment Matrix'!E117","v":0},0]
[{"$f":"'Risk Assessment Matrix'!A118","v":0},{"$f":"'Risk Assessment Matrix'!B118","v":0},{"$f":"'Risk Assessment Matrix'!D118","v":0},{"$f":"'Risk Assessment Matrix'!E118","v":0},0]
[{"$f":"'Risk Assessment Matrix'!A119","v":0},{"$f":"'Risk Assessment Matrix'!B119","v":0},{"$f":"'Risk Assessment Matrix'!D119","v":0},{"$f":"'Risk Assessment Matrix'!E119","v":0},0]
[{"$f":"'Risk Assessment Matrix'!A120","v":0},{"$f":"'Risk Assessment Matrix'!B120","v":0},{"$f":"'Risk Assessment Matrix'!D120","v":0},{"$f":"'Risk Assessment Matrix'!E120","v":0},0]
[{"$f":"'Risk Assessment Matrix'!A121","v":0},{"$f":"'Risk Assessment Matrix'!B121","v":0},{"$f":"'Risk Assessment Matrix'!D121","v":0},{"$f":"'Risk Assessment Matrix'!E121","v":0},0]
[{"$f":"'Risk Assessment Matrix'!A122","v":0},{"$f":"'Risk Assessment Matrix'!B122","v":0},{"$f":"'Risk Assessment Matrix'!D122","v":0},{"$f":"'Risk Assessment Matrix'!E122","v":0},0]
[{"$f":"'Risk Assessment Matrix'!A123","v":0},{"$f":"'Risk Assessment Matrix'!B123","v":0},{"$f":"'Risk Assessment Matrix'!D123","v":0},{"$f":"'Risk Assessment Matrix'!E123","v":0},0]
[{"$f":"'Risk Assessment Matrix'!A124","v":0},{"$f":"'Risk Assessment Matrix'!B124","v":0},{"$f":"'Risk Assessment Matrix'!D124","v":0},{"$f":"'Risk Assessment Matrix'!E124","v":0},0]
[{"$f":"'Risk Assessment Matrix'!A125","v":0},{"$f":"'Risk Assessment Matrix'!B125","v":0},{"$f":"'Risk Assessment Matrix'!D125","v":0},{"$f":"'Risk Assessment Matrix'!E125","v":0},0]
[{"$f":"'Risk Assessment Matrix'!A126","v":0},{"$f":"'Risk Assessment Matrix'!B126","v":0},{"$f":"'Risk Assessment Matrix'!D126","v":0},{"$f":"'Risk Assessment Matrix'!E126","v":0},0]
[{"$f":"'Risk Assessment Matrix'!A127","v":0},{"$f":"'Risk Assessment Matrix'!B127","v":0},{"$f":"'Risk Assessment Matrix'!D127","v":0},{"$f":"'Risk Assessment Matrix'!E127","v":0},0]
[{"$f":"'Risk Assessment Matrix'!A128","v":0},{"$f":"'Risk Assessment Matrix'!B128","v":0},{"$f":"'Risk Assessment Matrix'!D128","v":0},{"$f":"'Risk Assessment Matrix'!E128","v":0},0]
[{"$f":"'Risk Assessment Matrix'!A129","v":0},{"$f":"'Risk Assessment Matrix'!B129","v":0},{"$f":"'Risk Assessment Matrix'!D129","v":0},{"$f":"'Risk Assessment Matrix'!E129","v":0},0]
[{"$f":"'Risk Assessment Matrix'!A130","v":0},{"$f":"'Risk Assessment Matrix'!B130","v":0},{"$f":"'Risk Assessment Matrix'!D130","v":0},{"$f":"'Risk Assessment Matrix'!E130","v":0},0]
[{"$f":"'Risk Assessment Matrix'!A131","v":0},{"$f":"'Risk Assessment Matrix'!B131","v":0},{"$f":"'Risk Assessment Matrix'!D131","v":0},{"$f":"'Risk Assessment Matrix'!E131","v":0},0]
[{"$f":"'Risk Assessment Matrix'!A132","v":0},{"$f":"'Risk Assessment Matrix'!B132","v":0},{"$f":"'Risk Assessment Matrix'!D132","v":0},{"$f":"'Risk Assessment Matrix'!E132","v":0},{"$f":"C132*D132","v":0}]
[{"$f":"'Risk Assessment Matrix'!A133","v":0},{"$f":"'Risk Assessment Matrix'!B133","v":0},{"$f":"'Risk Assessment Matrix'!D133","v":0},{"$f":"'Risk Assessment Matrix'!E133","v":0},0]
[{"$f":"'Risk Assessment Matrix'!A134","v":0},{"$f":"'Risk Assessment Matrix'!B134","v":0},{"$f":"'Risk Assessment Matrix'!D134","v":0},{"$f":"'Risk Assessment Matrix'!E134","v":0},0]
[{"$f":"'Risk Assessment Matrix'!A135","v":0},{"$f":"'Risk Assessment Matrix'!B135","v":0},{"$f":"'Risk Assessment Matrix'!D135","v":0},{"$f":"'Risk Assessment Matrix'!E135","v":0},0]
[{"$f":"'Risk Assessment Matrix'!A136","v":0},{"$f":"'Risk Assessment Matrix'!B136","v":0},{"$f":"'Risk Assessment Matrix'!D136","v":0},{"$f":"'Risk Assessment Matrix'!E136","v":0},0]
[{"$f":"'Risk Assessment Matrix'!A137","v":0},{"$f":"'Risk Assessment Matrix'!B137","v":0},{"$f":"'Risk Assessment Matrix'!D137","v":0},{"$f":"'Risk Assessment Matrix'!E137","v":0},0]
[{"$f":"'Risk Assessment Matrix'!A138","v":0},{"$f":"'Risk Assessment Matrix'!B138","v":0},{"$f":"'Risk Assessment Matrix'!D138","v":0},{"$f":"'Risk Assessment Matrix'!E138","v":0},0]
[{"$f":"'Risk Assessment Matrix'!A139","v":0},{"$f":"'Risk Assessment Matrix'!B139","v":0},{"$f":"'Risk Assessment Matrix'!D139","v":0},{"$f":"'Risk Assessment Matrix'!E139","v":0},0]
[{"$f":"'Risk Assessment Matrix'!A140","v":0},{"$f":"'Risk Assessment Matrix'!B140","v":0},{"$f":"'Risk Assessment Matrix'!D140","v":0},{"$f":"'Risk Assessment Matrix'!E140","v":0},0]
[{"$f":"'Risk Assessment Matrix'!A141","v":0},{"$f":"'Risk Assessment Matrix'!B141","v":0},{"$f":"'Risk Assessment Matrix'!D141","v":0},{"$f":"'Risk Assessment Matrix'!E141","v":0},0]
[{"$f":"'Risk Assessment Matrix'!A142","v":0},{"$f":"'Risk Assessment Matrix'!B142","v":0},{"$f":"'Risk Assessment Matrix'!D142","v":0},{"$f":"'Risk Assessment Matrix'!E142","v":0},0]
[{"$f":"'Risk Assessment Matrix'!A143","v":0},{"$f":"'Risk Assessment Matrix'!B143","v":0},{"$f":"'Risk Assessment Matrix'!D143","v":0},{"$f":"'Risk Assessment Matrix'!E143","v":0},0]
[{"$f":"'Risk Assessment Matrix'!A144","v":0},{"$f":"'Risk Assessment Matrix'!B144","v":0},{"$f":"'Risk Assessment Matrix'!D144","v":0},{"$f":"'Risk Assessment Matrix'!E144","v":0},0]
[{"$f":"'Risk Assessment Matrix'!A145","v":0},{"$f":"'Risk Assessment Matrix'!B145","v":0},{"$f":"'Risk Assessment Matrix'!D145","v":0},{"$f":"'Risk Assessment Matrix'!E145","v":0},0]
[{"$f":"'Risk Assessment Matrix'!A146","v":0},{"$f":"'Risk Assessment Matrix'!B146","v":0},{"$f":"'Risk Assessment Matrix'!D146","v":0},{"$f":"'Risk Assessment Matrix'!E146","v":0},0]
[{"$f":"'Risk Assessment Matrix'!A147","v":0},{"$f":"'Risk Assessment Matrix'!B147","v":0},{"$f":"'Risk Assessment Matrix'!D147","v":0},{"$f":"'Risk Assessment Matrix'!E147","v":0},0]
[{"$f":"'Risk Assessment Matrix'!A148","v":0},{"$f":"'Risk Assessment Matrix'!B148","v":0},{"$f":"'Risk Assessment Matrix'!D148","v":0},{"$f":"'Risk Assessment Matrix'!E148","v":0},0]
[{"$f":"'Risk Assessment Matrix'!A149","v":0},{"$f":"'Risk Assessment Matrix'!B149","v":0},{"$f":"'Risk Assessment Matrix'!D149","v":0},{"$f":"'Risk Assessment Matrix'!E149","v":0},0]
[{"$f":"'Risk Assessment Matrix'!A150","v":0},{"$f":"'Risk Assessment Matrix'!B150","v":0},{"$f":"'Risk Assessment Matrix'!D150","v":0},{"$f":"'Risk Assessment Matrix'!E150","v":0},0]
[{"$f":"'Risk Assessment Matrix'!A151","v":0},{"$f":"'Risk Assessment Matrix'!B151","v":0},{"$f":"'Risk Assessment Matrix'!D151","v":0},{"$f":"'Risk Assessment Matrix'!E151","v":0},0]
[{"$f":"'Risk Assessment Matrix'!A152","v":0},{"$f":"'Risk Assessment Matrix'!B152","v":0},{"$f":"'Risk Assessment Matrix'!D152","v":0},{"$f":"'Risk Assessment Matrix'!E152","v":0},0]
[{"$f":"'Risk Assessment Matrix'!A153","v":0},{"$f":"'Risk Assessment Matrix'!B153","v":0},{"$f":"'Risk Assessment Matrix'!D153","v":0},{"$f":"'Risk Assessment Matrix'!E153","v":0},0]
[{"$f":"'Risk Assessment Matrix'!A154","v":0},{"$f":"'Risk Assessment Matrix'!B154","v":0},{"$f":"'Risk Assessment Matrix'!D154","v":0},{"$f":"'Risk Assessment Matrix'!E154","v":0},0]
[{"$f":"'Risk Assessment Matrix'!A155","v":0},{"$f":"'Risk Assessment Matrix'!B155","v":0},{"$f":"'Risk Assessment Matrix'!D155","v":0},{"$f":"'Risk Assessment Matrix'!E155","v":0},0]
[{"$f":"'Risk Assessment Matrix'!A156","v":0},{"$f":"'Risk Assessment Matrix'!B156","v":0},{"$f":"'Risk Assessment Matrix'!D156","v":0},{"$f":"'Risk Assessment Matrix'!E156","v":0},0]
[{"$f":"'Risk Assessment Matrix'!A157","v":0},{"$f":"'Risk Assessment Matrix'!B157","v":0},{"$f":"'Risk Assessment Matrix'!D157","v":0},{"$f":"'Risk Assessment Matrix'!E157","v":0},0]
[{"$f":"'Risk Assessment Matrix'!A158","v":0},{"$f":"'Risk Assessment Matrix'!B158","v":0},{"$f":"'Risk Assessment Matrix'!D158","v":0},{"$f":"'Risk Assessment Matrix'!E158","v":0},0]
[{"$f":"'Risk Assessment Matrix'!A159","v":0},{"$f":"'Risk Assessment Matrix'!B159","v":0},{"$f":"'Risk Assessment Matrix'!D159","v":0},{"$f":"'Risk Assessment Matrix'!E159","v":0},0]
[{"$f":"'Risk Assessment Matrix'!A160","v":0},{"$f":"'Risk Assessment Matrix'!B160","v":0},{"$f":"'Risk Assessment Matrix'!D160","v":0},{"$f":"'Risk Assessment Matrix'!E160","v":0},0]
[{"$f":"'Risk Assessment Matrix'!A161","v":0},{"$f":"'Risk Assessment Matrix'!B161","v":0},{"$f":"'Risk Assessment Matrix'!D161","v":0},{"$f":"'Risk Assessment Matrix'!E161","v":0},0]
[{"$f":"'Risk Assessment Matrix'!A162","v":0},{"$f":"'Risk Assessment Matrix'!B162","v":0},{"$f":"'Risk Assessment Matrix'!D162","v":0},{"$f":"'Risk Assessment Matrix'!E162","v":0},0]
[{"$f":"'Risk Assessment Matrix'!A163","v":0},{"$f":"'Risk Assessment Matrix'!B163","v":0},{"$f":"'Risk Assessment Matrix'!D163","v":0},{"$f":"'Risk Assessment Matrix'!E163","v":0},0]
[{"$f":"'Risk Assessment Matrix'!A164","v":0},{"$f":"'Risk Assessment Matrix'!B164","v":0},{"$f":"'Risk Assessment Matrix'!D164","v":0},{"$f":"'Risk Assessment Matrix'!E164","v":0},0]
[{"$f":"'Risk Assessment Matrix'!A165","v":0},{"$f":"'Risk Assessment Matrix'!B165","v":0},{"$f":"'Risk Assessment Matrix'!D165","v":0},{"$f":"'Risk Assessment Matrix'!E165","v":0},0]
[{"$f":"'Risk Assessment Matrix'!A166","v":0},{"$f":"'Risk Assessment Matrix'!B166","v":0},{"$f":"'Risk Assessment Matrix'!D166","v":0},{"$f":"'Risk Assessment Matrix'!E166","v":0},0]
[{"$f":"'Risk Assessment Matrix'!A167","v":0},{"$f":"'Risk Assessment Matrix'!B167","v":0},{"$f":"'Risk Assessment Matrix'!D167","v":0},{"$f":"'Risk Assessment Matrix'!E167","v":0},0]
[{"$f":"'Risk Assessment Matrix'!A168","v":0},{"$f":"'Risk Assessment Matrix'!B168","v":0},{"$f":"'Risk Assessment Matrix'!D168","v":0},{"$f":"'Risk Assessment Matrix'!E168","v":0},0]
[{"$f":"'Risk Assessment Matrix'!A169","v":0},{"$f":"'Risk Assessment Matrix'!B169","v":0},{"$f":"'Risk Assessment Matrix'!D169","v":0},{"$f":"'Risk Assessment Matrix'!E169","v":0},0]
[{"$f":"'Risk Assessment Matrix'!A170","v":0},{"$f":"'Risk Assessment Matrix'!B170","v":0},{"$f":"'Risk Assessment Matrix'!D170","v":0},{"$f":"'Risk Assessment Matrix'!E170","v":0},0]
[{"$f":"'Risk Assessment Matrix'!A171","v":0},{"$f":"'Risk Assessment Matrix'!B171","v":0},{"$f":"'Risk Assessment Matrix'!D171","v":0},{"$f":"'Risk Assessment Matrix'!E171","v":0},0]
[{"$f":"'Risk Assessment Matrix'!A172","v":0},{"$f":"'Risk Assessment Matrix'!B172","v":0},{"$f":"'Risk Assessment Matrix'!D172","v":0},{"$f":"'Risk Assessment Matrix'!E172","v":0},0]
[{"$f":"'Risk Assessment Matrix'!A173","v":0},{"$f":"'Risk Assessment Matrix'!B173","v":0},{"$f":"'Risk Assessment Matrix'!D173","v":0},{"$f":"'Risk Assessment Matrix'!E173","v":0},0]
[{"$f":"'Risk Assessment Matrix'!A174","v":0},{"$f":"'Risk Assessment Matrix'!B174","v":0},{"$f":"'Risk Assessment Matrix'!D174","v":0},{"$f":"'Risk Assessment Matrix'!E174","v":0},0]
[{"$f":"'Risk Assessment Matrix'!A175","v":0},{"$f":"'Risk Assessment Matrix'!B175","v":0},{"$f":"'Risk Assessment Matrix'!D175","v":0},{"$f":"'Risk Assessment Matrix'!E175","v":0},0]
[{"$f":"'Risk Assessment Matrix'!A176","v":0},{"$f":"'Risk Assessment Matrix'!B176","v":0},{"$f":"'Risk Assessment Matrix'!D176","v":0},{"$f":"'Risk Assessment Matrix'!E176","v":0},0]
[{"$f":"'Risk Assessment Matrix'!A177","v":0},{"$f":"'Risk Assessment Matrix'!B177","v":0},{"$f":"'Risk Assessment Matrix'!D177","v":0},{"$f":"'Risk Assessment Matrix'!E177","v":0},0]
[{"$f":"'Risk Assessment Matrix'!A178","v":0},{"$f":"'Risk Assessment Matrix'!B178","v":0},{"$f":"'Risk Assessment Matrix'!D178","v":0},{"$f":"'Risk Assessment Matrix'!E178","v":0},0]
[{"$f":"'Risk Assessment Matrix'!A179","v":0},{"$f":"'Risk Assessment Matrix'!B179","v":0},{"$f":"'Risk Assessment Matrix'!D179","v":0},{"$f":"'Risk Assessment Matrix'!E179","v":0},0]
[{"$f":"'Risk Assessment Matrix'!A180","v":0},{"$f":"'Risk Assessment Matrix'!B180","v":0},{"$f":"'Risk Assessment Matrix'!D180","v":0},{"$f":"'Risk Assessment Matrix'!E180","v":0},0]
[{"$f":"'Risk Assessment Matrix'!A181","v":0},{"$f":"'Risk Assessment Matrix'!B181","v":0},{"$f":"'Risk Assessment Matrix'!D181","v":0},{"$f":"'Risk Assessment Matrix'!E181","v":0},0]
[{"$f":"'Risk Assessment Matrix'!A182","v":0},{"$f":"'Risk Assessment Matrix'!B182","v":0},{"$f":"'Risk Assessment Matrix'!D182","v":0},{"$f":"'Risk Assessment Matrix'!E182","v":0},0]
[{"$f":"'Risk Assessment Matrix'!A183","v":0},{"$f":"'Risk Assessment Matrix'!B183","v":0},{"$f":"'Risk Assessment Matrix'!D183","v":0},{"$f":"'Risk Assessment Matrix'!E183","v":0},0]
[{"$f":"'Risk Assessment Matrix'!A184","v":0},{"$f":"'Risk Assessment Matrix'!B184","v":0},{"$f":"'Risk Assessment Matrix'!D184","v":0},{"$f":"'Risk Assessment Matrix'!E184","v":0},0]
[{"$f":"'Risk Assessment Matrix'!A185","v":0},{"$f":"'Risk Assessment Matrix'!B185","v":0},{"$f":"'Risk Assessment Matrix'!D185","v":0},{"$f":"'Risk Assessment Matrix'!E185","v":0},0]
[{"$f":"'Risk Assessment Matrix'!A186","v":0},{"$f":"'Risk Assessment Matrix'!B186","v":0},{"$f":"'Risk Assessment Matrix'!D186","v":0},{"$f":"'Risk Assessment Matrix'!E186","v":0},0]
[{"$f":"'Risk Assessment Matrix'!A187","v":0},{"$f":"'Risk Assessment Matrix'!B187","v":0},{"$f":"'Risk Assessment Matrix'!D187","v":0},{"$f":"'Risk Assessment Matrix'!E187","v":0},0]
[{"$f":"'Risk Assessment Matrix'!A188","v":0},{"$f":"'Risk Assessment Matrix'!B188","v":0},{"$f":"'Risk Assessment Matrix'!D188","v":0},{"$f":"'Risk Assessment Matrix'!E188","v":0},0]
[{"$f":"'Risk Assessment Matrix'!A189","v":0},{"$f":"'Risk Assessment Matrix'!B189","v":0},{"$f":"'Risk Assessment Matrix'!D189","v":0},{"$f":"'Risk Assessment Matrix'!E189","v":0},0]
[{"$f":"'Risk Assessment Matrix'!A190","v":0},{"$f":"'Risk Assessment Matrix'!B190","v":0},{"$f":"'Risk Assessment Matrix'!D190","v":0},{"$f":"'Risk Assessment Matrix'!E190","v":0},0]
[{"$f":"'Risk Assessment Matrix'!A191","v":0},{"$f":"'Risk Assessment Matrix'!B191","v":0},{"$f":"'Risk Assessment Matrix'!D191","v":0},{"$f":"'Risk Assessment Matrix'!E191","v":0},0]
[{"$f":"'Risk Assessment Matrix'!A192","v":0},{"$f":"'Risk Assessment Matrix'!B192","v":0},{"$f":"'Risk Assessment Matrix'!D192","v":0},{"$f":"'Risk Assessment Matrix'!E192","v":0},0]
[{"$f":"'Risk Assessment Matrix'!A193","v":0},{"$f":"'Risk Assessment Matrix'!B193","v":0},{"$f":"'Risk Assessment Matrix'!D193","v":0},{"$f":"'Risk Assessment Matrix'!E193","v":0},0]
[{"$f":"'Risk Assessment Matrix'!A194","v":0},{"$f":"'Risk Assessment Matrix'!B194","v":0},{"$f":"'Risk Assessment Matrix'!D194","v":0},{"$f":"'Risk Assessment Matrix'!E194","v":0},0]
[{"$f":"'Risk Assessment Matrix'!A195","v":0},{"$f":"'Risk Assessment Matrix'!B195","v":0},{"$f":"'Risk Assessment Matrix'!D195","v":0},{"$f":"'Risk Assessment Matrix'!E195","v":0},0]
[{"$f":"'Risk Assessment Matrix'!A196","v":0},{"$f":"'Risk Assessment Matrix'!B196","v":0},{"$f":"'Risk Assessment Matrix'!D196","v":0},{"$f":"'Risk Assessment Matrix'!E196","v":0},{"$f":"C196*D196","v":0}]
[{"$f":"'Risk Assessment Matrix'!A197","v":0},{"$f":"'Risk Assessment Matrix'!B197","v":0},{"$f":"'Risk Assessment Matrix'!D197","v":0},{"$f":"'Risk Assessment Matrix'!E197","v":0},0]
[{"$f":"'Risk Assessment Matrix'!A198","v":0},{"$f":"'Risk Assessment Matrix'!B198","v":0},{"$f":"'Risk Assessment Matrix'!D198","v":0},{"$f":"'Risk Assessment Matrix'!E198","v":0},0]
[{"$f":"'Risk Assessment Matrix'!A199","v":0},{"$f":"'Risk Assessment Matrix'!B199","v":0},{"$f":"'Risk Assessment Matrix'!D199","v":0},{"$f":"'Risk Assessment Matrix'!E199","v":0},0]
[{"$f":"'Risk Assessment Matrix'!A200","v":0},{"$f":"'Risk Assessment Matrix'!B200","v":0},{"$f":"'Risk Assessment Matrix'!D200","v":0},{"$f":"'Risk Assessment Matrix'!E200","v":0},0]
[{"$f":"'Risk Assessment Matrix'!A201","v":0},{"$f":"'Risk Assessment Matrix'!B201","v":0},{"$f":"'Risk Assessment Matrix'!D201","v":0},{"$f":"'Risk Assessment Matrix'!E201","v":0},0]
[{"$f":"'Risk Assessment Matrix'!A202","v":0},{"$f":"'Risk Assessment Matrix'!B202","v":0},{"$f":"'Risk Assessment Matrix'!D202","v":0},{"$f":"'Risk Assessment Matrix'!E202","v":0},0]
[{"$f":"'Risk Assessment Matrix'!A203","v":0},{"$f":"'Risk Assessment Matrix'!B203","v":0},{"$f":"'Risk Assessment Matrix'!D203","v":0},{"$f":"'Risk Assessment Matrix'!E203","v":0},0]
[{"$f":"'Risk Assessment Matrix'!A204","v":0},{"$f":"'Risk Assessment Matrix'!B204","v":0},{"$f":"'Risk Assessment Matrix'!D204","v":0},{"$f":"'Risk Assessment Matrix'!E204","v":0},0]
[{"$f":"'Risk Assessment Matrix'!A205","v":0},{"$f":"'Risk Assessment Matrix'!B205","v":0},{"$f":"'Risk Assessment Matrix'!D205","v":0},{"$f":"'Risk Assessment Matrix'!E205","v":0},0]
[{"$f":"'Risk Assessment Matrix'!A206","v":0},{"$f":"'Risk Assessment Matrix'!B206","v":0},{"$f":"'Risk Assessment Matrix'!D206","v":0},{"$f":"'Risk Assessment Matrix'!E206","v":0},0]
[{"$f":"'Risk Assessment Matrix'!A207","v":0},{"$f":"'Risk Assessment Matrix'!B207","v":0},{"$f":"'Risk Assessment Matrix'!D207","v":0},{"$f":"'Risk Assessment Matrix'!E207","v":0},0]
[{"$f":"'Risk Assessment Matrix'!A208","v":0},{"$f":"'Risk Assessment Matrix'!B208","v":0},{"$f":"'Risk Assessment Matrix'!D208","v":0},{"$f":"'Risk Assessment Matrix'!E208","v":0},0]
[{"$f":"'Risk Assessment Matrix'!A209","v":0},{"$f":"'Risk Assessment Matrix'!B209","v":0},{"$f":"'Risk Assessment Matrix'!D209","v":0},{"$f":"'Risk Assessment Matrix'!E209","v":0},0]
[{"$f":"'Risk Assessment Matrix'!A210","v":0},{"$f":"'Risk Assessment Matrix'!B210","v":0},{"$f":"'Risk Assessment Matrix'!D210","v":0},{"$f":"'Risk Assessment Matrix'!E210","v":0},0]
[{"$f":"'Risk Assessment Matrix'!A211","v":0},{"$f":"'Risk Assessment Matrix'!B211","v":0},{"$f":"'Risk Assessment Matrix'!D211","v":0},{"$f":"'Risk Assessment Matrix'!E211","v":0},0]
[{"$f":"'Risk Assessment Matrix'!A212","v":0},{"$f":"'Risk Assessment Matrix'!B212","v":0},{"$f":"'Risk Assessment Matrix'!D212","v":0},{"$f":"'Risk Assessment Matrix'!E212","v":0},0]
[{"$f":"'Risk Assessment Matrix'!A213","v":0},{"$f":"'Risk Assessment Matrix'!B213","v":0},{"$f":"'Risk Assessment Matrix'!D213","v":0},{"$f":"'Risk Assessment Matrix'!E213","v":0},0]
[{"$f":"'Risk Assessment Matrix'!A214","v":0},{"$f":"'Risk Assessment Matrix'!B214","v":0},{"$f":"'Risk Assessment Matrix'!D214","v":0},{"$f":"'Risk Assessment Matrix'!E214","v":0},0]
[{"$f":"'Risk Assessment Matrix'!A215","v":0},{"$f":"'Risk Assessment Matrix'!B215","v":0},{"$f":"'Risk Assessment Matrix'!D215","v":0},{"$f":"'Risk Assessment Matrix'!E215","v":0},0]
[{"$f":"'Risk Assessment Matrix'!A216","v":0},{"$f":"'Risk Assessment Matrix'!B216","v":0},{"$f":"'Risk Assessment Matrix'!D216","v":0},{"$f":"'Risk Assessment Matrix'!E216","v":0},0]
[{"$f":"'Risk Assessment Matrix'!A217","v":0},{"$f":"'Risk Assessment Matrix'!B217","v":0},{"$f":"'Risk Assessment Matrix'!D217","v":0},{"$f":"'Risk Assessment Matrix'!E217","v":0},0]
[{"$f":"'Risk Assessment Matrix'!A218","v":0},{"$f":"'Risk Assessment Matrix'!B218","v":0},{"$f":"'Risk Assessment Matrix'!D218","v":0},{"$f":"'Risk Assessment Matrix'!E218","v":0},0]
[{"$f":"'Risk Assessment Matrix'!A219","v":0},{"$f":"'Risk Assessment Matrix'!B219","v":0},{"$f":"'Risk Assessment Matrix'!D219","v":0},{"$f":"'Risk Assessment Matrix'!E219","v":0},0]
[{"$f":"'Risk Assessment Matrix'!A220","v":0},{"$f":"'Risk Assessment Matrix'!B220","v":0},{"$f":"'Risk Assessment Matrix'!D220","v":0},{"$f":"'Risk Assessment Matrix'!E220","v":0},0]
[{"$f":"'Risk Assessment Matrix'!A221","v":0},{"$f":"'Risk Assessment Matrix'!B221","v":0},{"$f":"'Risk Assessment Matrix'!D221","v":0},{"$f":"'Risk Assessment Matrix'!E221","v":0},0]
[{"$f":"'Risk Assessment Matrix'!A222","v":0},{"$f":"'Risk Assessment Matrix'!B222","v":0},{"$f":"'Risk Assessment Matrix'!D222","v":0},{"$f":"'Risk Assessment Matrix'!E222","v":0},0]
[{"$f":"'Risk Assessment Matrix'!A223","v":0},{"$f":"'Risk Assessment Matrix'!B223","v":0},{"$f":"'Risk Assessment Matrix'!D223","v":0},{"$f":"'Risk Assessment Matrix'!E223","v":0},0]
[{"$f":"'Risk Assessment Matrix'!A224","v":0},{"$f":"'Risk Assessment Matrix'!B224","v":0},{"$f":"'Risk Assessment Matrix'!D224","v":0},{"$f":"'Risk Assessment Matrix'!E224","v":0},0]
[{"$f":"'Risk Assessment Matrix'!A225","v":0},{"$f":"'Risk Assessment Matrix'!B225","v":0},{"$f":"'Risk Assessment Matrix'!D225","v":0},{"$f":"'Risk Assessment Matrix'!E225","v":0},0]
[{"$f":"'Risk Assessment Matrix'!A226","v":0},{"$f":"'Risk Assessment Matrix'!B226","v":0},{"$f":"'Risk Assessment Matrix'!D226","v":0},{"$f":"'Risk Assessment Matrix'!E226","v":0},0]
[{"$f":"'Risk Assessment Matrix'!A227","v":0},{"$f":"'Risk Assessment Matrix'!B227","v":0},{"$f":"'Risk Assessment Matrix'!D227","v":0},{"$f":"'Risk Assessment Matrix'!E227","v":0},0]
[{"$f":"'Risk Assessment Matrix'!A228","v":0},{"$f":"'Risk Assessment Matrix'!B228","v":0},{"$f":"'Risk Assessment Matrix'!D228","v":0},{"$f":"'Risk Assessment Matrix'!E228","v":0},0]
[{"$f":"'Risk Assessment Matrix'!A229","v":0},{"$f":"'Risk Assessment Matrix'!B229","v":0},{"$f":"'Risk Assessment Matrix'!D229","v":0},{"$f":"'Risk Assessment Matrix'!E229","v":0},0]
[{"$f":"'Risk Assessment Matrix'!A230","v":0},{"$f":"'Risk Assessment Matrix'!B230","v":0},{"$f":"'Risk Assessment Matrix'!D230","v":0},{"$f":"'Risk Assessment Matrix'!E230","v":0},0]
[{"$f":"'Risk Assessment Matrix'!A231","v":0},{"$f":"'Risk Assessment Matrix'!B231","v":0},{"$f":"'Risk Assessment Matrix'!D231","v":0},{"$f":"'Risk Assessment Matrix'!E231","v":0},0]
[{"$f":"'Risk Assessment Matrix'!A232","v":0},{"$f":"'Risk Assessment Matrix'!B232","v":0},{"$f":"'Risk Assessment Matrix'!D232","v":0},{"$f":"'Risk Assessment Matrix'!E232","v":0},0]
[{"$f":"'Risk Assessment Matrix'!A233","v":0},{"$f":"'Risk Assessment Matrix'!B233","v":0},{"$f":"'Risk Assessment Matrix'!D233","v":0},{"$f":"'Risk Assessment Matrix'!E233","v":0},0]
[{"$f":"'Risk Assessment Matrix'!A234","v":0},{"$f":"'Risk Assessment Matrix'!B234","v":0},{"$f":"'Risk Assessment Matrix'!D234","v":0},{"$f":"'Risk Assessment Matrix'!E234","v":0},0]
[{"$f":"'Risk Assessment Matrix'!A235","v":0},{"$f":"'Risk Assessment Matrix'!B235","v":0},{"$f":"'Risk Assessment Matrix'!D235","v":0},{"$f":"'Risk Assessment Matrix'!E235","v":0},0]
[{"$f":"'Risk Assessment Matrix'!A236","v":0},{"$f":"'Risk Assessment Matrix'!B236","v":0},{"$f":"'Risk Assessment Matrix'!D236","v":0},{"$f":"'Risk Assessment Matrix'!E236","v":0},0]
[{"$f":"'Risk Assessment Matrix'!A237","v":0},{"$f":"'Risk Assessment Matrix'!B237","v":0},{"$f":"'Risk Assessment Matrix'!D237","v":0},{"$f":"'Risk Assessment Matrix'!E237","v":0},0]
[{"$f":"'Risk Assessment Matrix'!A238","v":0},{"$f":"'Risk Assessment Matrix'!B238","v":0},{"$f":"'Risk Assessment Matrix'!D238","v":0},{"$f":"'Risk Assessment Matrix'!E238","v":0},0]
[{"$f":"'Risk Assessment Matrix'!A239","v":0},{"$f":"'Risk Assessment Matrix'!B239","v":0},{"$f":"'Risk Assessment Matrix'!D239","v":0},{"$f":"'Risk Assessment Matrix'!E239","v":0},0]
[{"$f":"'Risk Assessment Matrix'!A240","v":0},{"$f":"'Risk Assessment Matrix'!B240","v":0},{"$f":"'Risk Assessment Matrix'!D240","v":0},{"$f":"'Risk Assessment Matrix'!E240","v":0},0]
[{"$f":"'Risk Assessment Matrix'!A241","v":0},{"$f":"'Risk Assessment Matrix'!B241","v":0},{"$f":"'Risk Assessment Matrix'!D241","v":0},{"$f":"'Risk Assessment Matrix'!E241","v":0},0]
[{"$f":"'Risk Assessment Matrix'!A242","v":0},{"$f":"'Risk Assessment Matrix'!B242","v":0},{"$f":"'Risk Assessment Matrix'!D242","v":0},{"$f":"'Risk Assessment Matrix'!E242","v":0},0]
[{"$f":"'Risk Assessment Matrix'!A243","v":0},{"$f":"'Risk Assessment Matrix'!B243","v":0},{"$f":"'Risk Assessment Matrix'!D243","v":0},{"$f":"'Risk Assessment Matrix'!E243","v":0},0]
[{"$f":"'Risk Assessment Matrix'!A244","v":0},{"$f":"'Risk Assessment Matrix'!B244","v":0},{"$f":"'Risk Assessment Matrix'!D244","v":0},{"$f":"'Risk Assessment Matrix'!E244","v":0},0]
[{"$f":"'Risk Assessment Matrix'!A245","v":0},{"$f":"'Risk Assessment Matrix'!B245","v":0},{"$f":"'Risk Assessment Matrix'!D245","v":0},{"$f":"'Risk Assessment Matrix'!E245","v":0},0]
[{"$f":"'Risk Assessment Matrix'!A246","v":0},{"$f":"'Risk Assessment Matrix'!B246","v":0},{"$f":"'Risk Assessment Matrix'!D246","v":0},{"$f":"'Risk Assessment Matrix'!E246","v":0},0]
[{"$f":"'Risk Assessment Matrix'!A247","v":0},{"$f":"'Risk Assessment Matrix'!B247","v":0},{"$f":"'Risk Assessment Matrix'!D247","v":0},{"$f":"'Risk Assessment Matrix'!E247","v":0},0]
[{"$f":"'Risk Assessment Matrix'!A248","v":0},{"$f":"'Risk Assessment Matrix'!B248","v":0},{"$f":"'Risk Assessment Matrix'!D248","v":0},{"$f":"'Risk Assessment Matrix'!E248","v":0},0]
[{"$f":"'Risk Assessment Matrix'!A249","v":0},{"$f":"'Risk Assessment Matrix'!B249","v":0},{"$f":"'Risk Assessment Matrix'!D249","v":0},{"$f":"'Risk Assessment Matrix'!E249","v":0},0]
[{"$f":"'Risk Assessment Matrix'!A250","v":0},{"$f":"'Risk Assessment Matrix'!B250","v":0},{"$f":"'Risk Assessment Matrix'!D250","v":0},{"$f":"'Risk Assessment Matrix'!E250","v":0},0]
[{"$f":"'Risk Assessment Matrix'!A251","v":0},{"$f":"'Risk Assessment Matrix'!B251","v":0},{"$f":"'Risk Assessment Matrix'!D251","v":0},{"$f":"'Risk Assessment Matrix'!E251","v":0},0]
[{"$f":"'Risk Assessment Matrix'!A252","v":0},{"$f":"'Risk Assessment Matrix'!B252","v":0},{"$f":"'Risk Assessment Matrix'!D252","v":0},{"$f":"'Risk Assessment Matrix'!E252","v":0},0]
[{"$f":"'Risk Assessment Matrix'!A253","v":0},{"$f":"'Risk Assessment Matrix'!B253","v":0},{"$f":"'Risk Assessment Matrix'!D253","v":0},{"$f":"'Risk Assessment Matrix'!E253","v":0},0]
[{"$f":"'Risk Assessment Matrix'!A254","v":0},{"$f":"'Risk Assessment Matrix'!B254","v":0},{"$f":"'Risk Assessment Matrix'!D254","v":0},{"$f":"'Risk Assessment Matrix'!E254","v":0},0]
[{"$f":"'Risk Assessment Matrix'!A255","v":0},{"$f":"'Risk Assessment Matrix'!B255","v":0},{"$f":"'Risk Assessment Matrix'!D255","v":0},{"$f":"'Risk Assessment Matrix'!E255","v":0},0]
[{"$f":"'Risk Assessment Matrix'!A256","v":0},{"$f":"'Risk Assessment Matrix'!B256","v":0},{"$f":"'Risk Assessment Matrix'!D256","v":0},{"$f":"'Risk Assessment Matrix'!E256","v":0},0]
[{"$f":"'Risk Assessment Matrix'!A257","v":0},{"$f":"'Risk Assessment Matrix'!B257","v":0},{"$f":"'Risk Assessment Matrix'!D257","v":0},{"$f":"'Risk Assessment Matrix'!E257","v":0},0]
[{"$f":"'Risk Assessment Matrix'!A258","v":0},{"$f":"'Risk Assessment Matrix'!B258","v":0},{"$f":"'Risk Assessment Matrix'!D258","v":0},{"$f":"'Risk Assessment Matrix'!E258","v":0},0]
[{"$f":"'Risk Assessment Matrix'!A259","v":0},{"$f":"'Risk Assessment Matrix'!B259","v":0},{"$f":"'Risk Assessment Matrix'!D259","v":0},{"$f":"'Risk Assessment Matrix'!E259","v":0},0]
[{"$f":"'Risk Assessment Matrix'!A260","v":0},{"$f":"'Risk Assessment Matrix'!B260","v":0},{"$f":"'Risk Assessment Matrix'!D260","v":0},{"$f":"'Risk Assessment Matrix'!E260","v":0},{"$f":"C260*D260","v":0}]
[{"$f":"'Risk Assessment Matrix'!A261","v":0},{"$f":"'Risk Assessment Matrix'!B261","v":0},{"$f":"'Risk Assessment Matrix'!D261","v":0},{"$f":"'Risk Assessment Matrix'!E261","v":0},0]
[{"$f":"'Risk Assessment Matrix'!A262","v":0},{"$f":"'Risk Assessment Matrix'!B262","v":0},{"$f":"'Risk Assessment Matrix'!D262","v":0},{"$f":"'Risk Assessment Matrix'!E262","v":0},0]
[{"$f":"'Risk Assessment Matrix'!A263","v":0},{"$f":"'Risk Assessment Matrix'!B263","v":0},{"$f":"'Risk Assessment Matrix'!D263","v":0},{"$f":"'Risk Assessment Matrix'!E263","v":0},0]
[{"$f":"'Risk Assessment Matrix'!A264","v":0},{"$f":"'Risk Assessment Matrix'!B264","v":0},{"$f":"'Risk Assessment Matrix'!D264","v":0},{"$f":"'Risk Assessment Matrix'!E264","v":0},0]
[{"$f":"'Risk Assessment Matrix'!A265","v":0},{"$f":"'Risk Assessment Matrix'!B265","v":0},{"$f":"'Risk Assessment Matrix'!D265","v":0},{"$f":"'Risk Assessment Matrix'!E265","v":0},0]
[{"$f":"'Risk Assessment Matrix'!A266","v":0},{"$f":"'Risk Assessment Matrix'!B266","v":0},{"$f":"'Risk Assessment Matrix'!D266","v":0},{"$f":"'Risk Assessment Matrix'!E266","v":0},0]
[{"$f":"'Risk Assessment Matrix'!A267","v":0},{"$f":"'Risk Assessment Matrix'!B267","v":0},{"$f":"'Risk Assessment Matrix'!D267","v":0},{"$f":"'Risk Assessment Matrix'!E267","v":0},0]
[{"$f":"'Risk Assessment Matrix'!A268","v":0},{"$f":"'Risk Assessment Matrix'!B268","v":0},{"$f":"'Risk Assessment Matrix'!D268","v":0},{"$f":"'Risk Assessment Matrix'!E268","v":0},0]
[{"$f":"'Risk Assessment Matrix'!A269","v":0},{"$f":"'Risk Assessment Matrix'!B269","v":0},{"$f":"'Risk Assessment Matrix'!D269","v":0},{"$f":"'Risk Assessment Matrix'!E269","v":0},0]
[{"$f":"'Risk Assessment Matrix'!A270","v":0},{"$f":"'Risk Assessment Matrix'!B270","v":0},{"$f":"'Risk Assessment Matrix'!D270","v":0},{"$f":"'Risk Assessment Matrix'!E270","v":0},0]
[{"$f":"'Risk Assessment Matrix'!A271","v":0},{"$f":"'Risk Assessment Matrix'!B271","v":0},{"$f":"'Risk Assessment Matrix'!D271","v":0},{"$f":"'Risk Assessment Matrix'!E271","v":0},0]
[{"$f":"'Risk Assessment Matrix'!A272","v":0},{"$f":"'Risk Assessment Matrix'!B272","v":0},{"$f":"'Risk Assessment Matrix'!D272","v":0},{"$f":"'Risk Assessment Matrix'!E272","v":0},0]
[{"$f":"'Risk Assessment Matrix'!A273","v":0},{"$f":"'Risk Assessment Matrix'!B273","v":0},{"$f":"'Risk Assessment Matrix'!D273","v":0},{"$f":"'Risk Assessment Matrix'!E273","v":0},0]
[{"$f":"'Risk Assessment Matrix'!A274","v":0},{"$f":"'Risk Assessment Matrix'!B274","v":0},{"$f":"'Risk Assessment Matrix'!D274","v":0},{"$f":"'Risk Assessment Matrix'!E274","v":0},0]
[{"$f":"'Risk Assessment Matrix'!A275","v":0},{"$f":"'Risk Assessment Matrix'!B275","v":0},{"$f":"'Risk Assessment Matrix'!D275","v":0},{"$f":"'Risk Assessment Matrix'!E275","v":0},0]
[{"$f":"'Risk Assessment Matrix'!A276","v":0},{"$f":"'Risk Assessment Matrix'!B276","v":0},{"$f":"'Risk Assessment Matrix'!D276","v":0},{"$f":"'Risk Assessment Matrix'!E276","v":0},0]
[{"$f":"'Risk Assessment Matrix'!A277","v":0},{"$f":"'Risk Assessment Matrix'!B277","v":0},{"$f":"'Risk Assessment Matrix'!D277","v":0},{"$f":"'Risk Assessment Matrix'!E277","v":0},0]
[{"$f":"'Risk Assessment Matrix'!A278","v":0},{"$f":"'Risk Assessment Matrix'!B278","v":0},{"$f":"'Risk Assessment Matrix'!D278","v":0},{"$f":"'Risk Assessment Matrix'!E278","v":0},0]
[{"$f":"'Risk Assessment Matrix'!A279","v":0},{"$f":"'Risk Assessment Matrix'!B279","v":0},{"$f":"'Risk Assessment Matrix'!D279","v":0},{"$f":"'Risk Assessment Matrix'!E279","v":0},0]
[{"$f":"'Risk Assessment Matrix'!A280","v":0},{"$f":"'Risk Assessment Matrix'!B280","v":0},{"$f":"'Risk Assessment Matrix'!D280","v":0},{"$f":"'Risk Assessment Matrix'!E280","v":0},0]
[{"$f":"'Risk Assessment Matrix'!A281","v":0},{"$f":"'Risk Assessment Matrix'!B281","v":0},{"$f":"'Risk Assessment Matrix'!D281","v":0},{"$f":"'Risk Assessment Matrix'!E281","v":0},0]
[{"$f":"'Risk Assessment Matrix'!A282","v":0},{"$f":"'Risk Assessment Matrix'!B282","v":0},{"$f":"'Risk Assessment Matrix'!D282","v":0},{"$f":"'Risk Assessment Matrix'!E282","v":0},0]
[{"$f":"'Risk Assessment Matrix'!A283","v":0},{"$f":"'Risk Assessment Matrix'!B283","v":0},{"$f":"'Risk Assessment Matrix'!D283","v":0},{"$f":"'Risk Assessment Matrix'!E283","v":0},0]
[{"$f":"'Risk Assessment Matrix'!A284","v":0},{"$f":"'Risk Assessment Matrix'!B284","v":0},{"$f":"'Risk Assessment Matrix'!D284","v":0},{"$f":"'Risk Assessment Matrix'!E284","v":0},0]
[{"$f":"'Risk Assessment Matrix'!A285","v":0},{"$f":"'Risk Assessment Matrix'!B285","v":0},{"$f":"'Risk Assessment Matrix'!D285","v":0},{"$f":"'Risk Assessment Matrix'!E285","v":0},0]
[{"$f":"'Risk Assessment Matrix'!A286","v":0},{"$f":"'Risk Assessment Matrix'!B286","v":0},{"$f":"'Risk Assessment Matrix'!D286","v":0},{"$f":"'Risk Assessment Matrix'!E286","v":0},0]
[{"$f":"'Risk Assessment Matrix'!A287","v":0},{"$f":"'Risk Assessment Matrix'!B287","v":0},{"$f":"'Risk Assessment Matrix'!D287","v":0},{"$f":"'Risk Assessment Matrix'!E287","v":0},0]
[{"$f":"'Risk Assessment Matrix'!A288","v":0},{"$f":"'Risk Assessment Matrix'!B288","v":0},{"$f":"'Risk Assessment Matrix'!D288","v":0},{"$f":"'Risk Assessment Matrix'!E288","v":0},0]
[{"$f":"'Risk Assessment Matrix'!A289","v":0},{"$f":"'Risk Assessment Matrix'!B289","v":0},{"$f":"'Risk Assessment Matrix'!D289","v":0},{"$f":"'Risk Assessment Matrix'!E289","v":0},0]
[{"$f":"'Risk Assessment Matrix'!A290","v":0},{"$f":"'Risk Assessment Matrix'!B290","v":0},{"$f":"'Risk Assessment Matrix'!D290","v":0},{"$f":"'Risk Assessment Matrix'!E290","v":0},0]
[{"$f":"'Risk Assessment Matrix'!A291","v":0},{"$f":"'Risk Assessment Matrix'!B291","v":0},{"$f":"'Risk Assessment Matrix'!D291","v":0},{"$f":"'Risk Assessment Matrix'!E291","v":0},0]
[{"$f":"'Risk Assessment Matrix'!A292","v":0},{"$f":"'Risk Assessment Matrix'!B292","v":0},{"$f":"'Risk Assessment Matrix'!D292","v":0},{"$f":"'Risk Assessment Matrix'!E292","v":0},0]
[{"$f":"'Risk Assessment Matrix'!A293","v":0},{"$f":"'Risk Assessment Matrix'!B293","v":0},{"$f":"'Risk Assessment Matrix'!D293","v":0},{"$f":"'Risk Assessment Matrix'!E293","v":0},0]
[{"$f":"'Risk Assessment Matrix'!A294","v":0},{"$f":"'Risk Assessment Matrix'!B294","v":0},{"$f":"'Risk Assessment Matrix'!D294","v":0},{"$f":"'Risk Assessment Matrix'!E294","v":0},0]
[{"$f":"'Risk Assessment Matrix'!A295","v":0},{"$f":"'Risk Assessment Matrix'!B295","v":0},{"$f":"'Risk Assessment Matrix'!D295","v":0},{"$f":"'Risk Assessment Matrix'!E295","v":0},0]
[{"$f":"'Risk Assessment Matrix'!A296","v":0},{"$f":"'Risk Assessment Matrix'!B296","v":0},{"$f":"'Risk Assessment Matrix'!D296","v":0},{"$f":"'Risk Assessment Matrix'!E296","v":0},0]
[{"$f":"'Risk Assessment Matrix'!A297","v":0},{"$f":"'Risk Assessment Matrix'!B297","v":0},{"$f":"'Risk Assessment Matrix'!D297","v":0},{"$f":"'Risk Assessment Matrix'!E297","v":0},0]
[{"$f":"'Risk Assessment Matrix'!A298","v":0},{"$f":"'Risk Assessment Matrix'!B298","v":0},{"$f":"'Risk Assessment Matrix'!D298","v":0},{"$f":"'Risk Assessment Matrix'!E298","v":0},0]
[{"$f":"'Risk Assessment Matrix'!A299","v":0},{"$f":"'Risk Assessment Matrix'!B299","v":0},{"$f":"'Risk Assessment Matrix'!D299","v":0},{"$f":"'Risk Assessment Matrix'!E299","v":0},0]
[{"$f":"'Risk Assessment Matrix'!A300","v":0},{"$f":"'Risk Assessment Matrix'!B300","v":0},{"$f":"'Risk Assessment Matrix'!D300","v":0},{"$f":"'Risk Assessment Matrix'!E300","v":0},0]
[{"$f":"'Risk Assessment Matrix'!A301","v":0},{"$f":"'Risk Assessment Matrix'!B301","v":0},{"$f":"'Risk Assessment Matrix'!D301","v":0},{"$f":"'Risk Assessment Matrix'!E301","v":0},0]
[{"$f":"'Risk Assessment Matrix'!A302","v":0},{"$f":"'Risk Assessment Matrix'!B302","v":0},{"$f":"'Risk Assessment Matrix'!D302","v":0},{"$f":"'Risk Assessment Matrix'!E302","v":0},0]
[{"$f":"'Risk Assessment Matrix'!A303","v":0},{"$f":"'Risk Assessment Matrix'!B303","v":0},{"$f":"'Risk Assessment Matrix'!D303","v":0},{"$f":"'Risk Assessment Matrix'!E303","v":0},0]
[{"$f":"'Risk Assessment Matrix'!A304","v":0},{"$f":"'Risk Assessment Matrix'!B304","v":0},{"$f":"'Risk Assessment Matrix'!D304","v":0},{"$f":"'Risk Assessment Matrix'!E304","v":0},0]
[{"$f":"'Risk Assessment Matrix'!A305","v":0},{"$f":"'Risk Assessment Matrix'!B305","v":0},{"$f":"'Risk Assessment Matrix'!D305","v":0},{"$f":"'Risk Assessment Matrix'!E305","v":0},0]
[{"$f":"'Risk Assessment Matrix'!A306","v":0},{"$f":"'Risk Assessment Matrix'!B306","v":0},{"$f":"'Risk Assessment Matrix'!D306","v":0},{"$f":"'Risk Assessment Matrix'!E306","v":0},0]
[{"$f":"'Risk Assessment Matrix'!A307","v":0},{"$f":"'Risk Assessment Matrix'!B307","v":0},{"$f":"'Risk Assessment Matrix'!D307","v":0},{"$f":"'Risk Assessment Matrix'!E307","v":0},0]
[{"$f":"'Risk Assessment Matrix'!A308","v":0},{"$f":"'Risk Assessment Matrix'!B308","v":0},{"$f":"'Risk Assessment Matrix'!D308","v":0},{"$f":"'Risk Assessment Matrix'!E308","v":0},0]
[{"$f":"'Risk Assessment Matrix'!A309","v":0},{"$f":"'Risk Assessment Matrix'!B309","v":0},{"$f":"'Risk Assessment Matrix'!D309","v":0},{"$f":"'Risk Assessment Matrix'!E309","v":0},0]
[{"$f":"'Risk Assessment Matrix'!A310","v":0},{"$f":"'Risk Assessment Matrix'!B310","v":0},{"$f":"'Risk Assessment Matrix'!D310","v":0},{"$f":"'Risk Assessment Matrix'!E310","v":0},0]
[{"$f":"'Risk Assessment Matrix'!A311","v":0},{"$f":"'Risk Assessment Matrix'!B311","v":0},{"$f":"'Risk Assessment Matrix'!D311","v":0},{"$f":"'Risk Assessment Matrix'!E311","v":0},0]
[{"$f":"'Risk Assessment Matrix'!A312","v":0},{"$f":"'Risk Assessment Matrix'!B312","v":0},{"$f":"'Risk Assessment Matrix'!D312","v":0},{"$f":"'Risk Assessment Matrix'!E312","v":0},0]
[{"$f":"'Risk Assessment Matrix'!A313","v":0},{"$f":"'Risk Assessment Matrix'!B313","v":0},{"$f":"'Risk Assessment Matrix'!D313","v":0},{"$f":"'Risk Assessment Matrix'!E313","v":0},0]
[{"$f":"'Risk Assessment Matrix'!A314","v":0},{"$f":"'Risk Assessment Matrix'!B314","v":0},{"$f":"'Risk Assessment Matrix'!D314","v":0},{"$f":"'Risk Assessment Matrix'!E314","v":0},0]
[{"$f":"'Risk Assessment Matrix'!A315","v":0},{"$f":"'Risk Assessment Matrix'!B315","v":0},{"$f":"'Risk Assessment Matrix'!D315","v":0},{"$f":"'Risk Assessment Matrix'!E315","v":0},0]
[{"$f":"'Risk Assessment Matrix'!A316","v":0},{"$f":"'Risk Assessment Matrix'!B316","v":0},{"$f":"'Risk Assessment Matrix'!D316","v":0},{"$f":"'Risk Assessment Matrix'!E316","v":0},0]
[{"$f":"'Risk Assessment Matrix'!A317","v":0},{"$f":"'Risk Assessment Matrix'!B317","v":0},{"$f":"'Risk Assessment Matrix'!D317","v":0},{"$f":"'Risk Assessment Matrix'!E317","v":0},0]
[{"$f":"'Risk Assessment Matrix'!A318","v":0},{"$f":"'Risk Assessment Matrix'!B318","v":0},{"$f":"'Risk Assessment Matrix'!D318","v":0},{"$f":"'Risk Assessment Matrix'!E318","v":0},0]
[{"$f":"'Risk Assessment Matrix'!A319","v":0},{"$f":"'Risk Assessment Matrix'!B319","v":0},{"$f":"'Risk Assessment Matrix'!D319","v":0},{"$f":"'Risk Assessment Matrix'!E319","v":0},0]
[{"$f":"'Risk Assessment Matrix'!A320","v":0},{"$f":"'Risk Assessment Matrix'!B320","v":0},{"$f":"'Risk Assessment Matrix'!D320","v":0},{"$f":"'Risk Assessment Matrix'!E320","v":0},0]
[{"$f":"'Risk Assessment Matrix'!A321","v":0},{"$f":"'Risk Assessment Matrix'!B321","v":0},{"$f":"'Risk Assessment Matrix'!D321","v":0},{"$f":"'Risk Assessment Matrix'!E321","v":0},0]
[{"$f":"'Risk Assessment Matrix'!A322","v":0},{"$f":"'Risk Assessment Matrix'!B322","v":0},{"$f":"'Risk Assessment Matrix'!D322","v":0},{"$f":"'Risk Assessment Matrix'!E322","v":0},0]
[{"$f":"'Risk Assessment Matrix'!A323","v":0},{"$f":"'Risk Assessment Matrix'!B323","v":0},{"$f":"'Risk Assessment Matrix'!D323","v":0},{"$f":"'Risk Assessment Matrix'!E323","v":0},0]
[{"$f":"'Risk Assessment Matrix'!A324","v":0},{"$f":"'Risk Assessment Matrix'!B324","v":0},{"$f":"'Risk Assessment Matrix'!D324","v":0},{"$f":"'Risk Assessment Matrix'!E324","v":0},{"$f":"C324*D324","v":0}]
[{"$f":"'Risk Assessment Matrix'!A325","v":0},{"$f":"'Risk Assessment Matrix'!B325","v":0},{"$f":"'Risk Assessment Matrix'!D325","v":0},{"$f":"'Risk Assessment Matrix'!E325","v":0},0]
[{"$f":"'Risk Assessment Matrix'!A326","v":0},{"$f":"'Risk Assessment Matrix'!B326","v":0},{"$f":"'Risk Assessment Matrix'!D326","v":0},{"$f":"'Risk Assessment Matrix'!E326","v":0},0]
[{"$f":"'Risk Assessment Matrix'!A327","v":0},{"$f":"'Risk Assessment Matrix'!B327","v":0},{"$f":"'Risk Assessment Matrix'!D327","v":0},{"$f":"'Risk Assessment Matrix'!E327","v":0},0]
[{"$f":"'Risk Assessment Matrix'!A328","v":0},{"$f":"'Risk Assessment Matrix'!B328","v":0},{"$f":"'Risk Assessment Matrix'!D328","v":0},{"$f":"'Risk Assessment Matrix'!E328","v":0},0]
[{"$f":"'Risk Assessment Matrix'!A329","v":0},{"$f":"'Risk Assessment Matrix'!B329","v":0},{"$f":"'Risk Assessment Matrix'!D329","v":0},{"$f":"'Risk Assessment Matrix'!E329","v":0},0]
[{"$f":"'Risk Assessment Matrix'!A330","v":0},{"$f":"'Risk Assessment Matrix'!B330","v":0},{"$f":"'Risk Assessment Matrix'!D330","v":0},{"$f":"'Risk Assessment Matrix'!E330","v":0},0]
[{"$f":"'Risk Assessment Matrix'!A331","v":0},{"$f":"'Risk Assessment Matrix'!B331","v":0},{"$f":"'Risk Assessment Matrix'!D331","v":0},{"$f":"'Risk Assessment Matrix'!E331","v":0},0]
[{"$f":"'Risk Assessment Matrix'!A332","v":0},{"$f":"'Risk Assessment Matrix'!B332","v":0},{"$f":"'Risk Assessment Matrix'!D332","v":0},{"$f":"'Risk Assessment Matrix'!E332","v":0},0]
[{"$f":"'Risk Assessment Matrix'!A333","v":0},{"$f":"'Risk Assessment Matrix'!B333","v":0},{"$f":"'Risk Assessment Matrix'!D333","v":0},{"$f":"'Risk Assessment Matrix'!E333","v":0},0]
[{"$f":"'Risk Assessment Matrix'!A334","v":0},{"$f":"'Risk Assessment Matrix'!B334","v":0},{"$f":"'Risk Assessment Matrix'!D334","v":0},{"$f":"'Risk Assessment Matrix'!E334","v":0},0]
[{"$f":"'Risk Assessment Matrix'!A335","v":0},{"$f":"'Risk Assessment Matrix'!B335","v":0},{"$f":"'Risk Assessment Matrix'!D335","v":0},{"$f":"'Risk Assessment Matrix'!E335","v":0},0]
[{"$f":"'Risk Assessment Matrix'!A336","v":0},{"$f":"'Risk Assessment Matrix'!B336","v":0},{"$f":"'Risk Assessment Matrix'!D336","v":0},{"$f":"'Risk Assessment Matrix'!E336","v":0},0]
[{"$f":"'Risk Assessment Matrix'!A337","v":0},{"$f":"'Risk Assessment Matrix'!B337","v":0},{"$f":"'Risk Assessment Matrix'!D337","v":0},{"$f":"'Risk Assessment Matrix'!E337","v":0},0]
[{"$f":"'Risk Assessment Matrix'!A338","v":0},{"$f":"'Risk Assessment Matrix'!B338","v":0},{"$f":"'Risk Assessment Matrix'!D338","v":0},{"$f":"'Risk Assessment Matrix'!E338","v":0},0]
[{"$f":"'Risk Assessment Matrix'!A339","v":0},{"$f":"'Risk Assessment Matrix'!B339","v":0},{"$f":"'Risk Assessment Matrix'!D339","v":0},{"$f":"'Risk Assessment Matrix'!E339","v":0},0]
[{"$f":"'Risk Assessment Matrix'!A340","v":0},{"$f":"'Risk Assessment Matrix'!B340","v":0},{"$f":"'Risk Assessment Matrix'!D340","v":0},{"$f":"'Risk Assessment Matrix'!E340","v":0},0]
[{"$f":"'Risk Assessment Matrix'!A341","v":0},{"$f":"'Risk Assessment Matrix'!B341","v":0},{"$f":"'Risk Assessment Matrix'!D341","v":0},{"$f":"'Risk Assessment Matrix'!E341","v":0},0]
[{"$f":"'Risk Assessment Matrix'!A342","v":0},{"$f":"'Risk Assessment Matrix'!B342","v":0},{"$f":"'Risk Assessment Matrix'!D342","v":0},{"$f":"'Risk Assessment Matrix'!E342","v":0},0]
[{"$f":"'Risk Assessment Matrix'!A343","v":0},{"$f":"'Risk Assessment Matrix'!B343","v":0},{"$f":"'Risk Assessment Matrix'!D343","v":0},{"$f":"'Risk Assessment Matrix'!E343","v":0},0]
[{"$f":"'Risk Assessment Matrix'!A344","v":0},{"$f":"'Risk Assessment Matrix'!B344","v":0},{"$f":"'Risk Assessment Matrix'!D344","v":0},{"$f":"'Risk Assessment Matrix'!E344","v":0},0]
[{"$f":"'Risk Assessment Matrix'!A345","v":0},{"$f":"'Risk Assessment Matrix'!B345","v":0},{"$f":"'Risk Assessment Matrix'!D345","v":0},{"$f":"'Risk Assessment Matrix'!E345","v":0},0]
[{"$f":"'Risk Assessment Matrix'!A346","v":0},{"$f":"'Risk Assessment Matrix'!B346","v":0},{"$f":"'Risk Assessment Matrix'!D346","v":0},{"$f":"'Risk Assessment Matrix'!E346","v":0},0]
[{"$f":"'Risk Assessment Matrix'!A347","v":0},{"$f":"'Risk Assessment Matrix'!B347","v":0},{"$f":"'Risk Assessment Matrix'!D347","v":0},{"$f":"'Risk Assessment Matrix'!E347","v":0},0]
[{"$f":"'Risk Assessment Matrix'!A348","v":0},{"$f":"'Risk Assessment Matrix'!B348","v":0},{"$f":"'Risk Assessment Matrix'!D348","v":0},{"$f":"'Risk Assessment Matrix'!E348","v":0},0]
[{"$f":"'Risk Assessment Matrix'!A349","v":0},{"$f":"'Risk Assessment Matrix'!B349","v":0},{"$f":"'Risk Assessment Matrix'!D349","v":0},{"$f":"'Risk Assessment Matrix'!E349","v":0},0]
[{"$f":"'Risk Assessment Matrix'!A350","v":0},{"$f":"'Risk Assessment Matrix'!B350","v":0},{"$f":"'Risk Assessment Matrix'!D350","v":0},{"$f":"'Risk Assessment Matrix'!E350","v":0},0]
[{"$f":"'Risk Assessment Matrix'!A351","v":0},{"$f":"'Risk Assessment Matrix'!B351","v":0},{"$f":"'Risk Assessment Matrix'!D351","v":0},{"$f":"'Risk Assessment Matrix'!E351","v":0},0]
[{"$f":"'Risk Assessment Matrix'!A352","v":0},{"$f":"'Risk Assessment Matrix'!B352","v":0},{"$f":"'Risk Assessment Matrix'!D352","v":0},{"$f":"'Risk Assessment Matrix'!E352","v":0},0]
[{"$f":"'Risk Assessment Matrix'!A353","v":0},{"$f":"'Risk Assessment Matrix'!B353","v":0},{"$f":"'Risk Assessment Matrix'!D353","v":0},{"$f":"'Risk Assessment Matrix'!E353","v":0},0]
[{"$f":"'Risk Assessment Matrix'!A354","v":0},{"$f":"'Risk Assessment Matrix'!B354","v":0},{"$f":"'Risk Assessment Matrix'!D354","v":0},{"$f":"'Risk Assessment Matrix'!E354","v":0},0]
[{"$f":"'Risk Assessment Matrix'!A355","v":0},{"$f":"'Risk Assessment Matrix'!B355","v":0},{"$f":"'Risk Assessment Matrix'!D355","v":0},{"$f":"'Risk Assessment Matrix'!E355","v":0},0]
[{"$f":"'Risk Assessment Matrix'!A356","v":0},{"$f":"'Risk Assessment Matrix'!B356","v":0},{"$f":"'Risk Assessment Matrix'!D356","v":0},{"$f":"'Risk Assessment Matrix'!E356","v":0},0]
[{"$f":"'Risk Assessment Matrix'!A357","v":0},{"$f":"'Risk Assessment Matrix'!B357","v":0},{"$f":"'Risk Assessment Matrix'!D357","v":0},{"$f":"'Risk Assessment Matrix'!E357","v":0},0]
[{"$f":"'Risk Assessment Matrix'!A358","v":0},{"$f":"'Risk Assessment Matrix'!B358","v":0},{"$f":"'Risk Assessment Matrix'!D358","v":0},{"$f":"'Risk Assessment Matrix'!E358","v":0},0]
[{"$f":"'Risk Assessment Matrix'!A359","v":0},{"$f":"'Risk Assessment Matrix'!B359","v":0},{"$f":"'Risk Assessment Matrix'!D359","v":0},{"$f":"'Risk Assessment Matrix'!E359","v":0},0]
[{"$f":"'Risk Assessment Matrix'!A360","v":0},{"$f":"'Risk Assessment Matrix'!B360","v":0},{"$f":"'Risk Assessment Matrix'!D360","v":0},{"$f":"'Risk Assessment Matrix'!E360","v":0},0]
[{"$f":"'Risk Assessment Matrix'!A361","v":0},{"$f":"'Risk Assessment Matrix'!B361","v":0},{"$f":"'Risk Assessment Matrix'!D361","v":0},{"$f":"'Risk Assessment Matrix'!E361","v":0},0]
[{"$f":"'Risk Assessment Matrix'!A362","v":0},{"$f":"'Risk Assessment Matrix'!B362","v":0},{"$f":"'Risk Assessment Matrix'!D362","v":0},{"$f":"'Risk Assessment Matrix'!E362","v":0},0]
[{"$f":"'Risk Assessment Matrix'!A363","v":0},{"$f":"'Risk Assessment Matrix'!B363","v":0},{"$f":"'Risk Assessment Matrix'!D363","v":0},{"$f":"'Risk Assessment Matrix'!E363","v":0},0]
[{"$f":"'Risk Assessment Matrix'!A364","v":0},{"$f":"'Risk Assessment Matrix'!B364","v":0},{"$f":"'Risk Assessment Matrix'!D364","v":0},{"$f":"'Risk Assessment Matrix'!E364","v":0},0]
[{"$f":"'Risk Assessment Matrix'!A365","v":0},{"$f":"'Risk Assessment Matrix'!B365","v":0},{"$f":"'Risk Assessment Matrix'!D365","v":0},{"$f":"'Risk Assessment Matrix'!E365","v":0},0]
[{"$f":"'Risk Assessment Matrix'!A366","v":0},{"$f":"'Risk Assessment Matrix'!B366","v":0},{"$f":"'Risk Assessment Matrix'!D366","v":0},{"$f":"'Risk Assessment Matrix'!E366","v":0},0]
[{"$f":"'Risk Assessment Matrix'!A367","v":0},{"$f":"'Risk Assessment Matrix'!B367","v":0},{"$f":"'Risk Assessment Matrix'!D367","v":0},{"$f":"'Risk Assessment Matrix'!E367","v":0},0]
[{"$f":"'Risk Assessment Matrix'!A368","v":0},{"$f":"'Risk Assessment Matrix'!B368","v":0},{"$f":"'Risk Assessment Matrix'!D368","v":0},{"$f":"'Risk Assessment Matrix'!E368","v":0},0]
[{"$f":"'Risk Assessment Matrix'!A369","v":0},{"$f":"'Risk Assessment Matrix'!B369","v":0},{"$f":"'Risk Assessment Matrix'!D369","v":0},{"$f":"'Risk Assessment Matrix'!E369","v":0},0]
[{"$f":"'Risk Assessment Matrix'!A370","v":0},{"$f":"'Risk Assessment Matrix'!B370","v":0},{"$f":"'Risk Assessment Matrix'!D370","v":0},{"$f":"'Risk Assessment Matrix'!E370","v":0},0]
[{"$f":"'Risk Assessment Matrix'!A371","v":0},{"$f":"'Risk Assessment Matrix'!B371","v":0},{"$f":"'Risk Assessment Matrix'!D371","v":0},{"$f":"'Risk Assessment Matrix'!E371","v":0},0]
[{"$f":"'Risk Assessment Matrix'!A372","v":0},{"$f":"'Risk Assessment Matrix'!B372","v":0},{"$f":"'Risk Assessment Matrix'!D372","v":0},{"$f":"'Risk Assessment Matrix'!E372","v":0},0]
[{"$f":"'Risk Assessment Matrix'!A373","v":0},{"$f":"'Risk Assessment Matrix'!B373","v":0},{"$f":"'Risk Assessment Matrix'!D373","v":0},{"$f":"'Risk Assessment Matrix'!E373","v":0},0]
[{"$f":"'Risk Assessment Matrix'!A374","v":0},{"$f":"'Risk Assessment Matrix'!B374","v":0},{"$f":"'Risk Assessment Matrix'!D374","v":0},{"$f":"'Risk Assessment Matrix'!E374","v":0},0]
[{"$f":"'Risk Assessment Matrix'!A375","v":0},{"$f":"'Risk Assessment Matrix'!B375","v":0},{"$f":"'Risk Assessment Matrix'!D375","v":0},{"$f":"'Risk Assessment Matrix'!E375","v":0},0]
[{"$f":"'Risk Assessment Matrix'!A376","v":0},{"$f":"'Risk Assessment Matrix'!B376","v":0},{"$f":"'Risk Assessment Matrix'!D376","v":0},{"$f":"'Risk Assessment Matrix'!E376","v":0},0]
[{"$f":"'Risk Assessment Matrix'!A377","v":0},{"$f":"'Risk Assessment Matrix'!B377","v":0},{"$f":"'Risk Assessment Matrix'!D377","v":0},{"$f":"'Risk Assessment Matrix'!E377","v":0},0]
[{"$f":"'Risk Assessment Matrix'!A378","v":0},{"$f":"'Risk Assessment Matrix'!B378","v":0},{"$f":"'Risk Assessment Matrix'!D378","v":0},{"$f":"'Risk Assessment Matrix'!E378","v":0},0]
[{"$f":"'Risk Assessment Matrix'!A379","v":0},{"$f":"'Risk Assessment Matrix'!B379","v":0},{"$f":"'Risk Assessment Matrix'!D379","v":0},{"$f":"'Risk Assessment Matrix'!E379","v":0},0]
[{"$f":"'Risk Assessment Matrix'!A380","v":0},{"$f":"'Risk Assessment Matrix'!B380","v":0},{"$f":"'Risk Assessment Matrix'!D380","v":0},{"$f":"'Risk Assessment Matrix'!E380","v":0},0]
[{"$f":"'Risk Assessment Matrix'!A381","v":0},{"$f":"'Risk Assessment Matrix'!B381","v":0},{"$f":"'Risk Assessment Matrix'!D381","v":0},{"$f":"'Risk Assessment Matrix'!E381","v":0},0]
[{"$f":"'Risk Assessment Matrix'!A382","v":0},{"$f":"'Risk Assessment Matrix'!B382","v":0},{"$f":"'Risk Assessment Matrix'!D382","v":0},{"$f":"'Risk Assessment Matrix'!E382","v":0},0]
[{"$f":"'Risk Assessment Matrix'!A383","v":0},{"$f":"'Risk Assessment Matrix'!B383","v":0},{"$f":"'Risk Assessment Matrix'!D383","v":0},{"$f":"'Risk Assessment Matrix'!E383","v":0},0]
[{"$f":"'Risk Assessment Matrix'!A384","v":0},{"$f":"'Risk Assessment Matrix'!B384","v":0},{"$f":"'Risk Assessment Matrix'!D384","v":0},{"$f":"'Risk Assessment Matrix'!E384","v":0},0]
[{"$f":"'Risk Assessment Matrix'!A385","v":0},{"$f":"'Risk Assessment Matrix'!B385","v":0},{"$f":"'Risk Assessment Matrix'!D385","v":0},{"$f":"'Risk Assessment Matrix'!E385","v":0},0]
[{"$f":"'Risk Assessment Matrix'!A386","v":0},{"$f":"'Risk Assessment Matrix'!B386","v":0},{"$f":"'Risk Assessment Matrix'!D386","v":0},{"$f":"'Risk Assessment Matrix'!E386","v":0},0]
[{"$f":"'Risk Assessment Matrix'!A387","v":0},{"$f":"'Risk Assessment Matrix'!B387","v":0},{"$f":"'Risk Assessment Matrix'!D387","v":0},{"$f":"'Risk Assessment Matrix'!E387","v":0},0]
[{"$f":"'Risk Assessment Matrix'!A388","v":0},{"$f":"'Risk Assessment Matrix'!B388","v":0},{"$f":"'Risk Assessment Matrix'!D388","v":0},{"$f":"'Risk Assessment Matrix'!E388","v":0},{"$f":"C388*D388","v":0}]
[{"$f":"'Risk Assessment Matrix'!A389","v":0},{"$f":"'Risk Assessment Matrix'!B389","v":0},{"$f":"'Risk Assessment Matrix'!D389","v":0},{"$f":"'Risk Assessment Matrix'!E389","v":0},0]
[{"$f":"'Risk Assessment Matrix'!A390","v":0},{"$f":"'Risk Assessment Matrix'!B390","v":0},{"$f":"'Risk Assessment Matrix'!D390","v":0},{"$f":"'Risk Assessment Matrix'!E390","v":0},0]
[{"$f":"'Risk Assessment Matrix'!A391","v":0},{"$f":"'Risk Assessment Matrix'!B391","v":0},{"$f":"'Risk Assessment Matrix'!D391","v":0},{"$f":"'Risk Assessment Matrix'!E391","v":0},0]
[{"$f":"'Risk Assessment Matrix'!A392","v":0},{"$f":"'Risk Assessment Matrix'!B392","v":0},{"$f":"'Risk Assessment Matrix'!D392","v":0},{"$f":"'Risk Assessment Matrix'!E392","v":0},0]
[{"$f":"'Risk Assessment Matrix'!A393","v":0},{"$f":"'Risk Assessment Matrix'!B393","v":0},{"$f":"'Risk Assessment Matrix'!D393","v":0},{"$f":"'Risk Assessment Matrix'!E393","v":0},0]
[{"$f":"'Risk Assessment Matrix'!A394","v":0},{"$f":"'Risk Assessment Matrix'!B394","v":0},{"$f":"'Risk Assessment Matrix'!D394","v":0},{"$f":"'Risk Assessment Matrix'!E394","v":0},0]
[{"$f":"'Risk Assessment Matrix'!A395","v":0},{"$f":"'Risk Assessment Matrix'!B395","v":0},{"$f":"'Risk Assessment Matrix'!D395","v":0},{"$f":"'Risk Assessment Matrix'!E395","v":0},0]
[{"$f":"'Risk Assessment Matrix'!A396","v":0},{"$f":"'Risk Assessment Matrix'!B396","v":0},{"$f":"'Risk Assessment Matrix'!D396","v":0},{"$f":"'Risk Assessment Matrix'!E396","v":0},0]
[{"$f":"'Risk Assessment Matrix'!A397","v":0},{"$f":"'Risk Assessment Matrix'!B397","v":0},{"$f":"'Risk Assessment Matrix'!D397","v":0},{"$f":"'Risk Assessment Matrix'!E397","v":0},0]
[{"$f":"'Risk Assessment Matrix'!A398","v":0},{"$f":"'Risk Assessment Matrix'!B398","v":0},{"$f":"'Risk Assessment Matrix'!D398","v":0},{"$f":"'Risk Assessment Matrix'!E398","v":0},0]
[{"$f":"'Risk Assessment Matrix'!A399","v":0},{"$f":"'Risk Assessment Matrix'!B399","v":0},{"$f":"'Risk Assessment Matrix'!D399","v":0},{"$f":"'Risk Assessment Matrix'!E399","v":0},0]
[{"$f":"'Risk Assessment Matrix'!A400","v":0},{"$f":"'Risk Assessment Matrix'!B400","v":0},{"$f":"'Risk Assessment Matrix'!D400","v":0},{"$f":"'Risk Assessment Matrix'!E400","v":0},0]

{"sheet":"Control Activities Matrix","index":7,"n_rows":400,"n_cols":9,"rows_kept":400,"cut":false,"hidden":false,"merged":[[0,0,0,8]]}
["Control Activities Matrix"]
[]
["ID Number","Identified Risks ","Risk Score","Existing Control Activities","Preventive [P], Detective [D], or Combined [C]","Responsible Person(s)","Additional Control Activities","Preventive [P], Detective [D], or Combined [C]","Responsible Person(s)"]
[{"$f":"'Risk Assessment Matrix'!A4","v":123},{"$f":"'Risk Assessment Matrix'!B4","v":"Completeness of Leases - GASB 87"},{"$f":"'Risk Assessment Matrix'!F4","v":16},{"$f":"'Risk Assessment Matrix'!H4","v":"Team Developed to Review contracts in contract maangedment - Scan and Review GL for potential leases - Review of Board Minutes for approval thresholds"},{"$f":"'Risk Assessment Matrix'!I4","v":"D"}]
[{"$f":"'Risk Assessment Matrix'!A5","v":0},{"$f":"'Risk Assessment Matrix'!B5","v":0},{"$f":"'Risk Assessment Matrix'!F5","v":0},{"$f":"'Risk Assessment Matrix'!H5","v":0},{"$f":"'Risk Assessment Matrix'!I5","v":0}]
[{"$f":"'Risk Assessment Matrix'!A6","v":0},{"$f":"'Risk Assessment Matrix'!B6","v":0},{"$f":"'Risk Assessment Matrix'!F6","v":0},{"$f":"'Risk Assessment Matrix'!H6","v":0},{"$f":"'Risk Assessment Matrix'!I6","v":0}]
[{"$f":"'Risk Assessment Matrix'!A7","v":0},{"$f":"'Risk Assessment Matrix'!B7","v":0},{"$f":"'Risk Assessment Matrix'!F7","v":0},{"$f":"'Risk Assessment Matrix'!H7","v":0},{"$f":"'Risk Assessment Matrix'!I7","v":0}]
[{"$f":"'Risk Assessment Matrix'!A8","v":0},{"$f":"'Risk Assessment Matrix'!B8","v":0},{"$f":"'Risk Assessment Matrix'!F8","v":0},{"$f":"'Risk Assessment Matrix'!H8","v":0},{"$f":"'Risk Assessment Matrix'!I8","v":0}]
[{"$f":"'Risk Assessment Matrix'!A9","v":0},{"$f":"'Risk Assessment Matrix'!B9","v":0},{"$f":"'Risk Assessment Matrix'!F9","v":0},{"$f":"'Risk Assessment Matrix'!H9","v":0},{"$f":"'Risk Assessment Matrix'!I9","v":0}]
[{"$f":"'Risk Assessment Matrix'!A10","v":0},{"$f":"'Risk Assessment Matrix'!B10","v":0},{"$f":"'Risk Assessment Matrix'!F10","v":0},{"$f":"'Risk Assessment Matrix'!H10","v":0},{"$f":"'Risk Assessment Matrix'!I10","v":0}]
[{"$f":"'Risk Assessment Matrix'!A11","v":0},{"$f":"'Risk Assessment Matrix'!B11","v":0},{"$f":"'Risk Assessment Matrix'!F11","v":0},{"$f":"'Risk Assessment Matrix'!H11","v":0},{"$f":"'Risk Assessment Matrix'!I11","v":0}]
[{"$f":"'Risk Assessment Matrix'!A12","v":0},{"$f":"'Risk Assessment Matrix'!B12","v":0},{"$f":"'Risk Assessment Matrix'!F12","v":0},{"$f":"'Risk Assessment Matrix'!H12","v":0},{"$f":"'Risk Assessment Matrix'!I12","v":0}]
[{"$f":"'Risk Assessment Matrix'!A13","v":0},{"$f":"'Risk Assessment Matrix'!B13","v":0},{"$f":"'Risk Assessment Matrix'!F13","v":0},{"$f":"'Risk Assessment Matrix'!H13","v":0},{"$f":"'Risk Assessment Matrix'!I13","v":0}]
[{"$f":"'Risk Assessment Matrix'!A14","v":0},{"$f":"'Risk Assessment Matrix'!B14","v":0},{"$f":"'Risk Assessment Matrix'!F14","v":0},{"$f":"'Risk Assessment Matrix'!H14","v":0},{"$f":"'Risk Assessment Matrix'!I14","v":0}]
[{"$f":"'Risk Assessment Matrix'!A15","v":0},{"$f":"'Risk Assessment Matrix'!B15","v":0},{"$f":"'Risk Assessment Matrix'!F15","v":0},{"$f":"'Risk Assessment Matrix'!H15","v":0},{"$f":"'Risk Assessment Matrix'!I15","v":0}]
[{"$f":"'Risk Assessment Matrix'!A16","v":0},{"$f":"'Risk Assessment Matrix'!B16","v":0},{"$f":"'Risk Assessment Matrix'!F16","v":0},{"$f":"'Risk Assessment Matrix'!H16","v":0},{"$f":"'Risk Assessment Matrix'!I16","v":0}]
[{"$f":"'Risk Assessment Matrix'!A17","v":0},{"$f":"'Risk Assessment Matrix'!B17","v":0},{"$f":"'Risk Assessment Matrix'!F17","v":0},{"$f":"'Risk Assessment Matrix'!H17","v":0},{"$f":"'Risk Assessment Matrix'!I17","v":0}]
[{"$f":"'Risk Assessment Matrix'!A18","v":0},{"$f":"'Risk Assessment Matrix'!B18","v":0},{"$f":"'Risk Assessment Matrix'!F18","v":0},{"$f":"'Risk Assessment Matrix'!H18","v":0},{"$f":"'Risk Assessment Matrix'!I18","v":0}]
[{"$f":"'Risk Assessment Matrix'!A19","v":0},{"$f":"'Risk Assessment Matrix'!B19","v":0},{"$f":"'Risk Assessment Matrix'!F19","v":0},{"$f":"'Risk Assessment Matrix'!H19","v":0},{"$f":"'Risk Assessment Matrix'!I19","v":0}]
[{"$f":"'Risk Assessment Matrix'!A20","v":0},{"$f":"'Risk Assessment Matrix'!B20","v":0},{"$f":"'Risk Assessment Matrix'!F20","v":0},{"$f":"'Risk Assessment Matrix'!H20","v":0},{"$f":"'Risk Assessment Matrix'!I20","v":0}]
[{"$f":"'Risk Assessment Matrix'!A21","v":0},{"$f":"'Risk Assessment Matrix'!B21","v":0},{"$f":"'Risk Assessment Matrix'!F21","v":0},{"$f":"'Risk Assessment Matrix'!H21","v":0},{"$f":"'Risk Assessment Matrix'!I21","v":0}]
[{"$f":"'Risk Assessment Matrix'!A22","v":0},{"$f":"'Risk Assessment Matrix'!B22","v":0},{"$f":"'Risk Assessment Matrix'!F22","v":0},{"$f":"'Risk Assessment Matrix'!H22","v":0},{"$f":"'Risk Assessment Matrix'!I22","v":0}]
[{"$f":"'Risk Assessment Matrix'!A23","v":0},{"$f":"'Risk Assessment Matrix'!B23","v":0},{"$f":"'Risk Assessment Matrix'!F23","v":0},{"$f":"'Risk Assessment Matrix'!H23","v":0},{"$f":"'Risk Assessment Matrix'!I23","v":0}]
[{"$f":"'Risk Assessment Matrix'!A24","v":0},{"$f":"'Risk Assessment Matrix'!B24","v":0},{"$f":"'Risk Assessment Matrix'!F24","v":0},{"$f":"'Risk Assessment Matrix'!H24","v":0},{"$f":"'Risk Assessment Matrix'!I24","v":0}]
[{"$f":"'Risk Assessment Matrix'!A25","v":0},{"$f":"'Risk Assessment Matrix'!B25","v":0},{"$f":"'Risk Assessment Matrix'!F25","v":0},{"$f":"'Risk Assessment Matrix'!H25","v":0},{"$f":"'Risk Assessment Matrix'!I25","v":0}]
[{"$f":"'Risk Assessment Matrix'!A26","v":0},{"$f":"'Risk Assessment Matrix'!B26","v":0},{"$f":"'Risk Assessment Matrix'!F26","v":0},{"$f":"'Risk Assessment Matrix'!H26","v":0},{"$f":"'Risk Assessment Matrix'!I26","v":0}]
[{"$f":"'Risk Assessment Matrix'!A27","v":0},{"$f":"'Risk Assessment Matrix'!B27","v":0},{"$f":"'Risk Assessment Matrix'!F27","v":0},{"$f":"'Risk Assessment Matrix'!H27","v":0},{"$f":"'Risk Assessment Matrix'!I27","v":0}]
[{"$f":"'Risk Assessment Matrix'!A28","v":0},{"$f":"'Risk Assessment Matrix'!B28","v":0},{"$f":"'Risk Assessment Matrix'!F28","v":0},{"$f":"'Risk Assessment Matrix'!H28","v":0},{"$f":"'Risk Assessment Matrix'!I28","v":0}]
[{"$f":"'Risk Assessment Matrix'!A29","v":0},{"$f":"'Risk Assessment Matrix'!B29","v":0},{"$f":"'Risk Assessment Matrix'!F29","v":0},{"$f":"'Risk Assessment Matrix'!H29","v":0},{"$f":"'Risk Assessment Matrix'!I29","v":0}]
[{"$f":"'Risk Assessment Matrix'!A30","v":0},{"$f":"'Risk Assessment Matrix'!B30","v":0},{"$f":"'Risk Assessment Matrix'!F30","v":0},{"$f":"'Risk Assessment Matrix'!H30","v":0},{"$f":"'Risk Assessment Matrix'!I30","v":0}]
[{"$f":"'Risk Assessment Matrix'!A31","v":0},{"$f":"'Risk Assessment Matrix'!B31","v":0},{"$f":"'Risk Assessment Matrix'!F31","v":0},{"$f":"'Risk Assessment Matrix'!H31","v":0},{"$f":"'Risk Assessment Matrix'!I31","v":0}]
[{"$f":"'Risk Assessment Matrix'!A32","v":0},{"$f":"'Risk Assessment Matrix'!B32","v":0},{"$f":"'Risk Assessment Matrix'!F32","v":0},{"$f":"'Risk Assessment Matrix'!H32","v":0},{"$f":"'Risk Assessment Matrix'!I32","v":0}]
[{"$f":"'Risk Assessment Matrix'!A33","v":0},{"$f":"'Risk Assessment Matrix'!B33","v":0},{"$f":"'Risk Assessment Matrix'!F33","v":0},{"$f":"'Risk Assessment Matrix'!H33","v":0},{"$f":"'Risk Assessment Matrix'!I33","v":0}]
[{"$f":"'Risk Assessment Matrix'!A34","v":0},{"$f":"'Risk Assessment Matrix'!B34","v":0},{"$f":"'Risk Assessment Matrix'!F34","v":0},{"$f":"'Risk Assessment Matrix'!H34","v":0},{"$f":"'Risk Assessment Matrix'!I34","v":0}]
[{"$f":"'Risk Assessment Matrix'!A35","v":0},{"$f":"'Risk Assessment Matrix'!B35","v":0},{"$f":"'Risk Assessment Matrix'!F35","v":0},{"$f":"'Risk Assessment Matrix'!H35","v":0},{"$f":"'Risk Assessment Matrix'!I35","v":0}]
[{"$f":"'Risk Assessment Matrix'!A36","v":0},{"$f":"'Risk Assessment Matrix'!B36","v":0},{"$f":"'Risk Assessment Matrix'!F36","v":0},{"$f":"'Risk Assessment Matrix'!H36","v":0},{"$f":"'Risk Assessment Matrix'!I36","v":0}]
[{"$f":"'Risk Assessment Matrix'!A37","v":0},{"$f":"'Risk Assessment Matrix'!B37","v":0},{"$f":"'Risk Assessment Matrix'!F37","v":0},{"$f":"'Risk Assessment Matrix'!H37","v":0},{"$f":"'Risk Assessment Matrix'!I37","v":0}]
[{"$f":"'Risk Assessment Matrix'!A38","v":0},{"$f":"'Risk Assessment Matrix'!B38","v":0},{"$f":"'Risk Assessment Matrix'!F38","v":0},{"$f":"'Risk Assessment Matrix'!H38","v":0},{"$f":"'Risk Assessment Matrix'!I38","v":0}]
[{"$f":"'Risk Assessment Matrix'!A39","v":0},{"$f":"'Risk Assessment Matrix'!B39","v":0},{"$f":"'Risk Assessment Matrix'!F39","v":0},{"$f":"'Risk Assessment Matrix'!H39","v":0},{"$f":"'Risk Assessment Matrix'!I39","v":0}]
[{"$f":"'Risk Assessment Matrix'!A40","v":0},{"$f":"'Risk Assessment Matrix'!B40","v":0},{"$f":"'Risk Assessment Matrix'!F40","v":0},{"$f":"'Risk Assessment Matrix'!H40","v":0},{"$f":"'Risk Assessment Matrix'!I40","v":0}]
[{"$f":"'Risk Assessment Matrix'!A41","v":0},{"$f":"'Risk Assessment Matrix'!B41","v":0},{"$f":"'Risk Assessment Matrix'!F41","v":0},{"$f":"'Risk Assessment Matrix'!H41","v":0},{"$f":"'Risk Assessment Matrix'!I41","v":0}]
[{"$f":"'Risk Assessment Matrix'!A42","v":0},{"$f":"'Risk Assessment Matrix'!B42","v":0},{"$f":"'Risk Assessment Matrix'!F42","v":0},{"$f":"'Risk Assessment Matrix'!H42","v":0},{"$f":"'Risk Assessment Matrix'!I42","v":0}]
[{"$f":"'Risk Assessment Matrix'!A43","v":0},{"$f":"'Risk Assessment Matrix'!B43","v":0},{"$f":"'Risk Assessment Matrix'!F43","v":0},{"$f":"'Risk Assessment Matrix'!H43","v":0},{"$f":"'Risk Assessment Matrix'!I43","v":0}]
[{"$f":"'Risk Assessment Matrix'!A44","v":0},{"$f":"'Risk Assessment Matrix'!B44","v":0},{"$f":"'Risk Assessment Matrix'!F44","v":0},{"$f":"'Risk Assessment Matrix'!H44","v":0},{"$f":"'Risk Assessment Matrix'!I44","v":0}]
[{"$f":"'Risk Assessment Matrix'!A45","v":0},{"$f":"'Risk Assessment Matrix'!B45","v":0},{"$f":"'Risk Assessment Matrix'!F45","v":0},{"$f":"'Risk Assessment Matrix'!H45","v":0},{"$f":"'Risk Assessment Matrix'!I45","v":0}]
[{"$f":"'Risk Assessment Matrix'!A46","v":0},{"$f":"'Risk Assessment Matrix'!B46","v":0},{"$f":"'Risk Assessment Matrix'!F46","v":0},{"$f":"'Risk Assessment Matrix'!H46","v":0},{"$f":"'Risk Assessment Matrix'!I46","v":0}]
[{"$f":"'Risk Assessment Matrix'!A47","v":0},{"$f":"'Risk Assessment Matrix'!B47","v":0},{"$f":"'Risk Assessment Matrix'!F47","v":0},{"$f":"'Risk Assessment Matrix'!H47","v":0},{"$f":"'Risk Assessment Matrix'!I47","v":0}]
[{"$f":"'Risk Assessment Matrix'!A48","v":0},{"$f":"'Risk Assessment Matrix'!B48","v":0},{"$f":"'Risk Assessment Matrix'!F48","v":0},{"$f":"'Risk Assessment Matrix'!H48","v":0},{"$f":"'Risk Assessment Matrix'!I48","v":0}]
[{"$f":"'Risk Assessment Matrix'!A49","v":0},{"$f":"'Risk Assessment Matrix'!B49","v":0},{"$f":"'Risk Assessment Matrix'!F49","v":0},{"$f":"'Risk Assessment Matrix'!H49","v":0},{"$f":"'Risk Assessment Matrix'!I49","v":0}]
[{"$f":"'Risk Assessment Matrix'!A50","v":0},{"$f":"'Risk Assessment Matrix'!B50","v":0},{"$f":"'Risk Assessment Matrix'!F50","v":0},{"$f":"'Risk Assessment Matrix'!H50","v":0},{"$f":"'Risk Assessment Matrix'!I50","v":0}]
[{"$f":"'Risk Assessment Matrix'!A51","v":0},{"$f":"'Risk Assessment Matrix'!B51","v":0},{"$f":"'Risk Assessment Matrix'!F51","v":0},{"$f":"'Risk Assessment Matrix'!H51","v":0},{"$f":"'Risk Assessment Matrix'!I51","v":0}]
[{"$f":"'Risk Assessment Matrix'!A52","v":0},{"$f":"'Risk Assessment Matrix'!B52","v":0},{"$f":"'Risk Assessment Matrix'!F52","v":0},{"$f":"'Risk Assessment Matrix'!H52","v":0},{"$f":"'Risk Assessment Matrix'!I52","v":0}]
[{"$f":"'Risk Assessment Matrix'!A53","v":0},{"$f":"'Risk Assessment Matrix'!B53","v":0},{"$f":"'Risk Assessment Matrix'!F53","v":0},{"$f":"'Risk Assessment Matrix'!H53","v":0},{"$f":"'Risk Assessment Matrix'!I53","v":0}]
[{"$f":"'Risk Assessment Matrix'!A54","v":0},{"$f":"'Risk Assessment Matrix'!B54","v":0},{"$f":"'Risk Assessment Matrix'!F54","v":0},{"$f":"'Risk Assessment Matrix'!H54","v":0},{"$f":"'Risk Assessment Matrix'!I54","v":0}]
[{"$f":"'Risk Assessment Matrix'!A55","v":0},{"$f":"'Risk Assessment Matrix'!B55","v":0},{"$f":"'Risk Assessment Matrix'!F55","v":0},{"$f":"'Risk Assessment Matrix'!H55","v":0},{"$f":"'Risk Assessment Matrix'!I55","v":0}]
[{"$f":"'Risk Assessment Matrix'!A56","v":0},{"$f":"'Risk Assessment Matrix'!B56","v":0},{"$f":"'Risk Assessment Matrix'!F56","v":0},{"$f":"'Risk Assessment Matrix'!H56","v":0},{"$f":"'Risk Assessment Matrix'!I56","v":0}]
[{"$f":"'Risk Assessment Matrix'!A57","v":0},{"$f":"'Risk Assessment Matrix'!B57","v":0},{"$f":"'Risk Assessment Matrix'!F57","v":0},{"$f":"'Risk Assessment Matrix'!H57","v":0},{"$f":"'Risk Assessment Matrix'!I57","v":0}]
[{"$f":"'Risk Assessment Matrix'!A58","v":0},{"$f":"'Risk Assessment Matrix'!B58","v":0},{"$f":"'Risk Assessment Matrix'!F58","v":0},{"$f":"'Risk Assessment Matrix'!H58","v":0},{"$f":"'Risk Assessment Matrix'!I58","v":0}]
[{"$f":"'Risk Assessment Matrix'!A59","v":0},{"$f":"'Risk Assessment Matrix'!B59","v":0},{"$f":"'Risk Assessment Matrix'!F59","v":0},{"$f":"'Risk Assessment Matrix'!H59","v":0},{"$f":"'Risk Assessment Matrix'!I59","v":0}]
[{"$f":"'Risk Assessment Matrix'!A60","v":0},{"$f":"'Risk Assessment Matrix'!B60","v":0},{"$f":"'Risk Assessment Matrix'!F60","v":0},{"$f":"'Risk Assessment Matrix'!H60","v":0},{"$f":"'Risk Assessment Matrix'!I60","v":0}]
[{"$f":"'Risk Assessment Matrix'!A61","v":0},{"$f":"'Risk Assessment Matrix'!B61","v":0},{"$f":"'Risk Assessment Matrix'!F61","v":0},{"$f":"'Risk Assessment Matrix'!H61","v":0},{"$f":"'Risk Assessment Matrix'!I61","v":0}]
[{"$f":"'Risk Assessment Matrix'!A62","v":0},{"$f":"'Risk Assessment Matrix'!B62","v":0},{"$f":"'Risk Assessment Matrix'!F62","v":0},{"$f":"'Risk Assessment Matrix'!H62","v":0},{"$f":"'Risk Assessment Matrix'!I62","v":0}]
[{"$f":"'Risk Assessment Matrix'!A63","v":0},{"$f":"'Risk Assessment Matrix'!B63","v":0},{"$f":"'Risk Assessment Matrix'!F63","v":0},{"$f":"'Risk Assessment Matrix'!H63","v":0},{"$f":"'Risk Assessment Matrix'!I63","v":0}]
[{"$f":"'Risk Assessment Matrix'!A64","v":0},{"$f":"'Risk Assessment Matrix'!B64","v":0},{"$f":"'Risk Assessment Matrix'!F64","v":0},{"$f":"'Risk Assessment Matrix'!H64","v":0},{"$f":"'Risk Assessment Matrix'!I64","v":0}]
[{"$f":"'Risk Assessment Matrix'!A65","v":0},{"$f":"'Risk Assessment Matrix'!B65","v":0},{"$f":"'Risk Assessment Matrix'!F65","v":0},{"$f":"'Risk Assessment Matrix'!H65","v":0},{"$f":"'Risk Assessment Matrix'!I65","v":0}]
[{"$f":"'Risk Assessment Matrix'!A66","v":0},{"$f":"'Risk Assessment Matrix'!B66","v":0},{"$f":"'Risk Assessment Matrix'!F66","v":0},{"$f":"'Risk Assessment Matrix'!H66","v":0},{"$f":"'Risk Assessment Matrix'!I66","v":0}]
[{"$f":"'Risk Assessment Matrix'!A67","v":0},{"$f":"'Risk Assessment Matrix'!B67","v":0},{"$f":"'Risk Assessment Matrix'!F67","v":0},{"$f":"'Risk Assessment Matrix'!H67","v":0},{"$f":"'Risk Assessment Matrix'!I67","v":0}]
[{"$f":"'Risk Assessment Matrix'!A68","v":0},{"$f":"'Risk Assessment Matrix'!B68","v":0},{"$f":"'Risk Assessment Matrix'!F68","v":0},{"$f":"'Risk Assessment Matrix'!H68","v":0},{"$f":"'Risk Assessment Matrix'!I68","v":0}]
[{"$f":"'Risk Assessment Matrix'!A69","v":0},{"$f":"'Risk Assessment Matrix'!B69","v":0},{"$f":"'Risk Assessment Matrix'!F69","v":0},{"$f":"'Risk Assessment Matrix'!H69","v":0},{"$f":"'Risk Assessment Matrix'!I69","v":0}]
[{"$f":"'Risk Assessment Matrix'!A70","v":0},{"$f":"'Risk Assessment Matrix'!B70","v":0},{"$f":"'Risk Assessment Matrix'!F70","v":0},{"$f":"'Risk Assessment Matrix'!H70","v":0},{"$f":"'Risk Assessment Matrix'!I70","v":0}]
[{"$f":"'Risk Assessment Matrix'!A71","v":0},{"$f":"'Risk Assessment Matrix'!B71","v":0},{"$f":"'Risk Assessment Matrix'!F71","v":0},{"$f":"'Risk Assessment Matrix'!H71","v":0},{"$f":"'Risk Assessment Matrix'!I71","v":0}]
[{"$f":"'Risk Assessment Matrix'!A72","v":0},{"$f":"'Risk Assessment Matrix'!B72","v":0},{"$f":"'Risk Assessment Matrix'!F72","v":0},{"$f":"'Risk Assessment Matrix'!H72","v":0},{"$f":"'Risk Assessment Matrix'!I72","v":0}]
[{"$f":"'Risk Assessment Matrix'!A73","v":0},{"$f":"'Risk Assessment Matrix'!B73","v":0},{"$f":"'Risk Assessment Matrix'!F73","v":0},{"$f":"'Risk Assessment Matrix'!H73","v":0},{"$f":"'Risk Assessment Matrix'!I73","v":0}]
[{"$f":"'Risk Assessment Matrix'!A74","v":0},{"$f":"'Risk Assessment Matrix'!B74","v":0},{"$f":"'Risk Assessment Matrix'!F74","v":0},{"$f":"'Risk Assessment Matrix'!H74","v":0},{"$f":"'Risk Assessment Matrix'!I74","v":0}]
[{"$f":"'Risk Assessment Matrix'!A75","v":0},{"$f":"'Risk Assessment Matrix'!B75","v":0},{"$f":"'Risk Assessment Matrix'!F75","v":0},{"$f":"'Risk Assessment Matrix'!H75","v":0},{"$f":"'Risk Assessment Matrix'!I75","v":0}]
[{"$f":"'Risk Assessment Matrix'!A76","v":0},{"$f":"'Risk Assessment Matrix'!B76","v":0},{"$f":"'Risk Assessment Matrix'!F76","v":0},{"$f":"'Risk Assessment Matrix'!H76","v":0},{"$f":"'Risk Assessment Matrix'!I76","v":0}]
[{"$f":"'Risk Assessment Matrix'!A77","v":0},{"$f":"'Risk Assessment Matrix'!B77","v":0},{"$f":"'Risk Assessment Matrix'!F77","v":0},{"$f":"'Risk Assessment Matrix'!H77","v":0},{"$f":"'Risk Assessment Matrix'!I77","v":0}]
[{"$f":"'Risk Assessment Matrix'!A78","v":0},{"$f":"'Risk Assessment Matrix'!B78","v":0},{"$f":"'Risk Assessment Matrix'!F78","v":0},{"$f":"'Risk Assessment Matrix'!H78","v":0},{"$f":"'Risk Assessment Matrix'!I78","v":0}]
[{"$f":"'Risk Assessment Matrix'!A79","v":0},{"$f":"'Risk Assessment Matrix'!B79","v":0},{"$f":"'Risk Assessment Matrix'!F79","v":0},{"$f":"'Risk Assessment Matrix'!H79","v":0},{"$f":"'Risk Assessment Matrix'!I79","v":0}]
[{"$f":"'Risk Assessment Matrix'!A80","v":0},{"$f":"'Risk Assessment Matrix'!B80","v":0},{"$f":"'Risk Assessment Matrix'!F80","v":0},{"$f":"'Risk Assessment Matrix'!H80","v":0},{"$f":"'Risk Assessment Matrix'!I80","v":0}]
[{"$f":"'Risk Assessment Matrix'!A81","v":0},{"$f":"'Risk Assessment Matrix'!B81","v":0},{"$f":"'Risk Assessment Matrix'!F81","v":0},{"$f":"'Risk Assessment Matrix'!H81","v":0},{"$f":"'Risk Assessment Matrix'!I81","v":0}]
[{"$f":"'Risk Assessment Matrix'!A82","v":0},{"$f":"'Risk Assessment Matrix'!B82","v":0},{"$f":"'Risk Assessment Matrix'!F82","v":0},{"$f":"'Risk Assessment Matrix'!H82","v":0},{"$f":"'Risk Assessment Matrix'!I82","v":0}]
[{"$f":"'Risk Assessment Matrix'!A83","v":0},{"$f":"'Risk Assessment Matrix'!B83","v":0},{"$f":"'Risk Assessment Matrix'!F83","v":0},{"$f":"'Risk Assessment Matrix'!H83","v":0},{"$f":"'Risk Assessment Matrix'!I83","v":0}]
[{"$f":"'Risk Assessment Matrix'!A84","v":0},{"$f":"'Risk Assessment Matrix'!B84","v":0},{"$f":"'Risk Assessment Matrix'!F84","v":0},{"$f":"'Risk Assessment Matrix'!H84","v":0},{"$f":"'Risk Assessment Matrix'!I84","v":0}]
[{"$f":"'Risk Assessment Matrix'!A85","v":0},{"$f":"'Risk Assessment Matrix'!B85","v":0},{"$f":"'Risk Assessment Matrix'!F85","v":0},{"$f":"'Risk Assessment Matrix'!H85","v":0},{"$f":"'Risk Assessment Matrix'!I85","v":0}]
[{"$f":"'Risk Assessment Matrix'!A86","v":0},{"$f":"'Risk Assessment Matrix'!B86","v":0},{"$f":"'Risk Assessment Matrix'!F86","v":0},{"$f":"'Risk Assessment Matrix'!H86","v":0},{"$f":"'Risk Assessment Matrix'!I86","v":0}]
[{"$f":"'Risk Assessment Matrix'!A87","v":0},{"$f":"'Risk Assessment Matrix'!B87","v":0},{"$f":"'Risk Assessment Matrix'!F87","v":0},{"$f":"'Risk Assessment Matrix'!H87","v":0},{"$f":"'Risk Assessment Matrix'!I87","v":0}]
[{"$f":"'Risk Assessment Matrix'!A88","v":0},{"$f":"'Risk Assessment Matrix'!B88","v":0},{"$f":"'Risk Assessment Matrix'!F88","v":0},{"$f":"'Risk Assessment Matrix'!H88","v":0},{"$f":"'Risk Assessment Matrix'!I88","v":0}]
[{"$f":"'Risk Assessment Matrix'!A89","v":0},{"$f":"'Risk Assessment Matrix'!B89","v":0},{"$f":"'Risk Assessment Matrix'!F89","v":0},{"$f":"'Risk Assessment Matrix'!H89","v":0},{"$f":"'Risk Assessment Matrix'!I89","v":0}]
[{"$f":"'Risk Assessment Matrix'!A90","v":0},{"$f":"'Risk Assessment Matrix'!B90","v":0},{"$f":"'Risk Assessment Matrix'!F90","v":0},{"$f":"'Risk Assessment Matrix'!H90","v":0},{"$f":"'Risk Assessment Matrix'!I90","v":0}]
[{"$f":"'Risk Assessment Matrix'!A91","v":0},{"$f":"'Risk Assessment Matrix'!B91","v":0},{"$f":"'Risk Assessment Matrix'!F91","v":0},{"$f":"'Risk Assessment Matrix'!H91","v":0},{"$f":"'Risk Assessment Matrix'!I91","v":0}]
[{"$f":"'Risk Assessment Matrix'!A92","v":0},{"$f":"'Risk Assessment Matrix'!B92","v":0},{"$f":"'Risk Assessment Matrix'!F92","v":0},{"$f":"'Risk Assessment Matrix'!H92","v":0},{"$f":"'Risk Assessment Matrix'!I92","v":0}]
[{"$f":"'Risk Assessment Matrix'!A93","v":0},{"$f":"'Risk Assessment Matrix'!B93","v":0},{"$f":"'Risk Assessment Matrix'!F93","v":0},{"$f":"'Risk Assessment Matrix'!H93","v":0},{"$f":"'Risk Assessment Matrix'!I93","v":0}]
[{"$f":"'Risk Assessment Matrix'!A94","v":0},{"$f":"'Risk Assessment Matrix'!B94","v":0},{"$f":"'Risk Assessment Matrix'!F94","v":0},{"$f":"'Risk Assessment Matrix'!H94","v":0},{"$f":"'Risk Assessment Matrix'!I94","v":0}]
[{"$f":"'Risk Assessment Matrix'!A95","v":0},{"$f":"'Risk Assessment Matrix'!B95","v":0},{"$f":"'Risk Assessment Matrix'!F95","v":0},{"$f":"'Risk Assessment Matrix'!H95","v":0},{"$f":"'Risk Assessment Matrix'!I95","v":0}]
[{"$f":"'Risk Assessment Matrix'!A96","v":0},{"$f":"'Risk Assessment Matrix'!B96","v":0},{"$f":"'Risk Assessment Matrix'!F96","v":0},{"$f":"'Risk Assessment Matrix'!H96","v":0},{"$f":"'Risk Assessment Matrix'!I96","v":0}]
[{"$f":"'Risk Assessment Matrix'!A97","v":0},{"$f":"'Risk Assessment Matrix'!B97","v":0},{"$f":"'Risk Assessment Matrix'!F97","v":0},{"$f":"'Risk Assessment Matrix'!H97","v":0},{"$f":"'Risk Assessment Matrix'!I97","v":0}]
[{"$f":"'Risk Assessment Matrix'!A98","v":0},{"$f":"'Risk Assessment Matrix'!B98","v":0},{"$f":"'Risk Assessment Matrix'!F98","v":0},{"$f":"'Risk Assessment Matrix'!H98","v":0},{"$f":"'Risk Assessment Matrix'!I98","v":0}]
[{"$f":"'Risk Assessment Matrix'!A99","v":0},{"$f":"'Risk Assessment Matrix'!B99","v":0},{"$f":"'Risk Assessment Matrix'!F99","v":0},{"$f":"'Risk Assessment Matrix'!H99","v":0},{"$f":"'Risk Assessment Matrix'!I99","v":0}]
[{"$f":"'Risk Assessment Matrix'!A100","v":0},{"$f":"'Risk Assessment Matrix'!B100","v":0},{"$f":"'Risk Assessment Matrix'!F100","v":0},{"$f":"'Risk Assessment Matrix'!H100","v":0},{"$f":"'Risk Assessment Matrix'!I100","v":0}]
[{"$f":"'Risk Assessment Matrix'!A101","v":0},{"$f":"'Risk Assessment Matrix'!B101","v":0},{"$f":"'Risk Assessment Matrix'!F101","v":0},{"$f":"'Risk Assessment Matrix'!H101","v":0},{"$f":"'Risk Assessment Matrix'!I101","v":0}]
[{"$f":"'Risk Assessment Matrix'!A102","v":0},{"$f":"'Risk Assessment Matrix'!B102","v":0},{"$f":"'Risk Assessment Matrix'!F102","v":0},{"$f":"'Risk Assessment Matrix'!H102","v":0},{"$f":"'Risk Assessment Matrix'!I102","v":0}]
[{"$f":"'Risk Assessment Matrix'!A103","v":0},{"$f":"'Risk Assessment Matrix'!B103","v":0},{"$f":"'Risk Assessment Matrix'!F103","v":0},{"$f":"'Risk Assessment Matrix'!H103","v":0},{"$f":"'Risk Assessment Matrix'!I103","v":0}]
[{"$f":"'Risk Assessment Matrix'!A104","v":0},{"$f":"'Risk Assessment Matrix'!B104","v":0},{"$f":"'Risk Assessment Matrix'!F104","v":0},{"$f":"'Risk Assessment Matrix'!H104","v":0},{"$f":"'Risk Assessment Matrix'!I104","v":0}]
[{"$f":"'Risk Assessment Matrix'!A105","v":0},{"$f":"'Risk Assessment Matrix'!B105","v":0},{"$f":"'Risk Assessment Matrix'!F105","v":0},{"$f":"'Risk Assessment Matrix'!H105","v":0},{"$f":"'Risk Assessment Matrix'!I105","v":0}]
[{"$f":"'Risk Assessment Matrix'!A106","v":0},{"$f":"'Risk Assessment Matrix'!B106","v":0},{"$f":"'Risk Assessment Matrix'!F106","v":0},{"$f":"'Risk Assessment Matrix'!H106","v":0},{"$f":"'Risk Assessment Matrix'!I106","v":0}]
[{"$f":"'Risk Assessment Matrix'!A107","v":0},{"$f":"'Risk Assessment Matrix'!B107","v":0},{"$f":"'Risk Assessment Matrix'!F107","v":0},{"$f":"'Risk Assessment Matrix'!H107","v":0},{"$f":"'Risk Assessment Matrix'!I107","v":0}]
[{"$f":"'Risk Assessment Matrix'!A108","v":0},{"$f":"'Risk Assessment Matrix'!B108","v":0},{"$f":"'Risk Assessment Matrix'!F108","v":0},{"$f":"'Risk Assessment Matrix'!H108","v":0},{"$f":"'Risk Assessment Matrix'!I108","v":0}]
[{"$f":"'Risk Assessment Matrix'!A109","v":0},{"$f":"'Risk Assessment Matrix'!B109","v":0},{"$f":"'Risk Assessment Matrix'!F109","v":0},{"$f":"'Risk Assessment Matrix'!H109","v":0},{"$f":"'Risk Assessment Matrix'!I109","v":0}]
[{"$f":"'Risk Assessment Matrix'!A110","v":0},{"$f":"'Risk Assessment Matrix'!B110","v":0},{"$f":"'Risk Assessment Matrix'!F110","v":0},{"$f":"'Risk Assessment Matrix'!H110","v":0},{"$f":"'Risk Assessment Matrix'!I110","v":0}]
[{"$f":"'Risk Assessment Matrix'!A111","v":0},{"$f":"'Risk Assessment Matrix'!B111","v":0},{"$f":"'Risk Assessment Matrix'!F111","v":0},{"$f":"'Risk Assessment Matrix'!H111","v":0},{"$f":"'Risk Assessment Matrix'!I111","v":0}]
[{"$f":"'Risk Assessment Matrix'!A112","v":0},{"$f":"'Risk Assessment Matrix'!B112","v":0},{"$f":"'Risk Assessment Matrix'!F112","v":0},{"$f":"'Risk Assessment Matrix'!H112","v":0},{"$f":"'Risk Assessment Matrix'!I112","v":0}]
[{"$f":"'Risk Assessment Matrix'!A113","v":0},{"$f":"'Risk Assessment Matrix'!B113","v":0},{"$f":"'Risk Assessment Matrix'!F113","v":0},{"$f":"'Risk Assessment Matrix'!H113","v":0},{"$f":"'Risk Assessment Matrix'!I113","v":0}]
[{"$f":"'Risk Assessment Matrix'!A114","v":0},{"$f":"'Risk Assessment Matrix'!B114","v":0},{"$f":"'Risk Assessment Matrix'!F114","v":0},{"$f":"'Risk Assessment Matrix'!H114","v":0},{"$f":"'Risk Assessment Matrix'!I114","v":0}]
[{"$f":"'Risk Assessment Matrix'!A115","v":0},{"$f":"'Risk Assessment Matrix'!B115","v":0},{"$f":"'Risk Assessment Matrix'!F115","v":0},{"$f":"'Risk Assessment Matrix'!H115","v":0},{"$f":"'Risk Assessment Matrix'!I115","v":0}]
[{"$f":"'Risk Assessment Matrix'!A116","v":0},{"$f":"'Risk Assessment Matrix'!B116","v":0},{"$f":"'Risk Assessment Matrix'!F116","v":0},{"$f":"'Risk Assessment Matrix'!H116","v":0},{"$f":"'Risk Assessment Matrix'!I116","v":0}]
[{"$f":"'Risk Assessment Matrix'!A117","v":0},{"$f":"'Risk Assessment Matrix'!B117","v":0},{"$f":"'Risk Assessment Matrix'!F117","v":0},{"$f":"'Risk Assessment Matrix'!H117","v":0},{"$f":"'Risk Assessment Matrix'!I117","v":0}]
[{"$f":"'Risk Assessment Matrix'!A118","v":0},{"$f":"'Risk Assessment Matrix'!B118","v":0},{"$f":"'Risk Assessment Matrix'!F118","v":0},{"$f":"'Risk Assessment Matrix'!H118","v":0},{"$f":"'Risk Assessment Matrix'!I118","v":0}]
[{"$f":"'Risk Assessment Matrix'!A119","v":0},{"$f":"'Risk Assessment Matrix'!B119","v":0},{"$f":"'Risk Assessment Matrix'!F119","v":0},{"$f":"'Risk Assessment Matrix'!H119","v":0},{"$f":"'Risk Assessment Matrix'!I119","v":0}]
[{"$f":"'Risk Assessment Matrix'!A120","v":0},{"$f":"'Risk Assessment Matrix'!B120","v":0},{"$f":"'Risk Assessment Matrix'!F120","v":0},{"$f":"'Risk Assessment Matrix'!H120","v":0},{"$f":"'Risk Assessment Matrix'!I120","v":0}]
[{"$f":"'Risk Assessment Matrix'!A121","v":0},{"$f":"'Risk Assessment Matrix'!B121","v":0},{"$f":"'Risk Assessment Matrix'!F121","v":0},{"$f":"'Risk Assessment Matrix'!H121","v":0},{"$f":"'Risk Assessment Matrix'!I121","v":0}]
[{"$f":"'Risk Assessment Matrix'!A122","v":0},{"$f":"'Risk Assessment Matrix'!B122","v":0},{"$f":"'Risk Assessment Matrix'!F122","v":0},{"$f":"'Risk Assessment Matrix'!H122","v":0},{"$f":"'Risk Assessment Matrix'!I122","v":0}]
[{"$f":"'Risk Assessment Matrix'!A123","v":0},{"$f":"'Risk Assessment Matrix'!B123","v":0},{"$f":"'Risk Assessment Matrix'!F123","v":0},{"$f":"'Risk Assessment Matrix'!H123","v":0},{"$f":"'Risk Assessment Matrix'!I123","v":0}]
[{"$f":"'Risk Assessment Matrix'!A124","v":0},{"$f":"'Risk Assessment Matrix'!B124","v":0},{"$f":"'Risk Assessment Matrix'!F124","v":0},{"$f":"'Risk Assessment Matrix'!H124","v":0},{"$f":"'Risk Assessment Matrix'!I124","v":0}]
[{"$f":"'Risk Assessment Matrix'!A125","v":0},{"$f":"'Risk Assessment Matrix'!B125","v":0},{"$f":"'Risk Assessment Matrix'!F125","v":0},{"$f":"'Risk Assessment Matrix'!H125","v":0},{"$f":"'Risk Assessment Matrix'!I125","v":0}]
[{"$f":"'Risk Assessment Matrix'!A126","v":0},{"$f":"'Risk Assessment Matrix'!B126","v":0},{"$f":"'Risk Assessment Matrix'!F126","v":0},{"$f":"'Risk Assessment Matrix'!H126","v":0},{"$f":"'Risk Assessment Matrix'!I126","v":0}]
[{"$f":"'Risk Assessment Matrix'!A127","v":0},{"$f":"'Risk Assessment Matrix'!B127","v":0},{"$f":"'Risk Assessment Matrix'!F127","v":0},{"$f":"'Risk Assessment Matrix'!H127","v":0},{"$f":"'Risk Assessment Matrix'!I127","v":0}]
[{"$f":"'Risk Assessment Matrix'!A128","v":0},{"$f":"'Risk Assessment Matrix'!B128","v":0},{"$f":"'Risk Assessment Matrix'!F128","v":0},{"$f":"'Risk Assessment Matrix'!H128","v":0},{"$f":"'Risk Assessment Matrix'!I128","v":0}]
[{"$f":"'Risk Assessment Matrix'!A129","v":0},{"$f":"'Risk Assessment Matrix'!B129","v":0},{"$f":"'Risk Assessment Matrix'!F129","v":0},{"$f":"'Risk Assessment Matrix'!H129","v":0},{"$f":"'Risk Assessment Matrix'!I129","v":0}]
[{"$f":"'Risk Assessment Matrix'!A130","v":0},{"$f":"'Risk Assessment Matrix'!B130","v":0},{"$f":"'Risk Assessment Matrix'!F130","v":0},{"$f":"'Risk Assessment Matrix'!H130","v":0},{"$f":"'Risk Assessment Matrix'!I130","v":0}]
[{"$f":"'Risk Assessment Matrix'!A131","v":0},{"$f":"'Risk Assessment Matrix'!B131","v":0},{"$f":"'Risk Assessment Matrix'!F131","v":0},{"$f":"'Risk Assessment Matrix'!H131","v":0},{"$f":"'Risk Assessment Matrix'!I131","v":0}]
[{"$f":"'Risk Assessment Matrix'!A132","v":0},{"$f":"'Risk Assessment Matrix'!B132","v":0},{"$f":"'Risk Assessment Matrix'!F132","v":0},{"$f":"'Risk Assessment Matrix'!H132","v":0},{"$f":"'Risk Assessment Matrix'!I132","v":0}]
[{"$f":"'Risk Assessment Matrix'!A133","v":0},{"$f":"'Risk Assessment Matrix'!B133","v":0},{"$f":"'Risk Assessment Matrix'!F133","v":0},{"$f":"'Risk Assessment Matrix'!H133","v":0},{"$f":"'Risk Assessment Matrix'!I133","v":0}]
[{"$f":"'Risk Assessment Matrix'!A134","v":0},{"$f":"'Risk Assessment Matrix'!B134","v":0},{"$f":"'Risk Assessment Matrix'!F134","v":0},{"$f":"'Risk Assessment Matrix'!H134","v":0},{"$f":"'Risk Assessment Matrix'!I134","v":0}]
[{"$f":"'Risk Assessment Matrix'!A135","v":0},{"$f":"'Risk Assessment Matrix'!B135","v":0},{"$f":"'Risk Assessment Matrix'!F135","v":0},{"$f":"'Risk Assessment Matrix'!H135","v":0},{"$f":"'Risk Assessment Matrix'!I135","v":0}]
[{"$f":"'Risk Assessment Matrix'!A136","v":0},{"$f":"'Risk Assessment Matrix'!B136","v":0},{"$f":"'Risk Assessment Matrix'!F136","v":0},{"$f":"'Risk Assessment Matrix'!H136","v":0},{"$f":"'Risk Assessment Matrix'!I136","v":0}]
[{"$f":"'Risk Assessment Matrix'!A137","v":0},{"$f":"'Risk Assessment Matrix'!B137","v":0},{"$f":"'Risk Assessment Matrix'!F137","v":0},{"$f":"'Risk Assessment Matrix'!H137","v":0},{"$f":"'Risk Assessment Matrix'!I137","v":0}]
[{"$f":"'Risk Assessment Matrix'!A138","v":0},{"$f":"'Risk Assessment Matrix'!B138","v":0},{"$f":"'Risk Assessment Matrix'!F138","v":0},{"$f":"'Risk Assessment Matrix'!H138","v":0},{"$f":"'Risk Assessment Matrix'!I138","v":0}]
[{"$f":"'Risk Assessment Matrix'!A139","v":0},{"$f":"'Risk Assessment Matrix'!B139","v":0},{"$f":"'Risk Assessment Matrix'!F139","v":0},{"$f":"'Risk Assessment Matrix'!H139","v":0},{"$f":"'Risk Assessment Matrix'!I139","v":0}]
[{"$f":"'Risk Assessment Matrix'!A140","v":0},{"$f":"'Risk Assessment Matrix'!B140","v":0},{"$f":"'Risk Assessment Matrix'!F140","v":0},{"$f":"'Risk Assessment Matrix'!H140","v":0},{"$f":"'Risk Assessment Matrix'!I140","v":0}]
[{"$f":"'Risk Assessment Matrix'!A141","v":0},{"$f":"'Risk Assessment Matrix'!B141","v":0},{"$f":"'Risk Assessment Matrix'!F141","v":0},{"$f":"'Risk Assessment Matrix'!H141","v":0},{"$f":"'Risk Assessment Matrix'!I141","v":0}]
[{"$f":"'Risk Assessment Matrix'!A142","v":0},{"$f":"'Risk Assessment Matrix'!B142","v":0},{"$f":"'Risk Assessment Matrix'!F142","v":0},{"$f":"'Risk Assessment Matrix'!H142","v":0},{"$f":"'Risk Assessment Matrix'!I142","v":0}]
[{"$f":"'Risk Assessment Matrix'!A143","v":0},{"$f":"'Risk Assessment Matrix'!B143","v":0},{"$f":"'Risk Assessment Matrix'!F143","v":0},{"$f":"'Risk Assessment Matrix'!H143","v":0},{"$f":"'Risk Assessment Matrix'!I143","v":0}]
[{"$f":"'Risk Assessment Matrix'!A144","v":0},{"$f":"'Risk Assessment Matrix'!B144","v":0},{"$f":"'Risk Assessment Matrix'!F144","v":0},{"$f":"'Risk Assessment Matrix'!H144","v":0},{"$f":"'Risk Assessment Matrix'!I144","v":0}]
[{"$f":"'Risk Assessment Matrix'!A145","v":0},{"$f":"'Risk Assessment Matrix'!B145","v":0},{"$f":"'Risk Assessment Matrix'!F145","v":0},{"$f":"'Risk Assessment Matrix'!H145","v":0},{"$f":"'Risk Assessment Matrix'!I145","v":0}]
[{"$f":"'Risk Assessment Matrix'!A146","v":0},{"$f":"'Risk Assessment Matrix'!B146","v":0},{"$f":"'Risk Assessment Matrix'!F146","v":0},{"$f":"'Risk Assessment Matrix'!H146","v":0},{"$f":"'Risk Assessment Matrix'!I146","v":0}]
[{"$f":"'Risk Assessment Matrix'!A147","v":0},{"$f":"'Risk Assessment Matrix'!B147","v":0},{"$f":"'Risk Assessment Matrix'!F147","v":0},{"$f":"'Risk Assessment Matrix'!H147","v":0},{"$f":"'Risk Assessment Matrix'!I147","v":0}]
[{"$f":"'Risk Assessment Matrix'!A148","v":0},{"$f":"'Risk Assessment Matrix'!B148","v":0},{"$f":"'Risk Assessment Matrix'!F148","v":0},{"$f":"'Risk Assessment Matrix'!H148","v":0},{"$f":"'Risk Assessment Matrix'!I148","v":0}]
[{"$f":"'Risk Assessment Matrix'!A149","v":0},{"$f":"'Risk Assessment Matrix'!B149","v":0},{"$f":"'Risk Assessment Matrix'!F149","v":0},{"$f":"'Risk Assessment Matrix'!H149","v":0},{"$f":"'Risk Assessment Matrix'!I149","v":0}]
[{"$f":"'Risk Assessment Matrix'!A150","v":0},{"$f":"'Risk Assessment Matrix'!B150","v":0},{"$f":"'Risk Assessment Matrix'!F150","v":0},{"$f":"'Risk Assessment Matrix'!H150","v":0},{"$f":"'Risk Assessment Matrix'!I150","v":0}]
[{"$f":"'Risk Assessment Matrix'!A151","v":0},{"$f":"'Risk Assessment Matrix'!B151","v":0},{"$f":"'Risk Assessment Matrix'!F151","v":0},{"$f":"'Risk Assessment Matrix'!H151","v":0},{"$f":"'Risk Assessment Matrix'!I151","v":0}]
[{"$f":"'Risk Assessment Matrix'!A152","v":0},{"$f":"'Risk Assessment Matrix'!B152","v":0},{"$f":"'Risk Assessment Matrix'!F152","v":0},{"$f":"'Risk Assessment Matrix'!H152","v":0},{"$f":"'Risk Assessment Matrix'!I152","v":0}]
[{"$f":"'Risk Assessment Matrix'!A153","v":0},{"$f":"'Risk Assessment Matrix'!B153","v":0},{"$f":"'Risk Assessment Matrix'!F153","v":0},{"$f":"'Risk Assessment Matrix'!H153","v":0},{"$f":"'Risk Assessment Matrix'!I153","v":0}]
[{"$f":"'Risk Assessment Matrix'!A154","v":0},{"$f":"'Risk Assessment Matrix'!B154","v":0},{"$f":"'Risk Assessment Matrix'!F154","v":0},{"$f":"'Risk Assessment Matrix'!H154","v":0},{"$f":"'Risk Assessment Matrix'!I154","v":0}]
[{"$f":"'Risk Assessment Matrix'!A155","v":0},{"$f":"'Risk Assessment Matrix'!B155","v":0},{"$f":"'Risk Assessment Matrix'!F155","v":0},{"$f":"'Risk Assessment Matrix'!H155","v":0},{"$f":"'Risk Assessment Matrix'!I155","v":0}]
[{"$f":"'Risk Assessment Matrix'!A156","v":0},{"$f":"'Risk Assessment Matrix'!B156","v":0},{"$f":"'Risk Assessment Matrix'!F156","v":0},{"$f":"'Risk Assessment Matrix'!H156","v":0},{"$f":"'Risk Assessment Matrix'!I156","v":0}]
[{"$f":"'Risk Assessment Matrix'!A157","v":0},{"$f":"'Risk Assessment Matrix'!B157","v":0},{"$f":"'Risk Assessment Matrix'!F157","v":0},{"$f":"'Risk Assessment Matrix'!H157","v":0},{"$f":"'Risk Assessment Matrix'!I157","v":0}]
[{"$f":"'Risk Assessment Matrix'!A158","v":0},{"$f":"'Risk Assessment Matrix'!B158","v":0},{"$f":"'Risk Assessment Matrix'!F158","v":0},{"$f":"'Risk Assessment Matrix'!H158","v":0},{"$f":"'Risk Assessment Matrix'!I158","v":0}]
[{"$f":"'Risk Assessment Matrix'!A159","v":0},{"$f":"'Risk Assessment Matrix'!B159","v":0},{"$f":"'Risk Assessment Matrix'!F159","v":0},{"$f":"'Risk Assessment Matrix'!H159","v":0},{"$f":"'Risk Assessment Matrix'!I159","v":0}]
[{"$f":"'Risk Assessment Matrix'!A160","v":0},{"$f":"'Risk Assessment Matrix'!B160","v":0},{"$f":"'Risk Assessment Matrix'!F160","v":0},{"$f":"'Risk Assessment Matrix'!H160","v":0},{"$f":"'Risk Assessment Matrix'!I160","v":0}]
[{"$f":"'Risk Assessment Matrix'!A161","v":0},{"$f":"'Risk Assessment Matrix'!B161","v":0},{"$f":"'Risk Assessment Matrix'!F161","v":0},{"$f":"'Risk Assessment Matrix'!H161","v":0},{"$f":"'Risk Assessment Matrix'!I161","v":0}]
[{"$f":"'Risk Assessment Matrix'!A162","v":0},{"$f":"'Risk Assessment Matrix'!B162","v":0},{"$f":"'Risk Assessment Matrix'!F162","v":0},{"$f":"'Risk Assessment Matrix'!H162","v":0},{"$f":"'Risk Assessment Matrix'!I162","v":0}]
[{"$f":"'Risk Assessment Matrix'!A163","v":0},{"$f":"'Risk Assessment Matrix'!B163","v":0},{"$f":"'Risk Assessment Matrix'!F163","v":0},{"$f":"'Risk Assessment Matrix'!H163","v":0},{"$f":"'Risk Assessment Matrix'!I163","v":0}]
[{"$f":"'Risk Assessment Matrix'!A164","v":0},{"$f":"'Risk Assessment Matrix'!B164","v":0},{"$f":"'Risk Assessment Matrix'!F164","v":0},{"$f":"'Risk Assessment Matrix'!H164","v":0},{"$f":"'Risk Assessment Matrix'!I164","v":0}]
[{"$f":"'Risk Assessment Matrix'!A165","v":0},{"$f":"'Risk Assessment Matrix'!B165","v":0},{"$f":"'Risk Assessment Matrix'!F165","v":0},{"$f":"'Risk Assessment Matrix'!H165","v":0},{"$f":"'Risk Assessment Matrix'!I165","v":0}]
[{"$f":"'Risk Assessment Matrix'!A166","v":0},{"$f":"'Risk Assessment Matrix'!B166","v":0},{"$f":"'Risk Assessment Matrix'!F166","v":0},{"$f":"'Risk Assessment Matrix'!H166","v":0},{"$f":"'Risk Assessment Matrix'!I166","v":0}]
[{"$f":"'Risk Assessment Matrix'!A167","v":0},{"$f":"'Risk Assessment Matrix'!B167","v":0},{"$f":"'Risk Assessment Matrix'!F167","v":0},{"$f":"'Risk Assessment Matrix'!H167","v":0},{"$f":"'Risk Assessment Matrix'!I167","v":0}]
[{"$f":"'Risk Assessment Matrix'!A168","v":0},{"$f":"'Risk Assessment Matrix'!B168","v":0},{"$f":"'Risk Assessment Matrix'!F168","v":0},{"$f":"'Risk Assessment Matrix'!H168","v":0},{"$f":"'Risk Assessment Matrix'!I168","v":0}]
[{"$f":"'Risk Assessment Matrix'!A169","v":0},{"$f":"'Risk Assessment Matrix'!B169","v":0},{"$f":"'Risk Assessment Matrix'!F169","v":0},{"$f":"'Risk Assessment Matrix'!H169","v":0},{"$f":"'Risk Assessment Matrix'!I169","v":0}]
[{"$f":"'Risk Assessment Matrix'!A170","v":0},{"$f":"'Risk Assessment Matrix'!B170","v":0},{"$f":"'Risk Assessment Matrix'!F170","v":0},{"$f":"'Risk Assessment Matrix'!H170","v":0},{"$f":"'Risk Assessment Matrix'!I170","v":0}]
[{"$f":"'Risk Assessment Matrix'!A171","v":0},{"$f":"'Risk Assessment Matrix'!B171","v":0},{"$f":"'Risk Assessment Matrix'!F171","v":0},{"$f":"'Risk Assessment Matrix'!H171","v":0},{"$f":"'Risk Assessment Matrix'!I171","v":0}]
[{"$f":"'Risk Assessment Matrix'!A172","v":0},{"$f":"'Risk Assessment Matrix'!B172","v":0},{"$f":"'Risk Assessment Matrix'!F172","v":0},{"$f":"'Risk Assessment Matrix'!H172","v":0},{"$f":"'Risk Assessment Matrix'!I172","v":0}]
[{"$f":"'Risk Assessment Matrix'!A173","v":0},{"$f":"'Risk Assessment Matrix'!B173","v":0},{"$f":"'Risk Assessment Matrix'!F173","v":0},{"$f":"'Risk Assessment Matrix'!H173","v":0},{"$f":"'Risk Assessment Matrix'!I173","v":0}]
[{"$f":"'Risk Assessment Matrix'!A174","v":0},{"$f":"'Risk Assessment Matrix'!B174","v":0},{"$f":"'Risk Assessment Matrix'!F174","v":0},{"$f":"'Risk Assessment Matrix'!H174","v":0},{"$f":"'Risk Assessment Matrix'!I174","v":0}]
[{"$f":"'Risk Assessment Matrix'!A175","v":0},{"$f":"'Risk Assessment Matrix'!B175","v":0},{"$f":"'Risk Assessment Matrix'!F175","v":0},{"$f":"'Risk Assessment Matrix'!H175","v":0},{"$f":"'Risk Assessment Matrix'!I175","v":0}]
[{"$f":"'Risk Assessment Matrix'!A176","v":0},{"$f":"'Risk Assessment Matrix'!B176","v":0},{"$f":"'Risk Assessment Matrix'!F176","v":0},{"$f":"'Risk Assessment Matrix'!H176","v":0},{"$f":"'Risk Assessment Matrix'!I176","v":0}]
[{"$f":"'Risk Assessment Matrix'!A177","v":0},{"$f":"'Risk Assessment Matrix'!B177","v":0},{"$f":"'Risk Assessment Matrix'!F177","v":0},{"$f":"'Risk Assessment Matrix'!H177","v":0},{"$f":"'Risk Assessment Matrix'!I177","v":0}]
[{"$f":"'Risk Assessment Matrix'!A178","v":0},{"$f":"'Risk Assessment Matrix'!B178","v":0},{"$f":"'Risk Assessment Matrix'!F178","v":0},{"$f":"'Risk Assessment Matrix'!H178","v":0},{"$f":"'Risk Assessment Matrix'!I178","v":0}]
[{"$f":"'Risk Assessment Matrix'!A179","v":0},{"$f":"'Risk Assessment Matrix'!B179","v":0},{"$f":"'Risk Assessment Matrix'!F179","v":0},{"$f":"'Risk Assessment Matrix'!H179","v":0},{"$f":"'Risk Assessment Matrix'!I179","v":0}]
[{"$f":"'Risk Assessment Matrix'!A180","v":0},{"$f":"'Risk Assessment Matrix'!B180","v":0},{"$f":"'Risk Assessment Matrix'!F180","v":0},{"$f":"'Risk Assessment Matrix'!H180","v":0},{"$f":"'Risk Assessment Matrix'!I180","v":0}]
[{"$f":"'Risk Assessment Matrix'!A181","v":0},{"$f":"'Risk Assessment Matrix'!B181","v":0},{"$f":"'Risk Assessment Matrix'!F181","v":0},{"$f":"'Risk Assessment Matrix'!H181","v":0},{"$f":"'Risk Assessment Matrix'!I181","v":0}]
[{"$f":"'Risk Assessment Matrix'!A182","v":0},{"$f":"'Risk Assessment Matrix'!B182","v":0},{"$f":"'Risk Assessment Matrix'!F182","v":0},{"$f":"'Risk Assessment Matrix'!H182","v":0},{"$f":"'Risk Assessment Matrix'!I182","v":0}]
[{"$f":"'Risk Assessment Matrix'!A183","v":0},{"$f":"'Risk Assessment Matrix'!B183","v":0},{"$f":"'Risk Assessment Matrix'!F183","v":0},{"$f":"'Risk Assessment Matrix'!H183","v":0},{"$f":"'Risk Assessment Matrix'!I183","v":0}]
[{"$f":"'Risk Assessment Matrix'!A184","v":0},{"$f":"'Risk Assessment Matrix'!B184","v":0},{"$f":"'Risk Assessment Matrix'!F184","v":0},{"$f":"'Risk Assessment Matrix'!H184","v":0},{"$f":"'Risk Assessment Matrix'!I184","v":0}]
[{"$f":"'Risk Assessment Matrix'!A185","v":0},{"$f":"'Risk Assessment Matrix'!B185","v":0},{"$f":"'Risk Assessment Matrix'!F185","v":0},{"$f":"'Risk Assessment Matrix'!H185","v":0},{"$f":"'Risk Assessment Matrix'!I185","v":0}]
[{"$f":"'Risk Assessment Matrix'!A186","v":0},{"$f":"'Risk Assessment Matrix'!B186","v":0},{"$f":"'Risk Assessment Matrix'!F186","v":0},{"$f":"'Risk Assessment Matrix'!H186","v":0},{"$f":"'Risk Assessment Matrix'!I186","v":0}]
[{"$f":"'Risk Assessment Matrix'!A187","v":0},{"$f":"'Risk Assessment Matrix'!B187","v":0},{"$f":"'Risk Assessment Matrix'!F187","v":0},{"$f":"'Risk Assessment Matrix'!H187","v":0},{"$f":"'Risk Assessment Matrix'!I187","v":0}]
[{"$f":"'Risk Assessment Matrix'!A188","v":0},{"$f":"'Risk Assessment Matrix'!B188","v":0},{"$f":"'Risk Assessment Matrix'!F188","v":0},{"$f":"'Risk Assessment Matrix'!H188","v":0},{"$f":"'Risk Assessment Matrix'!I188","v":0}]
[{"$f":"'Risk Assessment Matrix'!A189","v":0},{"$f":"'Risk Assessment Matrix'!B189","v":0},{"$f":"'Risk Assessment Matrix'!F189","v":0},{"$f":"'Risk Assessment Matrix'!H189","v":0},{"$f":"'Risk Assessment Matrix'!I189","v":0}]
[{"$f":"'Risk Assessment Matrix'!A190","v":0},{"$f":"'Risk Assessment Matrix'!B190","v":0},{"$f":"'Risk Assessment Matrix'!F190","v":0},{"$f":"'Risk Assessment Matrix'!H190","v":0},{"$f":"'Risk Assessment Matrix'!I190","v":0}]
[{"$f":"'Risk Assessment Matrix'!A191","v":0},{"$f":"'Risk Assessment Matrix'!B191","v":0},{"$f":"'Risk Assessment Matrix'!F191","v":0},{"$f":"'Risk Assessment Matrix'!H191","v":0},{"$f":"'Risk Assessment Matrix'!I191","v":0}]
[{"$f":"'Risk Assessment Matrix'!A192","v":0},{"$f":"'Risk Assessment Matrix'!B192","v":0},{"$f":"'Risk Assessment Matrix'!F192","v":0},{"$f":"'Risk Assessment Matrix'!H192","v":0},{"$f":"'Risk Assessment Matrix'!I192","v":0}]
[{"$f":"'Risk Assessment Matrix'!A193","v":0},{"$f":"'Risk Assessment Matrix'!B193","v":0},{"$f":"'Risk Assessment Matrix'!F193","v":0},{"$f":"'Risk Assessment Matrix'!H193","v":0},{"$f":"'Risk Assessment Matrix'!I193","v":0}]
[{"$f":"'Risk Assessment Matrix'!A194","v":0},{"$f":"'Risk Assessment Matrix'!B194","v":0},{"$f":"'Risk Assessment Matrix'!F194","v":0},{"$f":"'Risk Assessment Matrix'!H194","v":0},{"$f":"'Risk Assessment Matrix'!I194","v":0}]
[{"$f":"'Risk Assessment Matrix'!A195","v":0},{"$f":"'Risk Assessment Matrix'!B195","v":0},{"$f":"'Risk Assessment Matrix'!F195","v":0},{"$f":"'Risk Assessment Matrix'!H195","v":0},{"$f":"'Risk Assessment Matrix'!I195","v":0}]
[{"$f":"'Risk Assessment Matrix'!A196","v":0},{"$f":"'Risk Assessment Matrix'!B196","v":0},{"$f":"'Risk Assessment Matrix'!F196","v":0},{"$f":"'Risk Assessment Matrix'!H196","v":0},{"$f":"'Risk Assessment Matrix'!I196","v":0}]
[{"$f":"'Risk Assessment Matrix'!A197","v":0},{"$f":"'Risk Assessment Matrix'!B197","v":0},{"$f":"'Risk Assessment Matrix'!F197","v":0},{"$f":"'Risk Assessment Matrix'!H197","v":0},{"$f":"'Risk Assessment Matrix'!I197","v":0}]
[{"$f":"'Risk Assessment Matrix'!A198","v":0},{"$f":"'Risk Assessment Matrix'!B198","v":0},{"$f":"'Risk Assessment Matrix'!F198","v":0},{"$f":"'Risk Assessment Matrix'!H198","v":0},{"$f":"'Risk Assessment Matrix'!I198","v":0}]
[{"$f":"'Risk Assessment Matrix'!A199","v":0},{"$f":"'Risk Assessment Matrix'!B199","v":0},{"$f":"'Risk Assessment Matrix'!F199","v":0},{"$f":"'Risk Assessment Matrix'!H199","v":0},{"$f":"'Risk Assessment Matrix'!I199","v":0}]
[{"$f":"'Risk Assessment Matrix'!A200","v":0},{"$f":"'Risk Assessment Matrix'!B200","v":0},{"$f":"'Risk Assessment Matrix'!F200","v":0},{"$f":"'Risk Assessment Matrix'!H200","v":0},{"$f":"'Risk Assessment Matrix'!I200","v":0}]
[{"$f":"'Risk Assessment Matrix'!A201","v":0},{"$f":"'Risk Assessment Matrix'!B201","v":0},{"$f":"'Risk Assessment Matrix'!F201","v":0},{"$f":"'Risk Assessment Matrix'!H201","v":0},{"$f":"'Risk Assessment Matrix'!I201","v":0}]
[{"$f":"'Risk Assessment Matrix'!A202","v":0},{"$f":"'Risk Assessment Matrix'!B202","v":0},{"$f":"'Risk Assessment Matrix'!F202","v":0},{"$f":"'Risk Assessment Matrix'!H202","v":0},{"$f":"'Risk Assessment Matrix'!I202","v":0}]
[{"$f":"'Risk Assessment Matrix'!A203","v":0},{"$f":"'Risk Assessment Matrix'!B203","v":0},{"$f":"'Risk Assessment Matrix'!F203","v":0},{"$f":"'Risk Assessment Matrix'!H203","v":0},{"$f":"'Risk Assessment Matrix'!I203","v":0}]
[{"$f":"'Risk Assessment Matrix'!A204","v":0},{"$f":"'Risk Assessment Matrix'!B204","v":0},{"$f":"'Risk Assessment Matrix'!F204","v":0},{"$f":"'Risk Assessment Matrix'!H204","v":0},{"$f":"'Risk Assessment Matrix'!I204","v":0}]
[{"$f":"'Risk Assessment Matrix'!A205","v":0},{"$f":"'Risk Assessment Matrix'!B205","v":0},{"$f":"'Risk Assessment Matrix'!F205","v":0},{"$f":"'Risk Assessment Matrix'!H205","v":0},{"$f":"'Risk Assessment Matrix'!I205","v":0}]
[{"$f":"'Risk Assessment Matrix'!A206","v":0},{"$f":"'Risk Assessment Matrix'!B206","v":0},{"$f":"'Risk Assessment Matrix'!F206","v":0},{"$f":"'Risk Assessment Matrix'!H206","v":0},{"$f":"'Risk Assessment Matrix'!I206","v":0}]
[{"$f":"'Risk Assessment Matrix'!A207","v":0},{"$f":"'Risk Assessment Matrix'!B207","v":0},{"$f":"'Risk Assessment Matrix'!F207","v":0},{"$f":"'Risk Assessment Matrix'!H207","v":0},{"$f":"'Risk Assessment Matrix'!I207","v":0}]
[{"$f":"'Risk Assessment Matrix'!A208","v":0},{"$f":"'Risk Assessment Matrix'!B208","v":0},{"$f":"'Risk Assessment Matrix'!F208","v":0},{"$f":"'Risk Assessment Matrix'!H208","v":0},{"$f":"'Risk Assessment Matrix'!I208","v":0}]
[{"$f":"'Risk Assessment Matrix'!A209","v":0},{"$f":"'Risk Assessment Matrix'!B209","v":0},{"$f":"'Risk Assessment Matrix'!F209","v":0},{"$f":"'Risk Assessment Matrix'!H209","v":0},{"$f":"'Risk Assessment Matrix'!I209","v":0}]
[{"$f":"'Risk Assessment Matrix'!A210","v":0},{"$f":"'Risk Assessment Matrix'!B210","v":0},{"$f":"'Risk Assessment Matrix'!F210","v":0},{"$f":"'Risk Assessment Matrix'!H210","v":0},{"$f":"'Risk Assessment Matrix'!I210","v":0}]
[{"$f":"'Risk Assessment Matrix'!A211","v":0},{"$f":"'Risk Assessment Matrix'!B211","v":0},{"$f":"'Risk Assessment Matrix'!F211","v":0},{"$f":"'Risk Assessment Matrix'!H211","v":0},{"$f":"'Risk Assessment Matrix'!I211","v":0}]
[{"$f":"'Risk Assessment Matrix'!A212","v":0},{"$f":"'Risk Assessment Matrix'!B212","v":0},{"$f":"'Risk Assessment Matrix'!F212","v":0},{"$f":"'Risk Assessment Matrix'!H212","v":0},{"$f":"'Risk Assessment Matrix'!I212","v":0}]
[{"$f":"'Risk Assessment Matrix'!A213","v":0},{"$f":"'Risk Assessment Matrix'!B213","v":0},{"$f":"'Risk Assessment Matrix'!F213","v":0},{"$f":"'Risk Assessment Matrix'!H213","v":0},{"$f":"'Risk Assessment Matrix'!I213","v":0}]
[{"$f":"'Risk Assessment Matrix'!A214","v":0},{"$f":"'Risk Assessment Matrix'!B214","v":0},{"$f":"'Risk Assessment Matrix'!F214","v":0},{"$f":"'Risk Assessment Matrix'!H214","v":0},{"$f":"'Risk Assessment Matrix'!I214","v":0}]
[{"$f":"'Risk Assessment Matrix'!A215","v":0},{"$f":"'Risk Assessment Matrix'!B215","v":0},{"$f":"'Risk Assessment Matrix'!F215","v":0},{"$f":"'Risk Assessment Matrix'!H215","v":0},{"$f":"'Risk Assessment Matrix'!I215","v":0}]
[{"$f":"'Risk Assessment Matrix'!A216","v":0},{"$f":"'Risk Assessment Matrix'!B216","v":0},{"$f":"'Risk Assessment Matrix'!F216","v":0},{"$f":"'Risk Assessment Matrix'!H216","v":0},{"$f":"'Risk Assessment Matrix'!I216","v":0}]
[{"$f":"'Risk Assessment Matrix'!A217","v":0},{"$f":"'Risk Assessment Matrix'!B217","v":0},{"$f":"'Risk Assessment Matrix'!F217","v":0},{"$f":"'Risk Assessment Matrix'!H217","v":0},{"$f":"'Risk Assessment Matrix'!I217","v":0}]
[{"$f":"'Risk Assessment Matrix'!A218","v":0},{"$f":"'Risk Assessment Matrix'!B218","v":0},{"$f":"'Risk Assessment Matrix'!F218","v":0},{"$f":"'Risk Assessment Matrix'!H218","v":0},{"$f":"'Risk Assessment Matrix'!I218","v":0}]
[{"$f":"'Risk Assessment Matrix'!A219","v":0},{"$f":"'Risk Assessment Matrix'!B219","v":0},{"$f":"'Risk Assessment Matrix'!F219","v":0},{"$f":"'Risk Assessment Matrix'!H219","v":0},{"$f":"'Risk Assessment Matrix'!I219","v":0}]
[{"$f":"'Risk Assessment Matrix'!A220","v":0},{"$f":"'Risk Assessment Matrix'!B220","v":0},{"$f":"'Risk Assessment Matrix'!F220","v":0},{"$f":"'Risk Assessment Matrix'!H220","v":0},{"$f":"'Risk Assessment Matrix'!I220","v":0}]
[{"$f":"'Risk Assessment Matrix'!A221","v":0},{"$f":"'Risk Assessment Matrix'!B221","v":0},{"$f":"'Risk Assessment Matrix'!F221","v":0},{"$f":"'Risk Assessment Matrix'!H221","v":0},{"$f":"'Risk Assessment Matrix'!I221","v":0}]
[{"$f":"'Risk Assessment Matrix'!A222","v":0},{"$f":"'Risk Assessment Matrix'!B222","v":0},{"$f":"'Risk Assessment Matrix'!F222","v":0},{"$f":"'Risk Assessment Matrix'!H222","v":0},{"$f":"'Risk Assessment Matrix'!I222","v":0}]
[{"$f":"'Risk Assessment Matrix'!A223","v":0},{"$f":"'Risk Assessment Matrix'!B223","v":0},{"$f":"'Risk Assessment Matrix'!F223","v":0},{"$f":"'Risk Assessment Matrix'!H223","v":0},{"$f":"'Risk Assessment Matrix'!I223","v":0}]
[{"$f":"'Risk Assessment Matrix'!A224","v":0},{"$f":"'Risk Assessment Matrix'!B224","v":0},{"$f":"'Risk Assessment Matrix'!F224","v":0},{"$f":"'Risk Assessment Matrix'!H224","v":0},{"$f":"'Risk Assessment Matrix'!I224","v":0}]
[{"$f":"'Risk Assessment Matrix'!A225","v":0},{"$f":"'Risk Assessment Matrix'!B225","v":0},{"$f":"'Risk Assessment Matrix'!F225","v":0},{"$f":"'Risk Assessment Matrix'!H225","v":0},{"$f":"'Risk Assessment Matrix'!I225","v":0}]
[{"$f":"'Risk Assessment Matrix'!A226","v":0},{"$f":"'Risk Assessment Matrix'!B226","v":0},{"$f":"'Risk Assessment Matrix'!F226","v":0},{"$f":"'Risk Assessment Matrix'!H226","v":0},{"$f":"'Risk Assessment Matrix'!I226","v":0}]
[{"$f":"'Risk Assessment Matrix'!A227","v":0},{"$f":"'Risk Assessment Matrix'!B227","v":0},{"$f":"'Risk Assessment Matrix'!F227","v":0},{"$f":"'Risk Assessment Matrix'!H227","v":0},{"$f":"'Risk Assessment Matrix'!I227","v":0}]
[{"$f":"'Risk Assessment Matrix'!A228","v":0},{"$f":"'Risk Assessment Matrix'!B228","v":0},{"$f":"'Risk Assessment Matrix'!F228","v":0},{"$f":"'Risk Assessment Matrix'!H228","v":0},{"$f":"'Risk Assessment Matrix'!I228","v":0}]
[{"$f":"'Risk Assessment Matrix'!A229","v":0},{"$f":"'Risk Assessment Matrix'!B229","v":0},{"$f":"'Risk Assessment Matrix'!F229","v":0},{"$f":"'Risk Assessment Matrix'!H229","v":0},{"$f":"'Risk Assessment Matrix'!I229","v":0}]
[{"$f":"'Risk Assessment Matrix'!A230","v":0},{"$f":"'Risk Assessment Matrix'!B230","v":0},{"$f":"'Risk Assessment Matrix'!F230","v":0},{"$f":"'Risk Assessment Matrix'!H230","v":0},{"$f":"'Risk Assessment Matrix'!I230","v":0}]
[{"$f":"'Risk Assessment Matrix'!A231","v":0},{"$f":"'Risk Assessment Matrix'!B231","v":0},{"$f":"'Risk Assessment Matrix'!F231","v":0},{"$f":"'Risk Assessment Matrix'!H231","v":0},{"$f":"'Risk Assessment Matrix'!I231","v":0}]
[{"$f":"'Risk Assessment Matrix'!A232","v":0},{"$f":"'Risk Assessment Matrix'!B232","v":0},{"$f":"'Risk Assessment Matrix'!F232","v":0},{"$f":"'Risk Assessment Matrix'!H232","v":0},{"$f":"'Risk Assessment Matrix'!I232","v":0}]
[{"$f":"'Risk Assessment Matrix'!A233","v":0},{"$f":"'Risk Assessment Matrix'!B233","v":0},{"$f":"'Risk Assessment Matrix'!F233","v":0},{"$f":"'Risk Assessment Matrix'!H233","v":0},{"$f":"'Risk Assessment Matrix'!I233","v":0}]
[{"$f":"'Risk Assessment Matrix'!A234","v":0},{"$f":"'Risk Assessment Matrix'!B234","v":0},{"$f":"'Risk Assessment Matrix'!F234","v":0},{"$f":"'Risk Assessment Matrix'!H234","v":0},{"$f":"'Risk Assessment Matrix'!I234","v":0}]
[{"$f":"'Risk Assessment Matrix'!A235","v":0},{"$f":"'Risk Assessment Matrix'!B235","v":0},{"$f":"'Risk Assessment Matrix'!F235","v":0},{"$f":"'Risk Assessment Matrix'!H235","v":0},{"$f":"'Risk Assessment Matrix'!I235","v":0}]
[{"$f":"'Risk Assessment Matrix'!A236","v":0},{"$f":"'Risk Assessment Matrix'!B236","v":0},{"$f":"'Risk Assessment Matrix'!F236","v":0},{"$f":"'Risk Assessment Matrix'!H236","v":0},{"$f":"'Risk Assessment Matrix'!I236","v":0}]
[{"$f":"'Risk Assessment Matrix'!A237","v":0},{"$f":"'Risk Assessment Matrix'!B237","v":0},{"$f":"'Risk Assessment Matrix'!F237","v":0},{"$f":"'Risk Assessment Matrix'!H237","v":0},{"$f":"'Risk Assessment Matrix'!I237","v":0}]
[{"$f":"'Risk Assessment Matrix'!A238","v":0},{"$f":"'Risk Assessment Matrix'!B238","v":0},{"$f":"'Risk Assessment Matrix'!F238","v":0},{"$f":"'Risk Assessment Matrix'!H238","v":0},{"$f":"'Risk Assessment Matrix'!I238","v":0}]
[{"$f":"'Risk Assessment Matrix'!A239","v":0},{"$f":"'Risk Assessment Matrix'!B239","v":0},{"$f":"'Risk Assessment Matrix'!F239","v":0},{"$f":"'Risk Assessment Matrix'!H239","v":0},{"$f":"'Risk Assessment Matrix'!I239","v":0}]
[{"$f":"'Risk Assessment Matrix'!A240","v":0},{"$f":"'Risk Assessment Matrix'!B240","v":0},{"$f":"'Risk Assessment Matrix'!F240","v":0},{"$f":"'Risk Assessment Matrix'!H240","v":0},{"$f":"'Risk Assessment Matrix'!I240","v":0}]
[{"$f":"'Risk Assessment Matrix'!A241","v":0},{"$f":"'Risk Assessment Matrix'!B241","v":0},{"$f":"'Risk Assessment Matrix'!F241","v":0},{"$f":"'Risk Assessment Matrix'!H241","v":0},{"$f":"'Risk Assessment Matrix'!I241","v":0}]
[{"$f":"'Risk Assessment Matrix'!A242","v":0},{"$f":"'Risk Assessment Matrix'!B242","v":0},{"$f":"'Risk Assessment Matrix'!F242","v":0},{"$f":"'Risk Assessment Matrix'!H242","v":0},{"$f":"'Risk Assessment Matrix'!I242","v":0}]
[{"$f":"'Risk Assessment Matrix'!A243","v":0},{"$f":"'Risk Assessment Matrix'!B243","v":0},{"$f":"'Risk Assessment Matrix'!F243","v":0},{"$f":"'Risk Assessment Matrix'!H243","v":0},{"$f":"'Risk Assessment Matrix'!I243","v":0}]
[{"$f":"'Risk Assessment Matrix'!A244","v":0},{"$f":"'Risk Assessment Matrix'!B244","v":0},{"$f":"'Risk Assessment Matrix'!F244","v":0},{"$f":"'Risk Assessment Matrix'!H244","v":0},{"$f":"'Risk Assessment Matrix'!I244","v":0}]
[{"$f":"'Risk Assessment Matrix'!A245","v":0},{"$f":"'Risk Assessment Matrix'!B245","v":0},{"$f":"'Risk Assessment Matrix'!F245","v":0},{"$f":"'Risk Assessment Matrix'!H245","v":0},{"$f":"'Risk Assessment Matrix'!I245","v":0}]
[{"$f":"'Risk Assessment Matrix'!A246","v":0},{"$f":"'Risk Assessment Matrix'!B246","v":0},{"$f":"'Risk Assessment Matrix'!F246","v":0},{"$f":"'Risk Assessment Matrix'!H246","v":0},{"$f":"'Risk Assessment Matrix'!I246","v":0}]
[{"$f":"'Risk Assessment Matrix'!A247","v":0},{"$f":"'Risk Assessment Matrix'!B247","v":0},{"$f":"'Risk Assessment Matrix'!F247","v":0},{"$f":"'Risk Assessment Matrix'!H247","v":0},{"$f":"'Risk Assessment Matrix'!I247","v":0}]
[{"$f":"'Risk Assessment Matrix'!A248","v":0},{"$f":"'Risk Assessment Matrix'!B248","v":0},{"$f":"'Risk Assessment Matrix'!F248","v":0},{"$f":"'Risk Assessment Matrix'!H248","v":0},{"$f":"'Risk Assessment Matrix'!I248","v":0}]
[{"$f":"'Risk Assessment Matrix'!A249","v":0},{"$f":"'Risk Assessment Matrix'!B249","v":0},{"$f":"'Risk Assessment Matrix'!F249","v":0},{"$f":"'Risk Assessment Matrix'!H249","v":0},{"$f":"'Risk Assessment Matrix'!I249","v":0}]
[{"$f":"'Risk Assessment Matrix'!A250","v":0},{"$f":"'Risk Assessment Matrix'!B250","v":0},{"$f":"'Risk Assessment Matrix'!F250","v":0},{"$f":"'Risk Assessment Matrix'!H250","v":0},{"$f":"'Risk Assessment Matrix'!I250","v":0}]
[{"$f":"'Risk Assessment Matrix'!A251","v":0},{"$f":"'Risk Assessment Matrix'!B251","v":0},{"$f":"'Risk Assessment Matrix'!F251","v":0},{"$f":"'Risk Assessment Matrix'!H251","v":0},{"$f":"'Risk Assessment Matrix'!I251","v":0}]
[{"$f":"'Risk Assessment Matrix'!A252","v":0},{"$f":"'Risk Assessment Matrix'!B252","v":0},{"$f":"'Risk Assessment Matrix'!F252","v":0},{"$f":"'Risk Assessment Matrix'!H252","v":0},{"$f":"'Risk Assessment Matrix'!I252","v":0}]
[{"$f":"'Risk Assessment Matrix'!A253","v":0},{"$f":"'Risk Assessment Matrix'!B253","v":0},{"$f":"'Risk Assessment Matrix'!F253","v":0},{"$f":"'Risk Assessment Matrix'!H253","v":0},{"$f":"'Risk Assessment Matrix'!I253","v":0}]
[{"$f":"'Risk Assessment Matrix'!A254","v":0},{"$f":"'Risk Assessment Matrix'!B254","v":0},{"$f":"'Risk Assessment Matrix'!F254","v":0},{"$f":"'Risk Assessment Matrix'!H254","v":0},{"$f":"'Risk Assessment Matrix'!I254","v":0}]
[{"$f":"'Risk Assessment Matrix'!A255","v":0},{"$f":"'Risk Assessment Matrix'!B255","v":0},{"$f":"'Risk Assessment Matrix'!F255","v":0},{"$f":"'Risk Assessment Matrix'!H255","v":0},{"$f":"'Risk Assessment Matrix'!I255","v":0}]
[{"$f":"'Risk Assessment Matrix'!A256","v":0},{"$f":"'Risk Assessment Matrix'!B256","v":0},{"$f":"'Risk Assessment Matrix'!F256","v":0},{"$f":"'Risk Assessment Matrix'!H256","v":0},{"$f":"'Risk Assessment Matrix'!I256","v":0}]
[{"$f":"'Risk Assessment Matrix'!A257","v":0},{"$f":"'Risk Assessment Matrix'!B257","v":0},{"$f":"'Risk Assessment Matrix'!F257","v":0},{"$f":"'Risk Assessment Matrix'!H257","v":0},{"$f":"'Risk Assessment Matrix'!I257","v":0}]
[{"$f":"'Risk Assessment Matrix'!A258","v":0},{"$f":"'Risk Assessment Matrix'!B258","v":0},{"$f":"'Risk Assessment Matrix'!F258","v":0},{"$f":"'Risk Assessment Matrix'!H258","v":0},{"$f":"'Risk Assessment Matrix'!I258","v":0}]
[{"$f":"'Risk Assessment Matrix'!A259","v":0},{"$f":"'Risk Assessment Matrix'!B259","v":0},{"$f":"'Risk Assessment Matrix'!F259","v":0},{"$f":"'Risk Assessment Matrix'!H259","v":0},{"$f":"'Risk Assessment Matrix'!I259","v":0}]
[{"$f":"'Risk Assessment Matrix'!A260","v":0},{"$f":"'Risk Assessment Matrix'!B260","v":0},{"$f":"'Risk Assessment Matrix'!F260","v":0},{"$f":"'Risk Assessment Matrix'!H260","v":0},{"$f":"'Risk Assessment Matrix'!I260","v":0}]
[{"$f":"'Risk Assessment Matrix'!A261","v":0},{"$f":"'Risk Assessment Matrix'!B261","v":0},{"$f":"'Risk Assessment Matrix'!F261","v":0},{"$f":"'Risk Assessment Matrix'!H261","v":0},{"$f":"'Risk Assessment Matrix'!I261","v":0}]
[{"$f":"'Risk Assessment Matrix'!A262","v":0},{"$f":"'Risk Assessment Matrix'!B262","v":0},{"$f":"'Risk Assessment Matrix'!F262","v":0},{"$f":"'Risk Assessment Matrix'!H262","v":0},{"$f":"'Risk Assessment Matrix'!I262","v":0}]
[{"$f":"'Risk Assessment Matrix'!A263","v":0},{"$f":"'Risk Assessment Matrix'!B263","v":0},{"$f":"'Risk Assessment Matrix'!F263","v":0},{"$f":"'Risk Assessment Matrix'!H263","v":0},{"$f":"'Risk Assessment Matrix'!I263","v":0}]
[{"$f":"'Risk Assessment Matrix'!A264","v":0},{"$f":"'Risk Assessment Matrix'!B264","v":0},{"$f":"'Risk Assessment Matrix'!F264","v":0},{"$f":"'Risk Assessment Matrix'!H264","v":0},{"$f":"'Risk Assessment Matrix'!I264","v":0}]
[{"$f":"'Risk Assessment Matrix'!A265","v":0},{"$f":"'Risk Assessment Matrix'!B265","v":0},{"$f":"'Risk Assessment Matrix'!F265","v":0},{"$f":"'Risk Assessment Matrix'!H265","v":0},{"$f":"'Risk Assessment Matrix'!I265","v":0}]
[{"$f":"'Risk Assessment Matrix'!A266","v":0},{"$f":"'Risk Assessment Matrix'!B266","v":0},{"$f":"'Risk Assessment Matrix'!F266","v":0},{"$f":"'Risk Assessment Matrix'!H266","v":0},{"$f":"'Risk Assessment Matrix'!I266","v":0}]
[{"$f":"'Risk Assessment Matrix'!A267","v":0},{"$f":"'Risk Assessment Matrix'!B267","v":0},{"$f":"'Risk Assessment Matrix'!F267","v":0},{"$f":"'Risk Assessment Matrix'!H267","v":0},{"$f":"'Risk Assessment Matrix'!I267","v":0}]
[{"$f":"'Risk Assessment Matrix'!A268","v":0},{"$f":"'Risk Assessment Matrix'!B268","v":0},{"$f":"'Risk Assessment Matrix'!F268","v":0},{"$f":"'Risk Assessment Matrix'!H268","v":0},{"$f":"'Risk Assessment Matrix'!I268","v":0}]
[{"$f":"'Risk Assessment Matrix'!A269","v":0},{"$f":"'Risk Assessment Matrix'!B269","v":0},{"$f":"'Risk Assessment Matrix'!F269","v":0},{"$f":"'Risk Assessment Matrix'!H269","v":0},{"$f":"'Risk Assessment Matrix'!I269","v":0}]
[{"$f":"'Risk Assessment Matrix'!A270","v":0},{"$f":"'Risk Assessment Matrix'!B270","v":0},{"$f":"'Risk Assessment Matrix'!F270","v":0},{"$f":"'Risk Assessment Matrix'!H270","v":0},{"$f":"'Risk Assessment Matrix'!I270","v":0}]
[{"$f":"'Risk Assessment Matrix'!A271","v":0},{"$f":"'Risk Assessment Matrix'!B271","v":0},{"$f":"'Risk Assessment Matrix'!F271","v":0},{"$f":"'Risk Assessment Matrix'!H271","v":0},{"$f":"'Risk Assessment Matrix'!I271","v":0}]
[{"$f":"'Risk Assessment Matrix'!A272","v":0},{"$f":"'Risk Assessment Matrix'!B272","v":0},{"$f":"'Risk Assessment Matrix'!F272","v":0},{"$f":"'Risk Assessment Matrix'!H272","v":0},{"$f":"'Risk Assessment Matrix'!I272","v":0}]
[{"$f":"'Risk Assessment Matrix'!A273","v":0},{"$f":"'Risk Assessment Matrix'!B273","v":0},{"$f":"'Risk Assessment Matrix'!F273","v":0},{"$f":"'Risk Assessment Matrix'!H273","v":0},{"$f":"'Risk Assessment Matrix'!I273","v":0}]
[{"$f":"'Risk Assessment Matrix'!A274","v":0},{"$f":"'Risk Assessment Matrix'!B274","v":0},{"$f":"'Risk Assessment Matrix'!F274","v":0},{"$f":"'Risk Assessment Matrix'!H274","v":0},{"$f":"'Risk Assessment Matrix'!I274","v":0}]
[{"$f":"'Risk Assessment Matrix'!A275","v":0},{"$f":"'Risk Assessment Matrix'!B275","v":0},{"$f":"'Risk Assessment Matrix'!F275","v":0},{"$f":"'Risk Assessment Matrix'!H275","v":0},{"$f":"'Risk Assessment Matrix'!I275","v":0}]
[{"$f":"'Risk Assessment Matrix'!A276","v":0},{"$f":"'Risk Assessment Matrix'!B276","v":0},{"$f":"'Risk Assessment Matrix'!F276","v":0},{"$f":"'Risk Assessment Matrix'!H276","v":0},{"$f":"'Risk Assessment Matrix'!I276","v":0}]
[{"$f":"'Risk Assessment Matrix'!A277","v":0},{"$f":"'Risk Assessment Matrix'!B277","v":0},{"$f":"'Risk Assessment Matrix'!F277","v":0},{"$f":"'Risk Assessment Matrix'!H277","v":0},{"$f":"'Risk Assessment Matrix'!I277","v":0}]
[{"$f":"'Risk Assessment Matrix'!A278","v":0},{"$f":"'Risk Assessment Matrix'!B278","v":0},{"$f":"'Risk Assessment Matrix'!F278","v":0},{"$f":"'Risk Assessment Matrix'!H278","v":0},{"$f":"'Risk Assessment Matrix'!I278","v":0}]
[{"$f":"'Risk Assessment Matrix'!A279","v":0},{"$f":"'Risk Assessment Matrix'!B279","v":0},{"$f":"'Risk Assessment Matrix'!F279","v":0},{"$f":"'Risk Assessment Matrix'!H279","v":0},{"$f":"'Risk Assessment Matrix'!I279","v":0}]
[{"$f":"'Risk Assessment Matrix'!A280","v":0},{"$f":"'Risk Assessment Matrix'!B280","v":0},{"$f":"'Risk Assessment Matrix'!F280","v":0},{"$f":"'Risk Assessment Matrix'!H280","v":0},{"$f":"'Risk Assessment Matrix'!I280","v":0}]
[{"$f":"'Risk Assessment Matrix'!A281","v":0},{"$f":"'Risk Assessment Matrix'!B281","v":0},{"$f":"'Risk Assessment Matrix'!F281","v":0},{"$f":"'Risk Assessment Matrix'!H281","v":0},{"$f":"'Risk Assessment Matrix'!I281","v":0}]
[{"$f":"'Risk Assessment Matrix'!A282","v":0},{"$f":"'Risk Assessment Matrix'!B282","v":0},{"$f":"'Risk Assessment Matrix'!F282","v":0},{"$f":"'Risk Assessment Matrix'!H282","v":0},{"$f":"'Risk Assessment Matrix'!I282","v":0}]
[{"$f":"'Risk Assessment Matrix'!A283","v":0},{"$f":"'Risk Assessment Matrix'!B283","v":0},{"$f":"'Risk Assessment Matrix'!F283","v":0},{"$f":"'Risk Assessment Matrix'!H283","v":0},{"$f":"'Risk Assessment Matrix'!I283","v":0}]
[{"$f":"'Risk Assessment Matrix'!A284","v":0},{"$f":"'Risk Assessment Matrix'!B284","v":0},{"$f":"'Risk Assessment Matrix'!F284","v":0},{"$f":"'Risk Assessment Matrix'!H284","v":0},{"$f":"'Risk Assessment Matrix'!I284","v":0}]
[{"$f":"'Risk Assessment Matrix'!A285","v":0},{"$f":"'Risk Assessment Matrix'!B285","v":0},{"$f":"'Risk Assessment Matrix'!F285","v":0},{"$f":"'Risk Assessment Matrix'!H285","v":0},{"$f":"'Risk Assessment Matrix'!I285","v":0}]
[{"$f":"'Risk Assessment Matrix'!A286","v":0},{"$f":"'Risk Assessment Matrix'!B286","v":0},{"$f":"'Risk Assessment Matrix'!F286","v":0},{"$f":"'Risk Assessment Matrix'!H286","v":0},{"$f":"'Risk Assessment Matrix'!I286","v":0}]
[{"$f":"'Risk Assessment Matrix'!A287","v":0},{"$f":"'Risk Assessment Matrix'!B287","v":0},{"$f":"'Risk Assessment Matrix'!F287","v":0},{"$f":"'Risk Assessment Matrix'!H287","v":0},{"$f":"'Risk Assessment Matrix'!I287","v":0}]
[{"$f":"'Risk Assessment Matrix'!A288","v":0},{"$f":"'Risk Assessment Matrix'!B288","v":0},{"$f":"'Risk Assessment Matrix'!F288","v":0},{"$f":"'Risk Assessment Matrix'!H288","v":0},{"$f":"'Risk Assessment Matrix'!I288","v":0}]
[{"$f":"'Risk Assessment Matrix'!A289","v":0},{"$f":"'Risk Assessment Matrix'!B289","v":0},{"$f":"'Risk Assessment Matrix'!F289","v":0},{"$f":"'Risk Assessment Matrix'!H289","v":0},{"$f":"'Risk Assessment Matrix'!I289","v":0}]
[{"$f":"'Risk Assessment Matrix'!A290","v":0},{"$f":"'Risk Assessment Matrix'!B290","v":0},{"$f":"'Risk Assessment Matrix'!F290","v":0},{"$f":"'Risk Assessment Matrix'!H290","v":0},{"$f":"'Risk Assessment Matrix'!I290","v":0}]
[{"$f":"'Risk Assessment Matrix'!A291","v":0},{"$f":"'Risk Assessment Matrix'!B291","v":0},{"$f":"'Risk Assessment Matrix'!F291","v":0},{"$f":"'Risk Assessment Matrix'!H291","v":0},{"$f":"'Risk Assessment Matrix'!I291","v":0}]
[{"$f":"'Risk Assessment Matrix'!A292","v":0},{"$f":"'Risk Assessment Matrix'!B292","v":0},{"$f":"'Risk Assessment Matrix'!F292","v":0},{"$f":"'Risk Assessment Matrix'!H292","v":0},{"$f":"'Risk Assessment Matrix'!I292","v":0}]
[{"$f":"'Risk Assessment Matrix'!A293","v":0},{"$f":"'Risk Assessment Matrix'!B293","v":0},{"$f":"'Risk Assessment Matrix'!F293","v":0},{"$f":"'Risk Assessment Matrix'!H293","v":0},{"$f":"'Risk Assessment Matrix'!I293","v":0}]
[{"$f":"'Risk Assessment Matrix'!A294","v":0},{"$f":"'Risk Assessment Matrix'!B294","v":0},{"$f":"'Risk Assessment Matrix'!F294","v":0},{"$f":"'Risk Assessment Matrix'!H294","v":0},{"$f":"'Risk Assessment Matrix'!I294","v":0}]
[{"$f":"'Risk Assessment Matrix'!A295","v":0},{"$f":"'Risk Assessment Matrix'!B295","v":0},{"$f":"'Risk Assessment Matrix'!F295","v":0},{"$f":"'Risk Assessment Matrix'!H295","v":0},{"$f":"'Risk Assessment Matrix'!I295","v":0}]
[{"$f":"'Risk Assessment Matrix'!A296","v":0},{"$f":"'Risk Assessment Matrix'!B296","v":0},{"$f":"'Risk Assessment Matrix'!F296","v":0},{"$f":"'Risk Assessment Matrix'!H296","v":0},{"$f":"'Risk Assessment Matrix'!I296","v":0}]
[{"$f":"'Risk Assessment Matrix'!A297","v":0},{"$f":"'Risk Assessment Matrix'!B297","v":0},{"$f":"'Risk Assessment Matrix'!F297","v":0},{"$f":"'Risk Assessment Matrix'!H297","v":0},{"$f":"'Risk Assessment Matrix'!I297","v":0}]
[{"$f":"'Risk Assessment Matrix'!A298","v":0},{"$f":"'Risk Assessment Matrix'!B298","v":0},{"$f":"'Risk Assessment Matrix'!F298","v":0},{"$f":"'Risk Assessment Matrix'!H298","v":0},{"$f":"'Risk Assessment Matrix'!I298","v":0}]
[{"$f":"'Risk Assessment Matrix'!A299","v":0},{"$f":"'Risk Assessment Matrix'!B299","v":0},{"$f":"'Risk Assessment Matrix'!F299","v":0},{"$f":"'Risk Assessment Matrix'!H299","v":0},{"$f":"'Risk Assessment Matrix'!I299","v":0}]
[{"$f":"'Risk Assessment Matrix'!A300","v":0},{"$f":"'Risk Assessment Matrix'!B300","v":0},{"$f":"'Risk Assessment Matrix'!F300","v":0},{"$f":"'Risk Assessment Matrix'!H300","v":0},{"$f":"'Risk Assessment Matrix'!I300","v":0}]
[{"$f":"'Risk Assessment Matrix'!A301","v":0},{"$f":"'Risk Assessment Matrix'!B301","v":0},{"$f":"'Risk Assessment Matrix'!F301","v":0},{"$f":"'Risk Assessment Matrix'!H301","v":0},{"$f":"'Risk Assessment Matrix'!I301","v":0}]
[{"$f":"'Risk Assessment Matrix'!A302","v":0},{"$f":"'Risk Assessment Matrix'!B302","v":0},{"$f":"'Risk Assessment Matrix'!F302","v":0},{"$f":"'Risk Assessment Matrix'!H302","v":0},{"$f":"'Risk Assessment Matrix'!I302","v":0}]
[{"$f":"'Risk Assessment Matrix'!A303","v":0},{"$f":"'Risk Assessment Matrix'!B303","v":0},{"$f":"'Risk Assessment Matrix'!F303","v":0},{"$f":"'Risk Assessment Matrix'!H303","v":0},{"$f":"'Risk Assessment Matrix'!I303","v":0}]
[{"$f":"'Risk Assessment Matrix'!A304","v":0},{"$f":"'Risk Assessment Matrix'!B304","v":0},{"$f":"'Risk Assessment Matrix'!F304","v":0},{"$f":"'Risk Assessment Matrix'!H304","v":0},{"$f":"'Risk Assessment Matrix'!I304","v":0}]
[{"$f":"'Risk Assessment Matrix'!A305","v":0},{"$f":"'Risk Assessment Matrix'!B305","v":0},{"$f":"'Risk Assessment Matrix'!F305","v":0},{"$f":"'Risk Assessment Matrix'!H305","v":0},{"$f":"'Risk Assessment Matrix'!I305","v":0}]
[{"$f":"'Risk Assessment Matrix'!A306","v":0},{"$f":"'Risk Assessment Matrix'!B306","v":0},{"$f":"'Risk Assessment Matrix'!F306","v":0},{"$f":"'Risk Assessment Matrix'!H306","v":0},{"$f":"'Risk Assessment Matrix'!I306","v":0}]
[{"$f":"'Risk Assessment Matrix'!A307","v":0},{"$f":"'Risk Assessment Matrix'!B307","v":0},{"$f":"'Risk Assessment Matrix'!F307","v":0},{"$f":"'Risk Assessment Matrix'!H307","v":0},{"$f":"'Risk Assessment Matrix'!I307","v":0}]
[{"$f":"'Risk Assessment Matrix'!A308","v":0},{"$f":"'Risk Assessment Matrix'!B308","v":0},{"$f":"'Risk Assessment Matrix'!F308","v":0},{"$f":"'Risk Assessment Matrix'!H308","v":0},{"$f":"'Risk Assessment Matrix'!I308","v":0}]
[{"$f":"'Risk Assessment Matrix'!A309","v":0},{"$f":"'Risk Assessment Matrix'!B309","v":0},{"$f":"'Risk Assessment Matrix'!F309","v":0},{"$f":"'Risk Assessment Matrix'!H309","v":0},{"$f":"'Risk Assessment Matrix'!I309","v":0}]
[{"$f":"'Risk Assessment Matrix'!A310","v":0},{"$f":"'Risk Assessment Matrix'!B310","v":0},{"$f":"'Risk Assessment Matrix'!F310","v":0},{"$f":"'Risk Assessment Matrix'!H310","v":0},{"$f":"'Risk Assessment Matrix'!I310","v":0}]
[{"$f":"'Risk Assessment Matrix'!A311","v":0},{"$f":"'Risk Assessment Matrix'!B311","v":0},{"$f":"'Risk Assessment Matrix'!F311","v":0},{"$f":"'Risk Assessment Matrix'!H311","v":0},{"$f":"'Risk Assessment Matrix'!I311","v":0}]
[{"$f":"'Risk Assessment Matrix'!A312","v":0},{"$f":"'Risk Assessment Matrix'!B312","v":0},{"$f":"'Risk Assessment Matrix'!F312","v":0},{"$f":"'Risk Assessment Matrix'!H312","v":0},{"$f":"'Risk Assessment Matrix'!I312","v":0}]
[{"$f":"'Risk Assessment Matrix'!A313","v":0},{"$f":"'Risk Assessment Matrix'!B313","v":0},{"$f":"'Risk Assessment Matrix'!F313","v":0},{"$f":"'Risk Assessment Matrix'!H313","v":0},{"$f":"'Risk Assessment Matrix'!I313","v":0}]
[{"$f":"'Risk Assessment Matrix'!A314","v":0},{"$f":"'Risk Assessment Matrix'!B314","v":0},{"$f":"'Risk Assessment Matrix'!F314","v":0},{"$f":"'Risk Assessment Matrix'!H314","v":0},{"$f":"'Risk Assessment Matrix'!I314","v":0}]
[{"$f":"'Risk Assessment Matrix'!A315","v":0},{"$f":"'Risk Assessment Matrix'!B315","v":0},{"$f":"'Risk Assessment Matrix'!F315","v":0},{"$f":"'Risk Assessment Matrix'!H315","v":0},{"$f":"'Risk Assessment Matrix'!I315","v":0}]
[{"$f":"'Risk Assessment Matrix'!A316","v":0},{"$f":"'Risk Assessment Matrix'!B316","v":0},{"$f":"'Risk Assessment Matrix'!F316","v":0},{"$f":"'Risk Assessment Matrix'!H316","v":0},{"$f":"'Risk Assessment Matrix'!I316","v":0}]
[{"$f":"'Risk Assessment Matrix'!A317","v":0},{"$f":"'Risk Assessment Matrix'!B317","v":0},{"$f":"'Risk Assessment Matrix'!F317","v":0},{"$f":"'Risk Assessment Matrix'!H317","v":0},{"$f":"'Risk Assessment Matrix'!I317","v":0}]
[{"$f":"'Risk Assessment Matrix'!A318","v":0},{"$f":"'Risk Assessment Matrix'!B318","v":0},{"$f":"'Risk Assessment Matrix'!F318","v":0},{"$f":"'Risk Assessment Matrix'!H318","v":0},{"$f":"'Risk Assessment Matrix'!I318","v":0}]
[{"$f":"'Risk Assessment Matrix'!A319","v":0},{"$f":"'Risk Assessment Matrix'!B319","v":0},{"$f":"'Risk Assessment Matrix'!F319","v":0},{"$f":"'Risk Assessment Matrix'!H319","v":0},{"$f":"'Risk Assessment Matrix'!I319","v":0}]
[{"$f":"'Risk Assessment Matrix'!A320","v":0},{"$f":"'Risk Assessment Matrix'!B320","v":0},{"$f":"'Risk Assessment Matrix'!F320","v":0},{"$f":"'Risk Assessment Matrix'!H320","v":0},{"$f":"'Risk Assessment Matrix'!I320","v":0}]
[{"$f":"'Risk Assessment Matrix'!A321","v":0},{"$f":"'Risk Assessment Matrix'!B321","v":0},{"$f":"'Risk Assessment Matrix'!F321","v":0},{"$f":"'Risk Assessment Matrix'!H321","v":0},{"$f":"'Risk Assessment Matrix'!I321","v":0}]
[{"$f":"'Risk Assessment Matrix'!A322","v":0},{"$f":"'Risk Assessment Matrix'!B322","v":0},{"$f":"'Risk Assessment Matrix'!F322","v":0},{"$f":"'Risk Assessment Matrix'!H322","v":0},{"$f":"'Risk Assessment Matrix'!I322","v":0}]
[{"$f":"'Risk Assessment Matrix'!A323","v":0},{"$f":"'Risk Assessment Matrix'!B323","v":0},{"$f":"'Risk Assessment Matrix'!F323","v":0},{"$f":"'Risk Assessment Matrix'!H323","v":0},{"$f":"'Risk Assessment Matrix'!I323","v":0}]
[{"$f":"'Risk Assessment Matrix'!A324","v":0},{"$f":"'Risk Assessment Matrix'!B324","v":0},{"$f":"'Risk Assessment Matrix'!F324","v":0},{"$f":"'Risk Assessment Matrix'!H324","v":0},{"$f":"'Risk Assessment Matrix'!I324","v":0}]
[{"$f":"'Risk Assessment Matrix'!A325","v":0},{"$f":"'Risk Assessment Matrix'!B325","v":0},{"$f":"'Risk Assessment Matrix'!F325","v":0},{"$f":"'Risk Assessment Matrix'!H325","v":0},{"$f":"'Risk Assessment Matrix'!I325","v":0}]
[{"$f":"'Risk Assessment Matrix'!A326","v":0},{"$f":"'Risk Assessment Matrix'!B326","v":0},{"$f":"'Risk Assessment Matrix'!F326","v":0},{"$f":"'Risk Assessment Matrix'!H326","v":0},{"$f":"'Risk Assessment Matrix'!I326","v":0}]
[{"$f":"'Risk Assessment Matrix'!A327","v":0},{"$f":"'Risk Assessment Matrix'!B327","v":0},{"$f":"'Risk Assessment Matrix'!F327","v":0},{"$f":"'Risk Assessment Matrix'!H327","v":0},{"$f":"'Risk Assessment Matrix'!I327","v":0}]
[{"$f":"'Risk Assessment Matrix'!A328","v":0},{"$f":"'Risk Assessment Matrix'!B328","v":0},{"$f":"'Risk Assessment Matrix'!F328","v":0},{"$f":"'Risk Assessment Matrix'!H328","v":0},{"$f":"'Risk Assessment Matrix'!I328","v":0}]
[{"$f":"'Risk Assessment Matrix'!A329","v":0},{"$f":"'Risk Assessment Matrix'!B329","v":0},{"$f":"'Risk Assessment Matrix'!F329","v":0},{"$f":"'Risk Assessment Matrix'!H329","v":0},{"$f":"'Risk Assessment Matrix'!I329","v":0}]
[{"$f":"'Risk Assessment Matrix'!A330","v":0},{"$f":"'Risk Assessment Matrix'!B330","v":0},{"$f":"'Risk Assessment Matrix'!F330","v":0},{"$f":"'Risk Assessment Matrix'!H330","v":0},{"$f":"'Risk Assessment Matrix'!I330","v":0}]
[{"$f":"'Risk Assessment Matrix'!A331","v":0},{"$f":"'Risk Assessment Matrix'!B331","v":0},{"$f":"'Risk Assessment Matrix'!F331","v":0},{"$f":"'Risk Assessment Matrix'!H331","v":0},{"$f":"'Risk Assessment Matrix'!I331","v":0}]
[{"$f":"'Risk Assessment Matrix'!A332","v":0},{"$f":"'Risk Assessment Matrix'!B332","v":0},{"$f":"'Risk Assessment Matrix'!F332","v":0},{"$f":"'Risk Assessment Matrix'!H332","v":0},{"$f":"'Risk Assessment Matrix'!I332","v":0}]
[{"$f":"'Risk Assessment Matrix'!A333","v":0},{"$f":"'Risk Assessment Matrix'!B333","v":0},{"$f":"'Risk Assessment Matrix'!F333","v":0},{"$f":"'Risk Assessment Matrix'!H333","v":0},{"$f":"'Risk Assessment Matrix'!I333","v":0}]
[{"$f":"'Risk Assessment Matrix'!A334","v":0},{"$f":"'Risk Assessment Matrix'!B334","v":0},{"$f":"'Risk Assessment Matrix'!F334","v":0},{"$f":"'Risk Assessment Matrix'!H334","v":0},{"$f":"'Risk Assessment Matrix'!I334","v":0}]
[{"$f":"'Risk Assessment Matrix'!A335","v":0},{"$f":"'Risk Assessment Matrix'!B335","v":0},{"$f":"'Risk Assessment Matrix'!F335","v":0},{"$f":"'Risk Assessment Matrix'!H335","v":0},{"$f":"'Risk Assessment Matrix'!I335","v":0}]
[{"$f":"'Risk Assessment Matrix'!A336","v":0},{"$f":"'Risk Assessment Matrix'!B336","v":0},{"$f":"'Risk Assessment Matrix'!F336","v":0},{"$f":"'Risk Assessment Matrix'!H336","v":0},{"$f":"'Risk Assessment Matrix'!I336","v":0}]
[{"$f":"'Risk Assessment Matrix'!A337","v":0},{"$f":"'Risk Assessment Matrix'!B337","v":0},{"$f":"'Risk Assessment Matrix'!F337","v":0},{"$f":"'Risk Assessment Matrix'!H337","v":0},{"$f":"'Risk Assessment Matrix'!I337","v":0}]
[{"$f":"'Risk Assessment Matrix'!A338","v":0},{"$f":"'Risk Assessment Matrix'!B338","v":0},{"$f":"'Risk Assessment Matrix'!F338","v":0},{"$f":"'Risk Assessment Matrix'!H338","v":0},{"$f":"'Risk Assessment Matrix'!I338","v":0}]
[{"$f":"'Risk Assessment Matrix'!A339","v":0},{"$f":"'Risk Assessment Matrix'!B339","v":0},{"$f":"'Risk Assessment Matrix'!F339","v":0},{"$f":"'Risk Assessment Matrix'!H339","v":0},{"$f":"'Risk Assessment Matrix'!I339","v":0}]
[{"$f":"'Risk Assessment Matrix'!A340","v":0},{"$f":"'Risk Assessment Matrix'!B340","v":0},{"$f":"'Risk Assessment Matrix'!F340","v":0},{"$f":"'Risk Assessment Matrix'!H340","v":0},{"$f":"'Risk Assessment Matrix'!I340","v":0}]
[{"$f":"'Risk Assessment Matrix'!A341","v":0},{"$f":"'Risk Assessment Matrix'!B341","v":0},{"$f":"'Risk Assessment Matrix'!F341","v":0},{"$f":"'Risk Assessment Matrix'!H341","v":0},{"$f":"'Risk Assessment Matrix'!I341","v":0}]
[{"$f":"'Risk Assessment Matrix'!A342","v":0},{"$f":"'Risk Assessment Matrix'!B342","v":0},{"$f":"'Risk Assessment Matrix'!F342","v":0},{"$f":"'Risk Assessment Matrix'!H342","v":0},{"$f":"'Risk Assessment Matrix'!I342","v":0}]
[{"$f":"'Risk Assessment Matrix'!A343","v":0},{"$f":"'Risk Assessment Matrix'!B343","v":0},{"$f":"'Risk Assessment Matrix'!F343","v":0},{"$f":"'Risk Assessment Matrix'!H343","v":0},{"$f":"'Risk Assessment Matrix'!I343","v":0}]
[{"$f":"'Risk Assessment Matrix'!A344","v":0},{"$f":"'Risk Assessment Matrix'!B344","v":0},{"$f":"'Risk Assessment Matrix'!F344","v":0},{"$f":"'Risk Assessment Matrix'!H344","v":0},{"$f":"'Risk Assessment Matrix'!I344","v":0}]
[{"$f":"'Risk Assessment Matrix'!A345","v":0},{"$f":"'Risk Assessment Matrix'!B345","v":0},{"$f":"'Risk Assessment Matrix'!F345","v":0},{"$f":"'Risk Assessment Matrix'!H345","v":0},{"$f":"'Risk Assessment Matrix'!I345","v":0}]
[{"$f":"'Risk Assessment Matrix'!A346","v":0},{"$f":"'Risk Assessment Matrix'!B346","v":0},{"$f":"'Risk Assessment Matrix'!F346","v":0},{"$f":"'Risk Assessment Matrix'!H346","v":0},{"$f":"'Risk Assessment Matrix'!I346","v":0}]
[{"$f":"'Risk Assessment Matrix'!A347","v":0},{"$f":"'Risk Assessment Matrix'!B347","v":0},{"$f":"'Risk Assessment Matrix'!F347","v":0},{"$f":"'Risk Assessment Matrix'!H347","v":0},{"$f":"'Risk Assessment Matrix'!I347","v":0}]
[{"$f":"'Risk Assessment Matrix'!A348","v":0},{"$f":"'Risk Assessment Matrix'!B348","v":0},{"$f":"'Risk Assessment Matrix'!F348","v":0},{"$f":"'Risk Assessment Matrix'!H348","v":0},{"$f":"'Risk Assessment Matrix'!I348","v":0}]
[{"$f":"'Risk Assessment Matrix'!A349","v":0},{"$f":"'Risk Assessment Matrix'!B349","v":0},{"$f":"'Risk Assessment Matrix'!F349","v":0},{"$f":"'Risk Assessment Matrix'!H349","v":0},{"$f":"'Risk Assessment Matrix'!I349","v":0}]
[{"$f":"'Risk Assessment Matrix'!A350","v":0},{"$f":"'Risk Assessment Matrix'!B350","v":0},{"$f":"'Risk Assessment Matrix'!F350","v":0},{"$f":"'Risk Assessment Matrix'!H350","v":0},{"$f":"'Risk Assessment Matrix'!I350","v":0}]
[{"$f":"'Risk Assessment Matrix'!A351","v":0},{"$f":"'Risk Assessment Matrix'!B351","v":0},{"$f":"'Risk Assessment Matrix'!F351","v":0},{"$f":"'Risk Assessment Matrix'!H351","v":0},{"$f":"'Risk Assessment Matrix'!I351","v":0}]
[{"$f":"'Risk Assessment Matrix'!A352","v":0},{"$f":"'Risk Assessment Matrix'!B352","v":0},{"$f":"'Risk Assessment Matrix'!F352","v":0},{"$f":"'Risk Assessment Matrix'!H352","v":0},{"$f":"'Risk Assessment Matrix'!I352","v":0}]
[{"$f":"'Risk Assessment Matrix'!A353","v":0},{"$f":"'Risk Assessment Matrix'!B353","v":0},{"$f":"'Risk Assessment Matrix'!F353","v":0},{"$f":"'Risk Assessment Matrix'!H353","v":0},{"$f":"'Risk Assessment Matrix'!I353","v":0}]
[{"$f":"'Risk Assessment Matrix'!A354","v":0},{"$f":"'Risk Assessment Matrix'!B354","v":0},{"$f":"'Risk Assessment Matrix'!F354","v":0},{"$f":"'Risk Assessment Matrix'!H354","v":0},{"$f":"'Risk Assessment Matrix'!I354","v":0}]
[{"$f":"'Risk Assessment Matrix'!A355","v":0},{"$f":"'Risk Assessment Matrix'!B355","v":0},{"$f":"'Risk Assessment Matrix'!F355","v":0},{"$f":"'Risk Assessment Matrix'!H355","v":0},{"$f":"'Risk Assessment Matrix'!I355","v":0}]
[{"$f":"'Risk Assessment Matrix'!A356","v":0},{"$f":"'Risk Assessment Matrix'!B356","v":0},{"$f":"'Risk Assessment Matrix'!F356","v":0},{"$f":"'Risk Assessment Matrix'!H356","v":0},{"$f":"'Risk Assessment Matrix'!I356","v":0}]
[{"$f":"'Risk Assessment Matrix'!A357","v":0},{"$f":"'Risk Assessment Matrix'!B357","v":0},{"$f":"'Risk Assessment Matrix'!F357","v":0},{"$f":"'Risk Assessment Matrix'!H357","v":0},{"$f":"'Risk Assessment Matrix'!I357","v":0}]
[{"$f":"'Risk Assessment Matrix'!A358","v":0},{"$f":"'Risk Assessment Matrix'!B358","v":0},{"$f":"'Risk Assessment Matrix'!F358","v":0},{"$f":"'Risk Assessment Matrix'!H358","v":0},{"$f":"'Risk Assessment Matrix'!I358","v":0}]
[{"$f":"'Risk Assessment Matrix'!A359","v":0},{"$f":"'Risk Assessment Matrix'!B359","v":0},{"$f":"'Risk Assessment Matrix'!F359","v":0},{"$f":"'Risk Assessment Matrix'!H359","v":0},{"$f":"'Risk Assessment Matrix'!I359","v":0}]
[{"$f":"'Risk Assessment Matrix'!A360","v":0},{"$f":"'Risk Assessment Matrix'!B360","v":0},{"$f":"'Risk Assessment Matrix'!F360","v":0},{"$f":"'Risk Assessment Matrix'!H360","v":0},{"$f":"'Risk Assessment Matrix'!I360","v":0}]
[{"$f":"'Risk Assessment Matrix'!A361","v":0},{"$f":"'Risk Assessment Matrix'!B361","v":0},{"$f":"'Risk Assessment Matrix'!F361","v":0},{"$f":"'Risk Assessment Matrix'!H361","v":0},{"$f":"'Risk Assessment Matrix'!I361","v":0}]
[{"$f":"'Risk Assessment Matrix'!A362","v":0},{"$f":"'Risk Assessment Matrix'!B362","v":0},{"$f":"'Risk Assessment Matrix'!F362","v":0},{"$f":"'Risk Assessment Matrix'!H362","v":0},{"$f":"'Risk Assessment Matrix'!I362","v":0}]
[{"$f":"'Risk Assessment Matrix'!A363","v":0},{"$f":"'Risk Assessment Matrix'!B363","v":0},{"$f":"'Risk Assessment Matrix'!F363","v":0},{"$f":"'Risk Assessment Matrix'!H363","v":0},{"$f":"'Risk Assessment Matrix'!I363","v":0}]
[{"$f":"'Risk Assessment Matrix'!A364","v":0},{"$f":"'Risk Assessment Matrix'!B364","v":0},{"$f":"'Risk Assessment Matrix'!F364","v":0},{"$f":"'Risk Assessment Matrix'!H364","v":0},{"$f":"'Risk Assessment Matrix'!I364","v":0}]
[{"$f":"'Risk Assessment Matrix'!A365","v":0},{"$f":"'Risk Assessment Matrix'!B365","v":0},{"$f":"'Risk Assessment Matrix'!F365","v":0},{"$f":"'Risk Assessment Matrix'!H365","v":0},{"$f":"'Risk Assessment Matrix'!I365","v":0}]
[{"$f":"'Risk Assessment Matrix'!A366","v":0},{"$f":"'Risk Assessment Matrix'!B366","v":0},{"$f":"'Risk Assessment Matrix'!F366","v":0},{"$f":"'Risk Assessment Matrix'!H366","v":0},{"$f":"'Risk Assessment Matrix'!I366","v":0}]
[{"$f":"'Risk Assessment Matrix'!A367","v":0},{"$f":"'Risk Assessment Matrix'!B367","v":0},{"$f":"'Risk Assessment Matrix'!F367","v":0},{"$f":"'Risk Assessment Matrix'!H367","v":0},{"$f":"'Risk Assessment Matrix'!I367","v":0}]
[{"$f":"'Risk Assessment Matrix'!A368","v":0},{"$f":"'Risk Assessment Matrix'!B368","v":0},{"$f":"'Risk Assessment Matrix'!F368","v":0},{"$f":"'Risk Assessment Matrix'!H368","v":0},{"$f":"'Risk Assessment Matrix'!I368","v":0}]
[{"$f":"'Risk Assessment Matrix'!A369","v":0},{"$f":"'Risk Assessment Matrix'!B369","v":0},{"$f":"'Risk Assessment Matrix'!F369","v":0},{"$f":"'Risk Assessment Matrix'!H369","v":0},{"$f":"'Risk Assessment Matrix'!I369","v":0}]
[{"$f":"'Risk Assessment Matrix'!A370","v":0},{"$f":"'Risk Assessment Matrix'!B370","v":0},{"$f":"'Risk Assessment Matrix'!F370","v":0},{"$f":"'Risk Assessment Matrix'!H370","v":0},{"$f":"'Risk Assessment Matrix'!I370","v":0}]
[{"$f":"'Risk Assessment Matrix'!A371","v":0},{"$f":"'Risk Assessment Matrix'!B371","v":0},{"$f":"'Risk Assessment Matrix'!F371","v":0},{"$f":"'Risk Assessment Matrix'!H371","v":0},{"$f":"'Risk Assessment Matrix'!I371","v":0}]
[{"$f":"'Risk Assessment Matrix'!A372","v":0},{"$f":"'Risk Assessment Matrix'!B372","v":0},{"$f":"'Risk Assessment Matrix'!F372","v":0},{"$f":"'Risk Assessment Matrix'!H372","v":0},{"$f":"'Risk Assessment Matrix'!I372","v":0}]
[{"$f":"'Risk Assessment Matrix'!A373","v":0},{"$f":"'Risk Assessment Matrix'!B373","v":0},{"$f":"'Risk Assessment Matrix'!F373","v":0},{"$f":"'Risk Assessment Matrix'!H373","v":0},{"$f":"'Risk Assessment Matrix'!I373","v":0}]
[{"$f":"'Risk Assessment Matrix'!A374","v":0},{"$f":"'Risk Assessment Matrix'!B374","v":0},{"$f":"'Risk Assessment Matrix'!F374","v":0},{"$f":"'Risk Assessment Matrix'!H374","v":0},{"$f":"'Risk Assessment Matrix'!I374","v":0}]
[{"$f":"'Risk Assessment Matrix'!A375","v":0},{"$f":"'Risk Assessment Matrix'!B375","v":0},{"$f":"'Risk Assessment Matrix'!F375","v":0},{"$f":"'Risk Assessment Matrix'!H375","v":0},{"$f":"'Risk Assessment Matrix'!I375","v":0}]
[{"$f":"'Risk Assessment Matrix'!A376","v":0},{"$f":"'Risk Assessment Matrix'!B376","v":0},{"$f":"'Risk Assessment Matrix'!F376","v":0},{"$f":"'Risk Assessment Matrix'!H376","v":0},{"$f":"'Risk Assessment Matrix'!I376","v":0}]
[{"$f":"'Risk Assessment Matrix'!A377","v":0},{"$f":"'Risk Assessment Matrix'!B377","v":0},{"$f":"'Risk Assessment Matrix'!F377","v":0},{"$f":"'Risk Assessment Matrix'!H377","v":0},{"$f":"'Risk Assessment Matrix'!I377","v":0}]
[{"$f":"'Risk Assessment Matrix'!A378","v":0},{"$f":"'Risk Assessment Matrix'!B378","v":0},{"$f":"'Risk Assessment Matrix'!F378","v":0},{"$f":"'Risk Assessment Matrix'!H378","v":0},{"$f":"'Risk Assessment Matrix'!I378","v":0}]
[{"$f":"'Risk Assessment Matrix'!A379","v":0},{"$f":"'Risk Assessment Matrix'!B379","v":0},{"$f":"'Risk Assessment Matrix'!F379","v":0},{"$f":"'Risk Assessment Matrix'!H379","v":0},{"$f":"'Risk Assessment Matrix'!I379","v":0}]
[{"$f":"'Risk Assessment Matrix'!A380","v":0},{"$f":"'Risk Assessment Matrix'!B380","v":0},{"$f":"'Risk Assessment Matrix'!F380","v":0},{"$f":"'Risk Assessment Matrix'!H380","v":0},{"$f":"'Risk Assessment Matrix'!I380","v":0}]
[{"$f":"'Risk Assessment Matrix'!A381","v":0},{"$f":"'Risk Assessment Matrix'!B381","v":0},{"$f":"'Risk Assessment Matrix'!F381","v":0},{"$f":"'Risk Assessment Matrix'!H381","v":0},{"$f":"'Risk Assessment Matrix'!I381","v":0}]
[{"$f":"'Risk Assessment Matrix'!A382","v":0},{"$f":"'Risk Assessment Matrix'!B382","v":0},{"$f":"'Risk Assessment Matrix'!F382","v":0},{"$f":"'Risk Assessment Matrix'!H382","v":0},{"$f":"'Risk Assessment Matrix'!I382","v":0}]
[{"$f":"'Risk Assessment Matrix'!A383","v":0},{"$f":"'Risk Assessment Matrix'!B383","v":0},{"$f":"'Risk Assessment Matrix'!F383","v":0},{"$f":"'Risk Assessment Matrix'!H383","v":0},{"$f":"'Risk Assessment Matrix'!I383","v":0}]
[{"$f":"'Risk Assessment Matrix'!A384","v":0},{"$f":"'Risk Assessment Matrix'!B384","v":0},{"$f":"'Risk Assessment Matrix'!F384","v":0},{"$f":"'Risk Assessment Matrix'!H384","v":0},{"$f":"'Risk Assessment Matrix'!I384","v":0}]
[{"$f":"'Risk Assessment Matrix'!A385","v":0},{"$f":"'Risk Assessment Matrix'!B385","v":0},{"$f":"'Risk Assessment Matrix'!F385","v":0},{"$f":"'Risk Assessment Matrix'!H385","v":0},{"$f":"'Risk Assessment Matrix'!I385","v":0}]
[{"$f":"'Risk Assessment Matrix'!A386","v":0},{"$f":"'Risk Assessment Matrix'!B386","v":0},{"$f":"'Risk Assessment Matrix'!F386","v":0},{"$f":"'Risk Assessment Matrix'!H386","v":0},{"$f":"'Risk Assessment Matrix'!I386","v":0}]
[{"$f":"'Risk Assessment Matrix'!A387","v":0},{"$f":"'Risk Assessment Matrix'!B387","v":0},{"$f":"'Risk Assessment Matrix'!F387","v":0},{"$f":"'Risk Assessment Matrix'!H387","v":0},{"$f":"'Risk Assessment Matrix'!I387","v":0}]
[{"$f":"'Risk Assessment Matrix'!A388","v":0},{"$f":"'Risk Assessment Matrix'!B388","v":0},{"$f":"'Risk Assessment Matrix'!F388","v":0},{"$f":"'Risk Assessment Matrix'!H388","v":0},{"$f":"'Risk Assessment Matrix'!I388","v":0}]
[{"$f":"'Risk Assessment Matrix'!A389","v":0},{"$f":"'Risk Assessment Matrix'!B389","v":0},{"$f":"'Risk Assessment Matrix'!F389","v":0},{"$f":"'Risk Assessment Matrix'!H389","v":0},{"$f":"'Risk Assessment Matrix'!I389","v":0}]
[{"$f":"'Risk Assessment Matrix'!A390","v":0},{"$f":"'Risk Assessment Matrix'!B390","v":0},{"$f":"'Risk Assessment Matrix'!F390","v":0},{"$f":"'Risk Assessment Matrix'!H390","v":0},{"$f":"'Risk Assessment Matrix'!I390","v":0}]
[{"$f":"'Risk Assessment Matrix'!A391","v":0},{"$f":"'Risk Assessment Matrix'!B391","v":0},{"$f":"'Risk Assessment Matrix'!F391","v":0},{"$f":"'Risk Assessment Matrix'!H391","v":0},{"$f":"'Risk Assessment Matrix'!I391","v":0}]
[{"$f":"'Risk Assessment Matrix'!A392","v":0},{"$f":"'Risk Assessment Matrix'!B392","v":0},{"$f":"'Risk Assessment Matrix'!F392","v":0},{"$f":"'Risk Assessment Matrix'!H392","v":0},{"$f":"'Risk Assessment Matrix'!I392","v":0}]
[{"$f":"'Risk Assessment Matrix'!A393","v":0},{"$f":"'Risk Assessment Matrix'!B393","v":0},{"$f":"'Risk Assessment Matrix'!F393","v":0},{"$f":"'Risk Assessment Matrix'!H393","v":0},{"$f":"'Risk Assessment Matrix'!I393","v":0}]
[{"$f":"'Risk Assessment Matrix'!A394","v":0},{"$f":"'Risk Assessment Matrix'!B394","v":0},{"$f":"'Risk Assessment Matrix'!F394","v":0},{"$f":"'Risk Assessment Matrix'!H394","v":0},{"$f":"'Risk Assessment Matrix'!I394","v":0}]
[{"$f":"'Risk Assessment Matrix'!A395","v":0},{"$f":"'Risk Assessment Matrix'!B395","v":0},{"$f":"'Risk Assessment Matrix'!F395","v":0},{"$f":"'Risk Assessment Matrix'!H395","v":0},{"$f":"'Risk Assessment Matrix'!I395","v":0}]
[{"$f":"'Risk Assessment Matrix'!A396","v":0},{"$f":"'Risk Assessment Matrix'!B396","v":0},{"$f":"'Risk Assessment Matrix'!F396","v":0},{"$f":"'Risk Assessment Matrix'!H396","v":0},{"$f":"'Risk Assessment Matrix'!I396","v":0}]
[{"$f":"'Risk Assessment Matrix'!A397","v":0},{"$f":"'Risk Assessment Matrix'!B397","v":0},{"$f":"'Risk Assessment Matrix'!F397","v":0},{"$f":"'Risk Assessment Matrix'!H397","v":0},{"$f":"'Risk Assessment Matrix'!I397","v":0}]
[{"$f":"'Risk Assessment Matrix'!A398","v":0},{"$f":"'Risk Assessment Matrix'!B398","v":0},{"$f":"'Risk Assessment Matrix'!F398","v":0},{"$f":"'Risk Assessment Matrix'!H398","v":0},{"$f":"'Risk Assessment Matrix'!I398","v":0}]
[{"$f":"'Risk Assessment Matrix'!A399","v":0},{"$f":"'Risk Assessment Matrix'!B399","v":0},{"$f":"'Risk Assessment Matrix'!F399","v":0},{"$f":"'Risk Assessment Matrix'!H399","v":0},{"$f":"'Risk Assessment Matrix'!I399","v":0}]
[{"$f":"'Risk Assessment Matrix'!A400","v":0},{"$f":"'Risk Assessment Matrix'!B400","v":0},{"$f":"'Risk Assessment Matrix'!F400","v":0},{"$f":"'Risk Assessment Matrix'!H400","v":0},{"$f":"'Risk Assessment Matrix'!I400","v":0}]

{"sheet":"Monitoring Actions","index":8,"n_rows":3,"n_cols":8,"rows_kept":3,"cut":false,"hidden":false,"merged":[[0,0,0,7]]}
[" Risk Monitoring Actions"]
[]
["Control Activities/Risk","Scope and Description of Monitoring Plans/Actions","Frequency","Measurement Criteria","Person(s) Responsible","Date Latest Monitoring Completed","Deficiencies Identified","Corrective Actions Implemented"]

{"sheet":"Sheet1","index":9,"n_rows":7,"n_cols":3,"rows_kept":7,"cut":false,"hidden":true,"merged":[]}
[null,"N/A","N/A"]
[null,null," "]
[null,"C",1]
[null,"D",2]
[null,null,3]
[null,null,4]
[null,null,5]

{"sheet":"Sheet2","index":10,"n_rows":0,"n_cols":0,"rows_kept":0,"cut":false,"hidden":true,"merged":[]}